Workbook

Sheet Änderungsübersicht
A1: Änderungsübersicht
A4: Version 7.4
A5: - Umbuchung Aufwertungsreserve Grundstücke im Jahr 2023 (Ausgangslage)

Sheet Ausgangslage
A1: Ausgangslage
A3: Gemeinde: | D3: 9999 Muster
A5: 1. Planjahr: | D5: 2024 | F5: Anzahl Planjahre: | I5: 10
D6: Budgetjahr = 1. Planjahr
A8: Stand/Datum:
A10: Ausgangsdaten: | F10: =IF(S10=1,">> Planung: Budget "&D5-1&" / Prognose "&D5-1&" / Budget "&D5&" = 1. Planjahr","") -> >> Planung: Budget 2023 / Prognose 2023 / Budget 2024 = 1. Planjahr | S10: 1
F11: =IF(S10=1,"",">> Planung: Budget "&D5-1&" / Ist "&D5-1&" / Budget "&D5&" = 1. Planjahr") -> 
A13: ="Einwohnerzahl "&D5-2&":" -> Einwohnerzahl 2022:
A15: Alle Beträge sind in 1'000 Franken zu erfassen
A17: ="Bilanz 31.12."&D5-2 -> Bilanz 31.12.2022
A18: 100 | B18: Flüssige Mittel
A19: 102 | B19: Kurzfristige Finanzanlagen
A20: 201 | B20: Kurzfristige Finanzverbindlichkeiten
A21: Nettobestand Flüssige Mittel | H21: =H18+H19-H20 -> 0
A22: Nettoschuld I (+ = Schuld / - = Vermögen) | H22: ='Berechnung NS'!H77 -> 0 | J22: Zahlen erfassen in Berechnung NS
A24: Eigenkapital
A25: 29500.01 | C25: Aufwertungsreserve übr. Anlagen | K25: Entnahme bis: | O25: Umbuchung:
A26: 29500.02 | C26: Aufwertungsreserve Grundstücke | O26: Umbuchung: | P26: 2023
A28: 299 | C28: Bilanzüberschuss/-fehlbetrag
A30: ="Kredite/Darlehen per 31.12."&D5-2 -> Kredite/Darlehen per 31.12.2022 | H30: Betrag | J30: Zinssatz | L30: Rückzahlung
A52: ="Erfolgsausweis "&D5-2&" (Einwohnergemeinde ohne Spezialfinanzierungen)" -> Erfolgsausweis 2022 (Einwohnergemeinde ohne Spezialfinanzierungen)
A53: Betrieblicher Aufwand
A54: Finanzaufwand
A55: Operativer Aufwand | H55: =H53+H54 -> 0
A57: Vorjahreszahlen (ohne Spezialfinanzierungen) | H57: =J57-1 -> 2020 | J57: =L57-1 -> 2021 | L57: =D5-2 -> 2022
A58: Operatives Ergebnis
A59: Gesamtergebnis
A60: Selbstfinanzierung
A61: Nettoinvestitionen
A62: Nettoschuld I je Einwohner (in CHF)

Sheet Berechnung NS
A1: Berechnung Nettoschuld I
J2: aus-
A3: Hinweis: alle Zahlen positiv in 1'000 Franken eingeben | H3: =Ausgangslage!A17 -> Bilanz 31.12.2022 | J3: blend.
A4: 20 | B4: Fremdkapital
A5: +29001 | B5: Verpflichtungen (+) / Vorschüsse (-) Wasserwerk
A6: +29002 | B6: Verpflichtungen (+) / Vorschüsse (-) Abwasserbeseitigung
A7: +29003 | B7: Verpflichtungen (+) / Vorschüsse (-) Abfallwirtschaft
A8: +29004 | B8: Verpflichtungen (+) / Vorschüsse (-) Elektrizitätswerk
A9: +2900x | B9: Verpflichtungen (+) / Vorschüsse (-) weitere Spezialfinanzierungen
A10: -2068x.01 | B10: Passivierte Investitionsbeiträge Einwohnergemeinde
A11: -14031 | B11: Tiefbauten Wasserwerk
A12: -14032 | B12: Tiefbauten Abwasserbeseitigung
A13: -14033 | B13: Tiefbauten Abfallwirtschaft
A14: -14034 | B14: Tiefbauten Elektrizitätswerk
A15: -1403x | B15: Tiefbauten weitere Spezialfinanzierungen
A16: -14041 | B16: Hochbauten Wasserwerk
A17: -14042 | B17: Hochbauten Abwasserbeseitigung
A18: -14043 | B18: Hochbauten Abfallwirtschaft
A19: -14044 | B19: Hochbauten Elektrizitätswerk
A20: -1404x | B20: Hochbauten weitere Spezialfinanzierungen
A21: -14061 | B21: Mobilien Wasserwerk
A22: -14062 | B22: Mobilien Abwasserbeseitigung
A23: -14063 | B23: Mobilien Abfallwirtschaft
A24: -14064 | B24: Mobilien Elektrizitätswerk
A25: -1406x | B25: Mobilien weitere Spezialfinanzierungen
A26: -14071 | B26: Anlagen im Bau Wasserwerk
A27: -14072 | B27: Anlagen im Bau Abwasserbeseitigung
A28: -14073 | B28: Anlagen im Bau Abfallwirtschaft
A29: -14074 | B29: Anlagen im Bau Elektrizitätswerk
A30: -1407x | B30: Anlagen im Bau weitere Spezialfinanzierungen
A31: -14201 | B31: Software Wasserwerk
A32: -14202 | B32: Software Abwasserbeseitigung
A33: -14203 | B33: Software Abfallwirtschaft
A34: -14204 | B34: Software Elektrizitätswerk
A35: -1420x | B35: Software weitere Spezialfinanzierungen
A36: -14271 | B36: Immaterielle Anlagen in Realisierung Wasserwerk
A37: -14272 | B37: Immaterielle Anlagen in Realisierung Abwasserbeseitigung
A38: -14273 | B38: Immaterielle Anlagen in Realisierung Abfallwirtschaft
A39: -14274 | B39: Immaterielle Anlagen in Realisierung Elektrizitätswerk
A40: -1427x | B40: Immaterielle Anlagen in Realisierung weitere Spezialfinanzierungen
A41: -14291 | B41: Übrige immaterielle Anlagen Wasserwerk
A42: -14292 | B42: Übrige immaterielle Anlagen Abwasserbeseitigung
A43: -14293 | B43: Übrige immaterielle Anlagen Abfallwirtschaft
A44: -14294 | B44: Übrige immaterielle Anlagen Abfallwirtschaft
A45: -1429x | B45: Übrige immaterielle Anlagen weitere Spezialfinanzierungen
A46: -14621 | B46: Investitionsbeiträge an Gemeinden/Verbände Wasserwerk
A47: -14622 | B47: Investitionsbeiträge an Gemeinden/Verbände Abwasserbeseitigung
A48: -14623 | B48: Investitionsbeiträge an Gemeinden/Verbände Abfallwirtschaft
A49: -14624 | B49: Investitionsbeiträge an Gemeinden/Verbände Elektrizitätswerk
A50: -1462x | B50: Investitionsbeiträge an Gemeinden/Verbände weitere Spezialfinanzierungen
A51: -14641 | B51: Investitionsbeiträge an öffentliche Unternehmungen Wasserwerk
A52: -14642 | B52: Investitionsbeiträge an öffentliche Unternehmungen Abwasserbeseitigung
A53: -14643 | B53: Investitionsbeiträge an öffentliche Unternehmungen Abfallwirtschaft
A54: -14644 | B54: Investitionsbeiträge an öffentliche Unternehmungen Elektrizitätswerk
A55: -1464x | B55: Investitionsbeiträge an öffentliche Unternehmungen weitere Spezialfinanzierungen
A56: -14651 | B56: Investitionsbeiträge an private Unternehmungen Wasserwerk
A57: -14652 | B57: Investitionsbeiträge an private Unternehmungen Abwasserbeseitigung
A58: -14653 | B58: Investitionsbeiträge an private Unternehmungen Abfallwirtschaft
A59: -14654 | B59: Investitionsbeiträge an private Unternehmungen Elektrizitätswerk
A60: -1465x | B60: Investitionsbeiträge an private Unternehmungen weitere Spezialfinanzierungen
A61: -14661 | B61: Investitionsbeiträge an private Organisationen ohne Erwerbszweck Wasserwerk
A62: -14662 | B62: Investitionsbeiträge an private Org. ohne Erwerbszweck Abwasserbeseitigung
A63: -14663 | B63: Investitionsbeiträge an private Org. ohne Erwerbszweck Abfallwirtschaft
A64: -14664 | B64: Investitionsbeiträge an private Org. ohne Erwerbszweck Elektrizitätswerk
A65: -1466x | B65: Investitionsbeiträge an private Org. ohne Erwerbszweck weitere Spezialfinanzierungen
A66: -14671 | B66: Investitionsbeiträge an private Haushalte Wasserwerk
A67: -14672 | B67: Investitionsbeiträge an private Haushalte Abwasserbeseitigung
A68: -14673 | B68: Investitionsbeiträge an private Haushalte Abfallwirtschaft
A69: -14674 | B69: Investitionsbeiträge an private Haushalte Elektrizitätswerk
A70: -1467x | B70: Investitionsbeiträge an private Haushalte weitere Spezialfinanzierungen
A71: -14691 | B71: Investitionsbeiträge an Anlagen im Bau Wasserwerk
A72: -14692 | B72: Investitionsbeiträge an Anlagen im Bau Abwasserbeseitigung
A73: -14693 | B73: Investitionsbeiträge an Anlagen im Bau Abfallwirtschaft
A74: -14694 | B74: Investitionsbeiträge an Anlagen im Bau Elektrizitätswerk
A75: -1469x | B75: Investitionsbeiträge an Anlagen im Bau weitere Spezialfinanzierungen
A76: -10 | B76: Finanzvermögen
A77: ="Nettoschuld I per 31.12."&Ausgangslage!D5-2 -> Nettoschuld I per 31.12.2022 | E77: ( + = Schuld / - = Vermögen) | H77: =ROUND(H4+SUM(H5:H9)-H10-SUM(H11:H75)-H76,0) -> 0

Sheet Investitionsplan
A1: Investitionsplan
A2: ohne Spezialfinanzierungen
E3: Investitionen | V3: Abschreibungen
E4: Vorjahre | F4: =Ausgangslage!D5-1 -> 2023 | G4: =F4+1 -> 2024 | H4: =G4+1 -> 2025 | I4: 2026 | J4: 2027 | K4: 2028 | L4: 2029 | M4: 2030 | N4: 2031 | O4: 2032 | P4: 2033 | Q4: ="ab "&P4+1 -> ab 2034 | R4: Kate- gorie | S4: ND | T4: Inbetrieb- nahme | U4: ohne Abschr. | V4: =G4 -> 2024 | W4: =G4+1 -> 2025 | X4: =H4+1 -> 2026 | Y4: 2027 | Z4: 2028 | AA4: 2029 | AB4: 2030 | AC4: 2031 | AD4: 2032 | AE4: 2033
A5: >> Abschreibungen aus Anlagebuchhaltung: | F5: >> | I5: >> | L5: >> | O5: >> | T5: >>
A6: Funktion | B6: Bezeichnung | C6: Code | D6: Kredit
V7: =ROUND(IF(AND(V$4>=$T7+1,$S7<>0,V$4<$T7+1+$S7,$U7<>"x"),$D7/$S7,0),0) -> 0 | W7: =ROUND(IF(AND(W$4>=$T7+1,$S7<>0,W$4<$T7+1+$S7,$U7<>"x"),$D7/$S7,0),0) -> 0 | X7: 0 | Y7: 0 | Z7: 0 | AA7: 0 | AB7: 0 | AC7: 0 | AD7: 0 | AE7: 0
V8: =ROUND(IF(AND(V$4>=$T8+1,$S8<>0,V$4<$T8+1+$S8,$U8<>"x"),$D8/$S8,0),0) -> 0 | W8: 0 | X8: 0 | Y8: 0 | Z8: 0 | AA8: 0 | AB8: 0 | AC8: 0 | AD8: 0 | AE8: 0
B9: T o t a l | D9: =SUM(D$7:INDEX(D:D,ROW()-1)) -> 0 | E9: =SUM(E$6:INDEX(E:E,ROW()-1)) -> 0 | F9: =SUM(F$6:INDEX(F:F,ROW()-1)) -> 0 | G9: =SUM(G$6:INDEX(G:G,ROW()-1)) -> 0 | H9: =SUM(H$6:INDEX(H:H,ROW()-1)) -> 0 | I9: =SUM(I$6:INDEX(I:I,ROW()-1)) -> 0 | J9: =SUM(J$6:INDEX(J:J,ROW()-1)) -> 0 | K9: =SUM(K$6:INDEX(K:K,ROW()-1)) -> 0 | L9: =SUM(L$6:INDEX(L:L,ROW()-1)) -> 0 | M9: =SUM(M$6:INDEX(M:M,ROW()-1)) -> 0 | N9: =SUM(N$6:INDEX(N:N,ROW()-1)) -> 0 | O9: =SUM(O$6:INDEX(O:O,ROW()-1)) -> 0 | P9: =SUM(P$6:INDEX(P:P,ROW()-1)) -> 0 | Q9: =SUM(Q$6:INDEX(Q:Q,ROW()-1)) -> 0 | V9: =SUM(V$5:INDEX(V:V,ROW()-1)) -> 0 | W9: =SUM(W$5:INDEX(W:W,ROW()-1)) -> 0 | X9: =SUM(X$5:INDEX(X:X,ROW()-1)) -> 0 | Y9: =SUM(Y$5:INDEX(Y:Y,ROW()-1)) -> 0 | Z9: =SUM(Z$5:INDEX(Z:Z,ROW()-1)) -> 0 | AA9: =SUM(AA$5:INDEX(AA:AA,ROW()-1)) -> 0 | AB9: =SUM(AB$5:INDEX(AB:AB,ROW()-1)) -> 0 | AC9: =SUM(AC$5:INDEX(AC:AC,ROW()-1)) -> 0 | AD9: =SUM(AD$5:INDEX(AD:AD,ROW()-1)) -> 0 | AE9: =SUM(AE$5:INDEX(AE:AE,ROW()-1)) -> 0
D10: =IF(SUM(E9:Q9)=D9,"","Achtung: geplante Investitionen stimmen nicht mit Kreditbetrag überein.") -> 
A11: Code:
A12: 1 = geplant
A13: 2 = beschlossen
A14: 3 = in Bau

Sheet Budget
A1: ="Budget "&Ausgangslage!D5-1&" / Budget "&Ausgangslage!D5 -> Budget 2023 / Budget 2024
C3: =Ausgangslage!D5-1 -> 2023 | D3: Δ | E3: =C3 -> 2023 | G3: =Ausgangslage!D5 -> 2024
C4: Budget | E4: =IF(Ausgangslage!$S$10=1,"Prognose","IST") -> Prognose | G4: Budget
A5: Einwohnerzahl 31.12. | E5: =C5+D5 -> 0
A6: Steuerfuss | E6: =C6 -> 0%
A8: ERFOLGSAUSWEIS EINWOHNERGEMEINDE | C8: Budget | D8: Δ | E8: =E4 -> Prognose | G8: Budget
A9: OHNE SPEZIALFINANZIERUNGEN | C9: =C3 -> 2023 | E9: =E3 -> 2023 | G9: =G3 -> 2024
A10: Betrieblicher Aufwand | C10: =ROUND(C12+C16+C22+C28+C33,0) -> 0 | D10: =ROUND(D12+D16+D22+D28+D33,0) -> 0 | E10: =ROUND(E12+E16+E22+E28+E33,0) -> 0 | G10: =ROUND(G12+G16+G22+G28+G33,0) -> 0
A12: 30 | B12: Personalaufwand | E12: =C12+D12 -> 0
B13: Bemerkung Δ:
A16: 31 | B16: Sach- und übriger Betriebsaufwand | D16: =SUM(D17:D18) -> 0 | E16: =D16+C16 -> 0
A17: 31 | B17: Sach-/übriger Betriebsaufwand ohne Abschr. Steuern | C17: =C16-C18 -> 0 | E17: =C17+D17 -> 0 | G17: =G16-G18 -> 0
B18: Abschreibungen Steuerforderungen | C18: =C46 -> 0 | D18: =D46 -> 0 | E18: =C18+D18 -> 0 | G18: =G46 -> 0
B19: Bemerkung Δ:
A22: 33 | B22: Abschreibungen Verwaltungsvermögen inkl. 366 | C22: =C23+C24 -> 0 | D22: =D23+D24 -> 0 | E22: =C22+D22 -> 0 | G22: =G23+G24 -> 0
A23: 330/332 | B23: Abschreibungen Sachanlagen VV / immaterielle Anlagen, alle ohne SF | E23: =C23+D23 -> 0
A24: 366 | B24: Abschreibungen Investitionsbeiträge ohne SF | C24: =C36 -> 0 | D24: =D36 -> 0 | E24: =C24+D24 -> 0 | G24: =G36 -> 0
B25: Bemerkung Δ:
A28: 35 | B28: Einlagen in Fonds | E28: =C28+D28 -> 0
A29: 350 | B29: davon Einlagen in Fonds Fremdkapital | E29: =C29+D29 -> 0
B30: Bemerkung Δ:
A33: 36 | B33: Transferaufwand ohne 366 | C33: =C34-C36 -> 0 | D33: =D37 -> 0 | E33: =C33+D33 -> 0 | G33: =G34-G36 -> 0
A34: 36 | B34: Transferaufwand | D34: =D37 -> 0 | E34: =C34+D34 -> 0
A35: 3621 | B35: Finanzausgleichsabgabe | C35: 0 | E35: =C35 -> 0 | G35: =Prognosen!E29 -> 0
A36: 366 | B36: Abschreibungen Investitionsbeiträge ohne SF | E36: =C36+D36 -> 0
B37: Transferaufwand, ohne Finanzausgleich und ohne Abschreibungen Investitionsbeiträge | C37: =C33-C35 -> 0 | E37: =C37+D37 -> 0 | G37: =G33-G35 -> 0
B38: Bemerkung Δ:
A41: Betrieblicher Ertrag | C41: =ROUND(C43+C58+C62+C66+C70+C75,0) -> 0 | D41: =ROUND(D43+D58+D62+D66+D70+D75,0) -> 0 | E41: =ROUND(E43+E58+E62+E66+E70+E75,0) -> 0 | G41: =ROUND(G43+G58+G62+G66+G70+G75,0) -> 0
A43: 40 | B43: Fiskalertrag | C43: =C45+C47+C48+C52+C54 -> 0 | D43: =D45+D47+D48+D52+D54 -> 0 | E43: =C43+D43 -> 0 | G43: =G45+G47+G48+G52+G54 -> 0
A44: Funktion 9100 Allgemeine Gemeindesteuern:
A45: 4000/1 | B45: Einkommens- und Vermögenssteuern nat. Pers. | E45: 0
A46: 31 | B46: Abschreibungen Steuerforderungen | E46: 0
A47: 4002 | B47: Quellensteuern | E47: 0
A48: 4010 | B48: Gewinn- und Kapitalsteuern jur. Pers. | E48: 0
B49: Bemerkung Δ:
A51: Funktion 9101 Sondersteuern:
A52: 40 | B52: Sondersteuern | E52: 0
A53: Übrige Funktionen (z.B. 8120 Strukturverbesserungen):
A54: 40 | B54: Fiskalertrag | E54: =C54+D54 -> 0
B55: Bemerkung Δ:
A58: 41 | B58: Regalien und Konzessionen | E58: =C58+D58 -> 0
B59: Bemerkung Δ:
A62: 42 | B62: Entgelte | E62: =C62+D62 -> 0
B63: Bemerkung Δ:
A66: 43 | B66: Verschiedene Erträge | E66: =C66+D66 -> 0
B67: Bemerkung Δ:
A70: 45 | B70: Entnahmen aus Fonds | E70: =C70+D70 -> 0
A71: 450 | B71: davon Entnahmen aus Fonds Fremdkapital | E71: =C71+D71 -> 0
B72: Bemerkung Δ:
A75: 46 | B75: Transferertrag | D75: =D77 -> 0 | E75: =C75+D75 -> 0
A76: 4621 | B76: Finanzausgleichsbeitrag (inkl. Ergänzungs- und Übergangsbeiträge sowie Feinausgleich) | C76: 0 | E76: =C76 -> 0 | G76: =SUM(Prognosen!E30:E33) -> 0
B77: Transferertrag ohne Finanzausgleich | C77: =C75-C76 -> 0 | E77: =C77+D77 -> 0 | G77: =G75-G76 -> 0
B78: Bemerkung Δ:
A81: Ergebnis aus betrieblicher Tätigkeit | C81: =C41-C10 -> 0 | D81: =D41-D10 -> 0 | E81: =E41-E10 -> 0 | G81: =G41-G10 -> 0
A83: 34 | B83: Finanzaufwand | E83: =C83+D83 -> 0
B84: Bemerkung Δ:
A87: 44 | B87: Finanzertrag | E87: =C87+D87 -> 0
B88: Bemerkung Δ:
A91: Ergebnis aus Finanzierung | C91: =ROUND(C87-C83,0) -> 0 | D91: =ROUND(D87-D83,0) -> 0 | E91: =ROUND(E87-E83,0) -> 0 | G91: =ROUND(G87-G83,0) -> 0
A93: Operatives Ergebnis | C93: =C81+C91 -> 0 | D93: =D81+D91 -> 0 | E93: =E81+E91 -> 0 | G93: =G81+G91 -> 0
A95: Ausserordentliches Ergebnis | C95: =-C96+C100 -> 0 | D95: =-D96+D100 -> 0 | E95: 0 | G95: =-G96+G100 -> 0
A96: 38 | B96: Ausserordentlicher Aufwand | C96: 0 | E96: =C96+D96 -> 0 | G96: =Prognosen!E43 -> 0
A97: 389 | B97: davon Einlagen in das EK | C97: 0 | E97: =C97+D97 -> 0 | G97: =Prognosen!E44 -> 0
A98: 3899 | B98: davon Abtragung Bilanzfehlbetrag | E98: =C98+D98 -> 0
A100: 48 | B100: Ausserordentlicher Ertrag | C100: 0 | E100: =C100+D100 -> 0 | G100: =Prognosen!E45 -> 0
A101: 489 | B101: davon Entnahmen aus dem EK | C101: 0 | E101: =C101+D101 -> 0 | G101: =Prognosen!E46 -> 0
A102: 4895 | B102: davon Entnahme Aufwertungsreserve ohne SF | C102: 0 | E102: =C102 -> 0 | G102: =Prognosen!E38 -> 0
B103: Bemerkung Δ:
A106: Gesamtergebnis Erfolgsrechnung | C106: =ROUND(C93+C95,0) -> 0 | D106: =ROUND(D93+D95,0) -> 0 | E106: 0 | G106: =ROUND(G93+G95,0) -> 0

Sheet Prognosen
A1: Prognosen
A3: Plangrössen / Einflussfaktoren | C3: =Ausgangslage!D5-1 -> 2023 | D3: =C3 -> 2023 | E3: =Ausgangslage!D5 -> 2024 | F3: =E3+1 -> 2025 | G3: =F3+1 -> 2026 | H3: 2027 | I3: 2028 | J3: 2029 | K3: 2030 | L3: 2031 | M3: 2032 | N3: =M3+1 -> 2033
C4: Budget | D4: =Budget!E4 -> Prognose | E4: 1. Planjahr | F4: 2. Planjahr | G4: 3. Planjahr | H4: 4. Planjahr | I4: 5. Planjahr | J4: 6. Planjahr | K4: 7. Planjahr | L4: 8. Planjahr | M4: 9. Planjahr | N4: 10. Planjahr
A5: Einwohnerzahl | C5: =Budget!C5 -> 0 | D5: =Budget!E5 -> 0 | E5: =Budget!G5 -> 0
A6: Steuerfuss | C6: =Budget!C6 -> 0% | D6: =Budget!E6 -> 0% | E6: =Budget!G6 -> 0%
A7: Zuwachsrate Personalaufwand
A8: Zuwachsrate Sach- und übriger Betriebsaufwand
A9: Zuwachsrate Transferaufwand (ohne FLA)
A10: Zuwachsrate Entgelte
A11: Zuwachsrate Transferertrag (ohne FLA)
A12: Zinssatz für Neukredite
A13: Zinssatz flüssige Mittel
A15: Prognosen Steuerertrag | C15: =C3 -> 2023 | D15: =D3 -> 2023 | E15: =E3 -> 2024 | F15: =F3 -> 2025 | G15: 2026 | H15: 2027 | I15: 2028 | J15: 2029 | K15: 2030 | L15: 2031 | M15: 2032 | N15: =N3 -> 2033
A16: 4000/1 | B16: Einkommens- und Vermögenssteuern nat. Pers. | C16: =Budget!C45 -> 0 | D16: =Budget!E45 -> 0 | E16: =Budget!G45 -> 0 | F16: =IF(OR(E16=0,E19=0),0,ROUND((E16/100*(100+F18+F17)/E19*F19),0)) -> 0 | G16: =IF(OR(F16=0,F19=0),0,ROUND((F16/100*(100+G18+G17)/F19*G19),0)) -> 0 | H16: 0 | I16: 0 | J16: 0 | K16: 0 | L16: 0 | M16: 0 | N16: 0
B17: Wachstumsrate
B18: Bevölkerungswachstum in % | F18: =IF(OR(E5=0,F5=0,F5=""),0,ROUND(100/E5*(F5-E5),1)) -> 0.0% | G18: =IF(OR(F5=0,G5=0,G5=""),0,ROUND(100/F5*(G5-F5),1)) -> 0.0% | H18: 0.0% | I18: 0.0% | J18: 0.0% | K18: 0.0% | L18: 0.0% | M18: 0.0% | N18: 0.0%
B19: Steuerfuss | C19: =C6 -> 0% | D19: 0% | E19: 0% | F19: 0% | G19: 0% | H19: 0% | I19: 0% | J19: 0% | K19: 0% | L19: 0% | M19: 0% | N19: =N6 -> 0%
A20: 31 | B20: Abschreibungen Steuerforderungen | C20: =Budget!C46 -> 0 | D20: =Budget!E46 -> 0 | E20: =Budget!G46 -> 0
A21: 4002 | B21: Quellensteuern | C21: =Budget!C47 -> 0 | D21: =Budget!E47 -> 0 | E21: =Budget!G47 -> 0
A22: 4010 | B22: Gewinn- und Kapitalsteuern juristische Personen | C22: =Budget!C48 -> 0 | D22: =Budget!E48 -> 0 | E22: =Budget!G48 -> 0
A23: Total Gemeindesteuern | C23: =C16-C20+C21+C22 -> 0 | D23: =D16-D20+D21+D22 -> 0 | E23: 0 | F23: 0 | G23: 0 | H23: 0 | I23: 0 | J23: 0 | K23: 0 | L23: 0 | M23: 0 | N23: 0
A24: 40 | B24: Sondersteuern Funktion 9101 | C24: =Budget!C52 -> 0 | D24: =Budget!E52 -> 0 | E24: =Budget!G52 -> 0
A25: 40 | B25: Fiskalertrag übrige Funktionen | C25: =Budget!C54 -> 0 | D25: =Budget!E54 -> 0 | E25: =Budget!G54 -> 0
A27: Finanzausgleich | E27: =E3 -> 2024 | F27: 2025 | G27: 2026 | H27: 2027 | I27: 2028 | J27: 2029 | K27: 2030 | L27: 2031 | M27: 2032 | N27: 2033
E28: 1. Planjahr | F28: 2. Planjahr | G28: 3. Planjahr | H28: 4. Planjahr | I28: 5. Planjahr | J28: 6. Planjahr | K28: 7. Planjahr | L28: 8. Planjahr | M28: 9. Planjahr | N28: 10. Planjahr
A29: 3621.50 | B29: Abgabe Finanzausgleich
A30: 4621.50 | B30: Beitrag Finanzausgleich
A31: 4621.51 | B31: Ordentl. Ergänzungsbeiträge (ab 2020 möglich)
A32: 4621.52 | B32: Übergangsbeiträge (2018 - 2021 möglich)
A33: 4621.60 | B33: Feinausgleich Aufgabenverschiebungsbilanz
A35: Entnahme Aufwertungsreserve (Details in Tabellenblatt EK) | D35: =D3 -> 2023 | E35: 2024 | F35: 2025 | G35: 2026 | H35: 2027 | I35: 2028 | J35: 2029 | K35: 2030 | L35: 2031 | M35: 2032 | N35: 2033
D36: Prognose | E36: 1. Planjahr | F36: 2. Planjahr | G36: 3. Planjahr | H36: 4. Planjahr | I36: 5. Planjahr | J36: 6. Planjahr | K36: 7. Planjahr | L36: 8. Planjahr | M36: 9. Planjahr | N36: 10. Planjahr
A37: 29500.01 | B37: Saldo Aufwertungsreserve übr. Anlagen per 01.01. | D37: =EK!C4 -> 0 | E37: =EK!D4 -> 0 | F37: =EK!E4 -> 0 | G37: =EK!F4 -> 0 | H37: =EK!G4 -> 0 | I37: =EK!H4 -> 0 | J37: =EK!I4 -> 0 | K37: =EK!J4 -> 0 | L37: =EK!K4 -> 0 | M37: =EK!L4 -> 0 | N37: =EK!M4 -> 0
A38: 4895 | B38: Entnahme Aufwertungsreserve | D38: =Budget!E102 -> 0 | E38: 0 | F38: 0 | G38: 0 | H38: 0 | I38: 0 | J38: 0 | K38: 0
A39: 29500.01 | B39: Saldo Aufwertungsreserve übr. Anlagen per 31.12. | D39: =EK!C9-EK!C5 -> 0 | E39: =EK!D9-EK!D5 -> 0 | F39: =EK!E9-EK!E5 -> 0 | G39: =EK!F9-EK!F5 -> 0 | H39: =EK!G9-EK!G5 -> 0 | I39: =EK!H9-EK!H5 -> 0 | J39: =EK!I9-EK!I5 -> 0 | K39: =EK!J9-EK!J5 -> 0 | L39: =EK!K9-EK!K5 -> 0 | M39: =EK!L9-EK!L5 -> 0 | N39: =EK!M9-EK!M5 -> 0
A41: Ausserordentliches Ergebnis | D41: =D3 -> 2023 | E41: =E3 -> 2024 | F41: 2025 | G41: 2026 | H41: 2027 | I41: 2028 | J41: 2029 | K41: 2030 | L41: 2031 | M41: 2032 | N41: 2033
D42: Prognose | E42: 1. Planjahr | F42: 2. Planjahr | G42: 3. Planjahr | H42: 4. Planjahr | I42: 5. Planjahr | J42: 6. Planjahr | K42: 7. Planjahr | L42: 8. Planjahr | M42: 9. Planjahr | N42: 10. Planjahr
A43: 38 | B43: Ausserordentlicher Aufwand | D43: =Budget!E96 -> 0
A44: 389 | B44: davon Einlagen in das EK | D44: =Budget!E97 -> 0
A45: 48 | B45: Ausserordentlicher Ertrag | D45: =Budget!E100 -> 0
A46: 489 | B46: davon Entnahmen aus dem EK | D46: =Budget!E101 -> 0
A48: Veränderungen Erfolgsrechnung | F48: =F3 -> 2025 | G48: 2026 | H48: 2027 | I48: 2028 | J48: 2029 | K48: 2030 | L48: 2031 | M48: 2032 | N48: 2033
F49: 2. Planjahr | G49: 3. Planjahr | H49: 4. Planjahr | I49: 5. Planjahr | J49: 6. Planjahr | K49: 7. Planjahr | L49: 8. Planjahr | M49: 9. Planjahr | N49: 10. Planjahr
A50: + = Belastung / - = Entlastung
A51: 0 Allgemeine Verwaltung | F51: =SUM(F52:F55) -> 0 | G51: =SUM(G52:G55) -> 0 | H51: 0 | I51: 0 | J51: 0 | K51: 0 | L51: 0 | M51: 0 | N51: 0
A56: 1 Öffentliche Ordnung und Sicherheit, Verteidigung | F56: =SUM(F57:F60) -> 0 | G56: =SUM(G57:G60) -> 0 | H56: 0 | I56: 0 | J56: 0 | K56: 0 | L56: 0 | M56: 0 | N56: =SUM(N57:N60) -> 0
A61: 2 Bildung | F61: =SUM(F62:F65) -> 0 | G61: 0 | H61: 0 | I61: 0 | J61: 0 | K61: 0 | L61: 0 | M61: 0 | N61: =SUM(N62:N65) -> 0
A66: 3 Kultur, Sport und Freizeit | F66: =SUM(F67:F70) -> 0 | G66: 0 | H66: 0 | I66: 0 | J66: 0 | K66: 0 | L66: 0 | M66: 0 | N66: =SUM(N67:N70) -> 0
A71: 4 Gesundheit | F71: =SUM(F72:F75) -> 0 | G71: 0 | H71: 0 | I71: 0 | J71: 0 | K71: 0 | L71: 0 | M71: 0 | N71: =SUM(N72:N75) -> 0
A76: 5 Soziale Sicherheit | F76: =SUM(F77:F80) -> 0 | G76: 0 | H76: 0 | I76: 0 | J76: 0 | K76: 0 | L76: 0 | M76: 0 | N76: =SUM(N77:N80) -> 0
A81: 6 Verkehr und Nachrichtenübermittlung | F81: =SUM(F82:F85) -> 0 | G81: 0 | H81: 0 | I81: 0 | J81: 0 | K81: 0 | L81: 0 | M81: 0 | N81: =SUM(N82:N85) -> 0
A86: 7 Umweltschutz und Raumordnung | F86: =SUM(F87:F90) -> 0 | G86: 0 | H86: 0 | I86: 0 | J86: 0 | K86: 0 | L86: 0 | M86: 0 | N86: =SUM(N87:N90) -> 0
A91: 8 Volkswirtschaft | F91: =SUM(F92:F95) -> 0 | G91: 0 | H91: 0 | I91: 0 | J91: 0 | K91: 0 | L91: 0 | M91: 0 | N91: =SUM(N92:N95) -> 0
A96: 9 Finanzen und Steuern | F96: =SUM(F97:F100) -> 0 | G96: 0 | H96: 0 | I96: 0 | J96: 0 | K96: 0 | L96: 0 | M96: 0 | N96: =SUM(N97:N100) -> 0
A101: Total Veränderung Erfolgsrechnung (+ = Belastung / - = Entlastung) | F101: =F51+F56+F61+F66+F71+F76+F81+F86+F91+F96 -> 0 | G101: =G51+G56+G61+G66+G71+G76+G81+G86+G91+G96 -> 0 | H101: 0 | I101: =I51+I56+I61+I66+I71+I76+I81+I86+I91+I96 -> 0 | J101: 0 | K101: 0 | L101: 0 | M101: 0 | N101: =N51+N56+N61+N66+N71+N76+N81+N86+N91+N96 -> 0

Sheet Schulden-Zinsen
A1: Schulden / Mittelbedarf / Zinsen
A3: Berechnung Finanzierungsergebnis | C3: =D3-1 -> 2022 | D3: =E3-1 -> 2023 | E3: =Ausgangslage!D5 -> 2024 | F3: =E3+1 -> 2025 | G3: 2026 | H3: 2027 | I3: 2028 | J3: 2029 | K3: 2030 | L3: 2031 | M3: 2032 | N3: =M3+1 -> 2033
C4: Rechnung | D4: =Budget!E4 -> Prognose | E4: 1. Planjahr | F4: 2. Planjahr | G4: 3. Planjahr | H4: 4. Planjahr | I4: 5. Planjahr | J4: 6. Planjahr | K4: 7. Planjahr | L4: 8. Planjahr | M4: 9. Planjahr | N4: 10. Planjahr
A5: Nettoinvestitionszunahme/-abnahme (- = Zunahme) | D5: =-Investitionsplan!F9 -> 0 | E5: =-Investitionsplan!G9 -> 0 | F5: =-Investitionsplan!H9 -> 0 | G5: =-Investitionsplan!I9 -> 0 | H5: =-Investitionsplan!J9 -> 0 | I5: =-Investitionsplan!K9 -> 0 | J5: =-Investitionsplan!L9 -> 0 | K5: =-Investitionsplan!M9 -> 0 | L5: =-Investitionsplan!N9 -> 0 | M5: =-Investitionsplan!O9 -> 0 | N5: =-Investitionsplan!P9 -> 0
A6: Gesamtergebnis Erfolgsrechnung | D6: ='Plan-ER'!D53 -> 0 | E6: ='Plan-ER'!E53 -> 0 | F6: ='Plan-ER'!F53 -> 0 | G6: ='Plan-ER'!G53 -> 0 | H6: ='Plan-ER'!H53 -> 0 | I6: ='Plan-ER'!I53 -> 0 | J6: ='Plan-ER'!J53 -> 0 | K6: ='Plan-ER'!K53 -> 0 | L6: ='Plan-ER'!L53 -> 0 | M6: ='Plan-ER'!M53 -> 0 | N6: ='Plan-ER'!N53 -> 0
A7: Abschreibungen Verwaltungsvermögen | D7: ='Plan-ER'!D13 -> 0 | E7: ='Plan-ER'!E13 -> 0 | F7: ='Plan-ER'!F13 -> 0 | G7: ='Plan-ER'!G13 -> 0 | H7: ='Plan-ER'!H13 -> 0 | I7: ='Plan-ER'!I13 -> 0 | J7: ='Plan-ER'!J13 -> 0 | K7: ='Plan-ER'!K13 -> 0 | L7: ='Plan-ER'!L13 -> 0 | M7: ='Plan-ER'!M13 -> 0 | N7: ='Plan-ER'!N13 -> 0
A8: Einlagen / Entnahmen Fonds | D8: ='Plan-ER'!D15-'Plan-ER'!D35 -> 0 | E8: ='Plan-ER'!E15-'Plan-ER'!E35 -> 0 | F8: ='Plan-ER'!F15-'Plan-ER'!F35 -> 0 | G8: ='Plan-ER'!G15-'Plan-ER'!G35 -> 0 | H8: ='Plan-ER'!H15-'Plan-ER'!H35 -> 0 | I8: ='Plan-ER'!I15-'Plan-ER'!I35 -> 0 | J8: ='Plan-ER'!J15-'Plan-ER'!J35 -> 0 | K8: ='Plan-ER'!K15-'Plan-ER'!K35 -> 0 | L8: ='Plan-ER'!L15-'Plan-ER'!L35 -> 0 | M8: ='Plan-ER'!M15-'Plan-ER'!M35 -> 0 | N8: ='Plan-ER'!N15-'Plan-ER'!N35 -> 0
A9: Einlagen in das Eigenkapital | D9: =Prognosen!D44 -> 0 | E9: =Prognosen!E44 -> 0 | F9: =Prognosen!F44 -> 0 | G9: =Prognosen!G44 -> 0 | H9: =Prognosen!H44 -> 0 | I9: =Prognosen!I44 -> 0 | J9: =Prognosen!J44 -> 0 | K9: =Prognosen!K44 -> 0 | L9: =Prognosen!L44 -> 0 | M9: =Prognosen!M44 -> 0 | N9: =Prognosen!N44 -> 0
A10: Entnahmen aus dem Eigenkapital | D10: =-Prognosen!D46+Prognosen!D38+EK!C6 -> 0 | E10: =-Prognosen!E46+Prognosen!E38+EK!D6 -> 0 | F10: =-Prognosen!F46+Prognosen!F38+EK!E6 -> 0 | G10: =-Prognosen!G46+Prognosen!G38+EK!F6 -> 0 | H10: =-Prognosen!H46+Prognosen!H38+EK!G6 -> 0 | I10: =-Prognosen!I46+Prognosen!I38+EK!H6 -> 0 | J10: =-Prognosen!J46+Prognosen!J38+EK!I6 -> 0 | K10: =-Prognosen!K46+Prognosen!K38+EK!J6 -> 0 | L10: =-Prognosen!L46+Prognosen!L38+EK!K6 -> 0 | M10: =-Prognosen!M46+Prognosen!M38+EK!L6 -> 0 | N10: =-Prognosen!N46+Prognosen!N38+EK!M6 -> 0
A11: Selbstfinanzierung | D11: =D6+D7+D8+D9+D10 -> 0 | E11: =E6+E7+E8+E9+E10 -> 0 | F11: 0 | G11: 0 | H11: 0 | I11: 0 | J11: 0 | K11: 0 | L11: 0 | M11: 0 | N11: 0
A12: Finanzierungsergebnis ( + = Überschuss / - = Fehlbetrag) | D12: =D5+D11 -> 0 | E12: =E5+E11 -> 0 | F12: 0 | G12: 0 | H12: 0 | I12: 0 | J12: 0 | K12: 0 | L12: 0 | M12: 0 | N12: 0
A14: Berechnung des Mittelbedarfs (+ = Bedarf / - = Überschuss) | C14: =C3 -> 2022 | D14: =D3 -> 2023 | E14: =E3 -> 2024 | F14: =F3 -> 2025 | G14: =G3 -> 2026 | H14: =H3 -> 2027 | I14: 2028 | J14: 2029 | K14: 2030 | L14: 2031 | M14: 2032 | N14: =N3 -> 2033
C15: Rechnung | D15: =D4 -> Prognose | E15: 1. Planjahr | F15: 2. Planjahr | G15: 3. Planjahr | H15: 4. Planjahr | I15: 5. Planjahr | J15: 6. Planjahr | K15: 7. Planjahr | L15: 8. Planjahr | M15: 9. Planjahr | N15: 10. Planjahr
A16: Mittelbedarf aus Finanzierungsergebnis | D16: =-D12 -> 0 | E16: 0 | F16: =-F12 -> 0 | G16: 0 | H16: 0 | I16: 0 | J16: 0 | K16: 0 | L16: 0 | M16: 0 | N16: =-N12 -> 0
A17: Rückzahlung Darlehen/Kredite | D17: =SUM(D18:D40) -> 0 | E17: =SUM(E18:E40) -> 0 | F17: 0 | G17: 0 | H17: 0 | I17: 0 | J17: 0 | K17: 0 | L17: 0 | M17: 0 | N17: 0 | O17: Zinssatz:
A18: =IF(Ausgangslage!A31="","",Ausgangslage!A31) ->  | D18: =IF(Ausgangslage!$L31=D$3,Ausgangslage!$H31,0) -> 0 | E18: =IF(Ausgangslage!$L31=E$3,Ausgangslage!$H31,0) -> 0 | F18: =IF(Ausgangslage!$L31=F$3,Ausgangslage!$H31,0) -> 0 | G18: =IF(Ausgangslage!$L31=G$3,Ausgangslage!$H31,0) -> 0 | H18: =IF(Ausgangslage!$L31=H$3,Ausgangslage!$H31,0) -> 0 | I18: =IF(Ausgangslage!$L31=I$3,Ausgangslage!$H31,0) -> 0 | J18: =IF(Ausgangslage!$L31=J$3,Ausgangslage!$H31,0) -> 0 | K18: =IF(Ausgangslage!$L31=K$3,Ausgangslage!$H31,0) -> 0 | L18: =IF(Ausgangslage!$L31=L$3,Ausgangslage!$H31,0) -> 0 | M18: =IF(Ausgangslage!$L31=M$3,Ausgangslage!$H31,0) -> 0 | N18: =IF(Ausgangslage!$L31=N$3,Ausgangslage!$H31,0) -> 0 | O18: =IF(Ausgangslage!J31="",0,Ausgangslage!J31) -> 0
A19: =IF(Ausgangslage!A32="","",Ausgangslage!A32) ->  | D19: =IF(Ausgangslage!$L32=D$3,Ausgangslage!$H32,0) -> 0 | E19: =IF(Ausgangslage!$L32=E$3,Ausgangslage!$H32,0) -> 0 | F19: =IF(Ausgangslage!$L32=F$3,Ausgangslage!$H32,0) -> 0 | G19: =IF(Ausgangslage!$L32=G$3,Ausgangslage!$H32,0) -> 0 | H19: =IF(Ausgangslage!$L32=H$3,Ausgangslage!$H32,0) -> 0 | I19: =IF(Ausgangslage!$L32=I$3,Ausgangslage!$H32,0) -> 0 | J19: =IF(Ausgangslage!$L32=J$3,Ausgangslage!$H32,0) -> 0 | K19: =IF(Ausgangslage!$L32=K$3,Ausgangslage!$H32,0) -> 0 | L19: =IF(Ausgangslage!$L32=L$3,Ausgangslage!$H32,0) -> 0 | M19: =IF(Ausgangslage!$L32=M$3,Ausgangslage!$H32,0) -> 0 | N19: =IF(Ausgangslage!$L32=N$3,Ausgangslage!$H32,0) -> 0 | O19: =IF(Ausgangslage!J32="",0,Ausgangslage!J32) -> 0
A20: =IF(Ausgangslage!A33="","",Ausgangslage!A33) ->  | D20: =IF(Ausgangslage!$L33=D$3,Ausgangslage!$H33,0) -> 0 | E20: =IF(Ausgangslage!$L33=E$3,Ausgangslage!$H33,0) -> 0 | F20: =IF(Ausgangslage!$L33=F$3,Ausgangslage!$H33,0) -> 0 | G20: =IF(Ausgangslage!$L33=G$3,Ausgangslage!$H33,0) -> 0 | H20: =IF(Ausgangslage!$L33=H$3,Ausgangslage!$H33,0) -> 0 | I20: =IF(Ausgangslage!$L33=I$3,Ausgangslage!$H33,0) -> 0 | J20: =IF(Ausgangslage!$L33=J$3,Ausgangslage!$H33,0) -> 0 | K20: =IF(Ausgangslage!$L33=K$3,Ausgangslage!$H33,0) -> 0 | L20: =IF(Ausgangslage!$L33=L$3,Ausgangslage!$H33,0) -> 0 | M20: =IF(Ausgangslage!$L33=M$3,Ausgangslage!$H33,0) -> 0 | N20: =IF(Ausgangslage!$L33=N$3,Ausgangslage!$H33,0) -> 0 | O20: =IF(Ausgangslage!J33="",0,Ausgangslage!J33) -> 0
A21: =IF(Ausgangslage!A34="","",Ausgangslage!A34) ->  | D21: =IF(Ausgangslage!$L34=D$3,Ausgangslage!$H34,0) -> 0 | E21: =IF(Ausgangslage!$L34=E$3,Ausgangslage!$H34,0) -> 0 | F21: =IF(Ausgangslage!$L34=F$3,Ausgangslage!$H34,0) -> 0 | G21: =IF(Ausgangslage!$L34=G$3,Ausgangslage!$H34,0) -> 0 | H21: =IF(Ausgangslage!$L34=H$3,Ausgangslage!$H34,0) -> 0 | I21: =IF(Ausgangslage!$L34=I$3,Ausgangslage!$H34,0) -> 0 | J21: =IF(Ausgangslage!$L34=J$3,Ausgangslage!$H34,0) -> 0 | K21: =IF(Ausgangslage!$L34=K$3,Ausgangslage!$H34,0) -> 0 | L21: =IF(Ausgangslage!$L34=L$3,Ausgangslage!$H34,0) -> 0 | M21: =IF(Ausgangslage!$L34=M$3,Ausgangslage!$H34,0) -> 0 | N21: =IF(Ausgangslage!$L34=N$3,Ausgangslage!$H34,0) -> 0 | O21: =IF(Ausgangslage!J34="",0,Ausgangslage!J34) -> 0
A22: =IF(Ausgangslage!A35="","",Ausgangslage!A35) ->  | D22: =IF(Ausgangslage!$L35=D$3,Ausgangslage!$H35,0) -> 0 | E22: =IF(Ausgangslage!$L35=E$3,Ausgangslage!$H35,0) -> 0 | F22: =IF(Ausgangslage!$L35=F$3,Ausgangslage!$H35,0) -> 0 | G22: =IF(Ausgangslage!$L35=G$3,Ausgangslage!$H35,0) -> 0 | H22: =IF(Ausgangslage!$L35=H$3,Ausgangslage!$H35,0) -> 0 | I22: =IF(Ausgangslage!$L35=I$3,Ausgangslage!$H35,0) -> 0 | J22: =IF(Ausgangslage!$L35=J$3,Ausgangslage!$H35,0) -> 0 | K22: =IF(Ausgangslage!$L35=K$3,Ausgangslage!$H35,0) -> 0 | L22: =IF(Ausgangslage!$L35=L$3,Ausgangslage!$H35,0) -> 0 | M22: =IF(Ausgangslage!$L35=M$3,Ausgangslage!$H35,0) -> 0 | N22: =IF(Ausgangslage!$L35=N$3,Ausgangslage!$H35,0) -> 0 | O22: =IF(Ausgangslage!J35="",0,Ausgangslage!J35) -> 0
A23: =IF(Ausgangslage!A36="","",Ausgangslage!A36) ->  | D23: =IF(Ausgangslage!$L36=D$3,Ausgangslage!$H36,0) -> 0 | E23: =IF(Ausgangslage!$L36=E$3,Ausgangslage!$H36,0) -> 0 | F23: =IF(Ausgangslage!$L36=F$3,Ausgangslage!$H36,0) -> 0 | G23: =IF(Ausgangslage!$L36=G$3,Ausgangslage!$H36,0) -> 0 | H23: =IF(Ausgangslage!$L36=H$3,Ausgangslage!$H36,0) -> 0 | I23: =IF(Ausgangslage!$L36=I$3,Ausgangslage!$H36,0) -> 0 | J23: =IF(Ausgangslage!$L36=J$3,Ausgangslage!$H36,0) -> 0 | K23: =IF(Ausgangslage!$L36=K$3,Ausgangslage!$H36,0) -> 0 | L23: =IF(Ausgangslage!$L36=L$3,Ausgangslage!$H36,0) -> 0 | M23: =IF(Ausgangslage!$L36=M$3,Ausgangslage!$H36,0) -> 0 | N23: =IF(Ausgangslage!$L36=N$3,Ausgangslage!$H36,0) -> 0 | O23: =IF(Ausgangslage!J36="",0,Ausgangslage!J36) -> 0
A24: =IF(Ausgangslage!A37="","",Ausgangslage!A37) ->  | D24: =IF(Ausgangslage!$L37=D$3,Ausgangslage!$H37,0) -> 0 | E24: =IF(Ausgangslage!$L37=E$3,Ausgangslage!$H37,0) -> 0 | F24: =IF(Ausgangslage!$L37=F$3,Ausgangslage!$H37,0) -> 0 | G24: =IF(Ausgangslage!$L37=G$3,Ausgangslage!$H37,0) -> 0 | H24: =IF(Ausgangslage!$L37=H$3,Ausgangslage!$H37,0) -> 0 | I24: =IF(Ausgangslage!$L37=I$3,Ausgangslage!$H37,0) -> 0 | J24: =IF(Ausgangslage!$L37=J$3,Ausgangslage!$H37,0) -> 0 | K24: =IF(Ausgangslage!$L37=K$3,Ausgangslage!$H37,0) -> 0 | L24: =IF(Ausgangslage!$L37=L$3,Ausgangslage!$H37,0) -> 0 | M24: =IF(Ausgangslage!$L37=M$3,Ausgangslage!$H37,0) -> 0 | N24: =IF(Ausgangslage!$L37=N$3,Ausgangslage!$H37,0) -> 0 | O24: =IF(Ausgangslage!J37="",0,Ausgangslage!J37) -> 0
A25: =IF(Ausgangslage!A38="","",Ausgangslage!A38) ->  | D25: =IF(Ausgangslage!$L38=D$3,Ausgangslage!$H38,0) -> 0 | E25: =IF(Ausgangslage!$L38=E$3,Ausgangslage!$H38,0) -> 0 | F25: =IF(Ausgangslage!$L38=F$3,Ausgangslage!$H38,0) -> 0 | G25: =IF(Ausgangslage!$L38=G$3,Ausgangslage!$H38,0) -> 0 | H25: =IF(Ausgangslage!$L38=H$3,Ausgangslage!$H38,0) -> 0 | I25: =IF(Ausgangslage!$L38=I$3,Ausgangslage!$H38,0) -> 0 | J25: =IF(Ausgangslage!$L38=J$3,Ausgangslage!$H38,0) -> 0 | K25: =IF(Ausgangslage!$L38=K$3,Ausgangslage!$H38,0) -> 0 | L25: =IF(Ausgangslage!$L38=L$3,Ausgangslage!$H38,0) -> 0 | M25: =IF(Ausgangslage!$L38=M$3,Ausgangslage!$H38,0) -> 0 | N25: =IF(Ausgangslage!$L38=N$3,Ausgangslage!$H38,0) -> 0 | O25: =IF(Ausgangslage!J38="",0,Ausgangslage!J38) -> 0
A26: =IF(Ausgangslage!A39="","",Ausgangslage!A39) ->  | D26: =IF(Ausgangslage!$L39=D$3,Ausgangslage!$H39,0) -> 0 | E26: =IF(Ausgangslage!$L39=E$3,Ausgangslage!$H39,0) -> 0 | F26: =IF(Ausgangslage!$L39=F$3,Ausgangslage!$H39,0) -> 0 | G26: =IF(Ausgangslage!$L39=G$3,Ausgangslage!$H39,0) -> 0 | H26: =IF(Ausgangslage!$L39=H$3,Ausgangslage!$H39,0) -> 0 | I26: =IF(Ausgangslage!$L39=I$3,Ausgangslage!$H39,0) -> 0 | J26: =IF(Ausgangslage!$L39=J$3,Ausgangslage!$H39,0) -> 0 | K26: =IF(Ausgangslage!$L39=K$3,Ausgangslage!$H39,0) -> 0 | L26: =IF(Ausgangslage!$L39=L$3,Ausgangslage!$H39,0) -> 0 | M26: =IF(Ausgangslage!$L39=M$3,Ausgangslage!$H39,0) -> 0 | N26: =IF(Ausgangslage!$L39=N$3,Ausgangslage!$H39,0) -> 0 | O26: =IF(Ausgangslage!J39="",0,Ausgangslage!J39) -> 0
A27: =IF(Ausgangslage!A40="","",Ausgangslage!A40) ->  | D27: =IF(Ausgangslage!$L40=D$3,Ausgangslage!$H40,0) -> 0 | E27: =IF(Ausgangslage!$L40=E$3,Ausgangslage!$H40,0) -> 0 | F27: =IF(Ausgangslage!$L40=F$3,Ausgangslage!$H40,0) -> 0 | G27: =IF(Ausgangslage!$L40=G$3,Ausgangslage!$H40,0) -> 0 | H27: =IF(Ausgangslage!$L40=H$3,Ausgangslage!$H40,0) -> 0 | I27: =IF(Ausgangslage!$L40=I$3,Ausgangslage!$H40,0) -> 0 | J27: =IF(Ausgangslage!$L40=J$3,Ausgangslage!$H40,0) -> 0 | K27: =IF(Ausgangslage!$L40=K$3,Ausgangslage!$H40,0) -> 0 | L27: =IF(Ausgangslage!$L40=L$3,Ausgangslage!$H40,0) -> 0 | M27: =IF(Ausgangslage!$L40=M$3,Ausgangslage!$H40,0) -> 0 | N27: =IF(Ausgangslage!$L40=N$3,Ausgangslage!$H40,0) -> 0 | O27: =IF(Ausgangslage!J40="",0,Ausgangslage!J40) -> 0
A28: =IF(Ausgangslage!A41="","",Ausgangslage!A41) ->  | D28: =IF(Ausgangslage!$L41=D$3,Ausgangslage!$H41,0) -> 0 | E28: =IF(Ausgangslage!$L41=E$3,Ausgangslage!$H41,0) -> 0 | F28: =IF(Ausgangslage!$L41=F$3,Ausgangslage!$H41,0) -> 0 | G28: =IF(Ausgangslage!$L41=G$3,Ausgangslage!$H41,0) -> 0 | H28: =IF(Ausgangslage!$L41=H$3,Ausgangslage!$H41,0) -> 0 | I28: =IF(Ausgangslage!$L41=I$3,Ausgangslage!$H41,0) -> 0 | J28: =IF(Ausgangslage!$L41=J$3,Ausgangslage!$H41,0) -> 0 | K28: =IF(Ausgangslage!$L41=K$3,Ausgangslage!$H41,0) -> 0 | L28: =IF(Ausgangslage!$L41=L$3,Ausgangslage!$H41,0) -> 0 | M28: =IF(Ausgangslage!$L41=M$3,Ausgangslage!$H41,0) -> 0 | N28: =IF(Ausgangslage!$L41=N$3,Ausgangslage!$H41,0) -> 0 | O28: =IF(Ausgangslage!J41="",0,Ausgangslage!J41) -> 0
A29: =IF(Ausgangslage!A42="","",Ausgangslage!A42) ->  | D29: =IF(Ausgangslage!$L42=D$3,Ausgangslage!$H42,0) -> 0 | E29: =IF(Ausgangslage!$L42=E$3,Ausgangslage!$H42,0) -> 0 | F29: =IF(Ausgangslage!$L42=F$3,Ausgangslage!$H42,0) -> 0 | G29: =IF(Ausgangslage!$L42=G$3,Ausgangslage!$H42,0) -> 0 | H29: =IF(Ausgangslage!$L42=H$3,Ausgangslage!$H42,0) -> 0 | I29: =IF(Ausgangslage!$L42=I$3,Ausgangslage!$H42,0) -> 0 | J29: =IF(Ausgangslage!$L42=J$3,Ausgangslage!$H42,0) -> 0 | K29: =IF(Ausgangslage!$L42=K$3,Ausgangslage!$H42,0) -> 0 | L29: =IF(Ausgangslage!$L42=L$3,Ausgangslage!$H42,0) -> 0 | M29: =IF(Ausgangslage!$L42=M$3,Ausgangslage!$H42,0) -> 0 | N29: =IF(Ausgangslage!$L42=N$3,Ausgangslage!$H42,0) -> 0 | O29: =IF(Ausgangslage!J42="",0,Ausgangslage!J42) -> 0
A30: =IF(Ausgangslage!A43="","",Ausgangslage!A43) ->  | D30: =IF(Ausgangslage!$L43=D$3,Ausgangslage!$H43,0) -> 0 | E30: =IF(Ausgangslage!$L43=E$3,Ausgangslage!$H43,0) -> 0 | F30: =IF(Ausgangslage!$L43=F$3,Ausgangslage!$H43,0) -> 0 | G30: =IF(Ausgangslage!$L43=G$3,Ausgangslage!$H43,0) -> 0 | H30: =IF(Ausgangslage!$L43=H$3,Ausgangslage!$H43,0) -> 0 | I30: =IF(Ausgangslage!$L43=I$3,Ausgangslage!$H43,0) -> 0 | J30: =IF(Ausgangslage!$L43=J$3,Ausgangslage!$H43,0) -> 0 | K30: =IF(Ausgangslage!$L43=K$3,Ausgangslage!$H43,0) -> 0 | L30: =IF(Ausgangslage!$L43=L$3,Ausgangslage!$H43,0) -> 0 | M30: =IF(Ausgangslage!$L43=M$3,Ausgangslage!$H43,0) -> 0 | N30: =IF(Ausgangslage!$L43=N$3,Ausgangslage!$H43,0) -> 0 | O30: =IF(Ausgangslage!J43="",0,Ausgangslage!J43) -> 0
A31: =IF(Ausgangslage!A44="","",Ausgangslage!A44) ->  | D31: =IF(Ausgangslage!$L44=D$3,Ausgangslage!$H44,0) -> 0 | E31: =IF(Ausgangslage!$L44=E$3,Ausgangslage!$H44,0) -> 0 | F31: =IF(Ausgangslage!$L44=F$3,Ausgangslage!$H44,0) -> 0 | G31: =IF(Ausgangslage!$L44=G$3,Ausgangslage!$H44,0) -> 0 | H31: =IF(Ausgangslage!$L44=H$3,Ausgangslage!$H44,0) -> 0 | I31: =IF(Ausgangslage!$L44=I$3,Ausgangslage!$H44,0) -> 0 | J31: =IF(Ausgangslage!$L44=J$3,Ausgangslage!$H44,0) -> 0 | K31: =IF(Ausgangslage!$L44=K$3,Ausgangslage!$H44,0) -> 0 | L31: =IF(Ausgangslage!$L44=L$3,Ausgangslage!$H44,0) -> 0 | M31: =IF(Ausgangslage!$L44=M$3,Ausgangslage!$H44,0) -> 0 | N31: =IF(Ausgangslage!$L44=N$3,Ausgangslage!$H44,0) -> 0 | O31: =IF(Ausgangslage!J44="",0,Ausgangslage!J44) -> 0
A32: =IF(Ausgangslage!A45="","",Ausgangslage!A45) ->  | D32: =IF(Ausgangslage!$L45=D$3,Ausgangslage!$H45,0) -> 0 | E32: =IF(Ausgangslage!$L45=E$3,Ausgangslage!$H45,0) -> 0 | F32: =IF(Ausgangslage!$L45=F$3,Ausgangslage!$H45,0) -> 0 | G32: =IF(Ausgangslage!$L45=G$3,Ausgangslage!$H45,0) -> 0 | H32: =IF(Ausgangslage!$L45=H$3,Ausgangslage!$H45,0) -> 0 | I32: =IF(Ausgangslage!$L45=I$3,Ausgangslage!$H45,0) -> 0 | J32: =IF(Ausgangslage!$L45=J$3,Ausgangslage!$H45,0) -> 0 | K32: =IF(Ausgangslage!$L45=K$3,Ausgangslage!$H45,0) -> 0 | L32: =IF(Ausgangslage!$L45=L$3,Ausgangslage!$H45,0) -> 0 | M32: =IF(Ausgangslage!$L45=M$3,Ausgangslage!$H45,0) -> 0 | N32: =IF(Ausgangslage!$L45=N$3,Ausgangslage!$H45,0) -> 0 | O32: =IF(Ausgangslage!J45="",0,Ausgangslage!J45) -> 0
A33: =IF(Ausgangslage!A46="","",Ausgangslage!A46) ->  | D33: =IF(Ausgangslage!$L46=D$3,Ausgangslage!$H46,0) -> 0 | E33: =IF(Ausgangslage!$L46=E$3,Ausgangslage!$H46,0) -> 0 | F33: =IF(Ausgangslage!$L46=F$3,Ausgangslage!$H46,0) -> 0 | G33: =IF(Ausgangslage!$L46=G$3,Ausgangslage!$H46,0) -> 0 | H33: =IF(Ausgangslage!$L46=H$3,Ausgangslage!$H46,0) -> 0 | I33: =IF(Ausgangslage!$L46=I$3,Ausgangslage!$H46,0) -> 0 | J33: =IF(Ausgangslage!$L46=J$3,Ausgangslage!$H46,0) -> 0 | K33: =IF(Ausgangslage!$L46=K$3,Ausgangslage!$H46,0) -> 0 | L33: =IF(Ausgangslage!$L46=L$3,Ausgangslage!$H46,0) -> 0 | M33: =IF(Ausgangslage!$L46=M$3,Ausgangslage!$H46,0) -> 0 | N33: =IF(Ausgangslage!$L46=N$3,Ausgangslage!$H46,0) -> 0 | O33: =IF(Ausgangslage!J46="",0,Ausgangslage!J46) -> 0
A34: =IF(Ausgangslage!A47="","",Ausgangslage!A47) ->  | D34: =IF(Ausgangslage!$L47=D$3,Ausgangslage!$H47,0) -> 0 | E34: =IF(Ausgangslage!$L47=E$3,Ausgangslage!$H47,0) -> 0 | F34: =IF(Ausgangslage!$L47=F$3,Ausgangslage!$H47,0) -> 0 | G34: =IF(Ausgangslage!$L47=G$3,Ausgangslage!$H47,0) -> 0 | H34: =IF(Ausgangslage!$L47=H$3,Ausgangslage!$H47,0) -> 0 | I34: =IF(Ausgangslage!$L47=I$3,Ausgangslage!$H47,0) -> 0 | J34: =IF(Ausgangslage!$L47=J$3,Ausgangslage!$H47,0) -> 0 | K34: =IF(Ausgangslage!$L47=K$3,Ausgangslage!$H47,0) -> 0 | L34: =IF(Ausgangslage!$L47=L$3,Ausgangslage!$H47,0) -> 0 | M34: =IF(Ausgangslage!$L47=M$3,Ausgangslage!$H47,0) -> 0 | N34: =IF(Ausgangslage!$L47=N$3,Ausgangslage!$H47,0) -> 0 | O34: =IF(Ausgangslage!J47="",0,Ausgangslage!J47) -> 0
A35: =IF(Ausgangslage!A48="","",Ausgangslage!A48) ->  | D35: =IF(Ausgangslage!$L48=D$3,Ausgangslage!$H48,0) -> 0 | E35: =IF(Ausgangslage!$L48=E$3,Ausgangslage!$H48,0) -> 0 | F35: =IF(Ausgangslage!$L48=F$3,Ausgangslage!$H48,0) -> 0 | G35: =IF(Ausgangslage!$L48=G$3,Ausgangslage!$H48,0) -> 0 | H35: =IF(Ausgangslage!$L48=H$3,Ausgangslage!$H48,0) -> 0 | I35: =IF(Ausgangslage!$L48=I$3,Ausgangslage!$H48,0) -> 0 | J35: =IF(Ausgangslage!$L48=J$3,Ausgangslage!$H48,0) -> 0 | K35: =IF(Ausgangslage!$L48=K$3,Ausgangslage!$H48,0) -> 0 | L35: =IF(Ausgangslage!$L48=L$3,Ausgangslage!$H48,0) -> 0 | M35: =IF(Ausgangslage!$L48=M$3,Ausgangslage!$H48,0) -> 0 | N35: =IF(Ausgangslage!$L48=N$3,Ausgangslage!$H48,0) -> 0 | O35: =IF(Ausgangslage!J48="",0,Ausgangslage!J48) -> 0
A36: =IF(Ausgangslage!A49="","",Ausgangslage!A49) ->  | D36: =IF(Ausgangslage!$L49=D$3,Ausgangslage!$H49,0) -> 0 | E36: =IF(Ausgangslage!$L49=E$3,Ausgangslage!$H49,0) -> 0 | F36: =IF(Ausgangslage!$L49=F$3,Ausgangslage!$H49,0) -> 0 | G36: =IF(Ausgangslage!$L49=G$3,Ausgangslage!$H49,0) -> 0 | H36: =IF(Ausgangslage!$L49=H$3,Ausgangslage!$H49,0) -> 0 | I36: =IF(Ausgangslage!$L49=I$3,Ausgangslage!$H49,0) -> 0 | J36: =IF(Ausgangslage!$L49=J$3,Ausgangslage!$H49,0) -> 0 | K36: =IF(Ausgangslage!$L49=K$3,Ausgangslage!$H49,0) -> 0 | L36: =IF(Ausgangslage!$L49=L$3,Ausgangslage!$H49,0) -> 0 | M36: =IF(Ausgangslage!$L49=M$3,Ausgangslage!$H49,0) -> 0 | N36: =IF(Ausgangslage!$L49=N$3,Ausgangslage!$H49,0) -> 0 | O36: =IF(Ausgangslage!J49="",0,Ausgangslage!J49) -> 0
A37: =IF(Ausgangslage!A50="","",Ausgangslage!A50) ->  | D37: =IF(Ausgangslage!$L50=D$3,Ausgangslage!$H50,0) -> 0 | E37: =IF(Ausgangslage!$L50=E$3,Ausgangslage!$H50,0) -> 0 | F37: =IF(Ausgangslage!$L50=F$3,Ausgangslage!$H50,0) -> 0 | G37: =IF(Ausgangslage!$L50=G$3,Ausgangslage!$H50,0) -> 0 | H37: =IF(Ausgangslage!$L50=H$3,Ausgangslage!$H50,0) -> 0 | I37: =IF(Ausgangslage!$L50=I$3,Ausgangslage!$H50,0) -> 0 | J37: =IF(Ausgangslage!$L50=J$3,Ausgangslage!$H50,0) -> 0 | K37: =IF(Ausgangslage!$L50=K$3,Ausgangslage!$H50,0) -> 0 | L37: =IF(Ausgangslage!$L50=L$3,Ausgangslage!$H50,0) -> 0 | M37: =IF(Ausgangslage!$L50=M$3,Ausgangslage!$H50,0) -> 0 | N37: =IF(Ausgangslage!$L50=N$3,Ausgangslage!$H50,0) -> 0 | O37: =IF(Ausgangslage!J50="",0,Ausgangslage!J50) -> 0
A41: Veränderung Finanzaufwand durch Rückzahlung | F41: =ROUND(-SUM(E18:E40*$O18:$O40),0) -> 0 | G41: =ROUND(-SUM(F18:F40*$O18:$O40),0) -> 0 | H41: =ROUND(-SUM(G18:G40*$O18:$O40),0) -> 0 | I41: =ROUND(-SUM(H18:H40*$O18:$O40),0) -> 0 | J41: =ROUND(-SUM(I18:I40*$O18:$O40),0) -> 0 | K41: =ROUND(-SUM(J18:J40*$O18:$O40),0) -> 0 | L41: =ROUND(-SUM(K18:K40*$O18:$O40),0) -> 0 | M41: =ROUND(-SUM(L18:L40*$O18:$O40),0) -> 0 | N41: =ROUND(-SUM(M18:M40*$O18:$O40),0) -> 0
A42: Abgang Finanz-/Sachanlagen Finanzvermögen
A43: (Buchwert einsetzen, Buchgewinn/-verlust in Prognosen eintragen) | D43: =SUM(D44:D48) -> 0 | E43: 0 | F43: 0 | G43: 0 | H43: 0 | I43: 0 | J43: 0 | K43: 0 | L43: 0 | M43: 0 | N43: =SUM(N44:N48) -> 0 | O43: Nettorendite:
A49: Veränderung Finanzertrag durch Abgang Anlagen FV | F49: =ROUND(SUM(E44:E48*$O44:$O48),0) -> 0 | G49: =ROUND(SUM(F44:F48*$O44:$O48),0) -> 0 | H49: =ROUND(SUM(G44:G48*$O44:$O48),0) -> 0 | I49: =ROUND(SUM(H44:H48*$O44:$O48),0) -> 0 | J49: =ROUND(SUM(I44:I48*$O44:$O48),0) -> 0 | K49: =ROUND(SUM(J44:J48*$O44:$O48),0) -> 0 | L49: =ROUND(SUM(K44:K48*$O44:$O48),0) -> 0 | M49: =ROUND(SUM(L44:L48*$O44:$O48),0) -> 0 | N49: =ROUND(SUM(M44:M48*$O44:$O48),0) -> 0
A50: Zugang Finanz-/Sachanlagen Finanzvermögen | D50: =SUM(D51:D55) -> 0 | E50: 0 | F50: 0 | G50: 0 | H50: 0 | I50: 0 | J50: 0 | K50: 0 | L50: 0 | M50: 0 | N50: =SUM(N51:N55) -> 0 | O50: Nettorendite:
A56: Veränderung Finanzertrag durch Zugang Anlagen FV | F56: =ROUND(SUM(E51:E55*$O51:$O55),0) -> 0 | G56: =ROUND(SUM(F51:F55*$O51:$O55),0) -> 0 | H56: =ROUND(SUM(G51:G55*$O51:$O55),0) -> 0 | I56: =ROUND(SUM(H51:H55*$O51:$O55),0) -> 0 | J56: =ROUND(SUM(I51:I55*$O51:$O55),0) -> 0 | K56: =ROUND(SUM(J51:J55*$O51:$O55),0) -> 0 | L56: =ROUND(SUM(K51:K55*$O51:$O55),0) -> 0 | M56: =ROUND(SUM(L51:L55*$O51:$O55),0) -> 0 | N56: =ROUND(SUM(M51:M55*$O51:$O55),0) -> 0
A57: Finanzierungsbedarf/-überschuss Spezialfinanzierungen | D57: =SUM(D58:D62) -> 0 | E57: 0 | F57: 0 | G57: 0 | H57: 0 | I57: 0 | J57: 0 | K57: 0 | L57: 0 | M57: 0 | N57: =SUM(N58:N62) -> 0 | O57: Zinssatz:
A63: Veränderung Zinsbelastung durch Spezialfinanzierungen | F63: =ROUND(-SUM(E58:E62*$O58:$O62),0) -> 0 | G63: =ROUND(-SUM(F58:F62*$O58:$O62),0) -> 0 | H63: =ROUND(-SUM(G58:G62*$O58:$O62),0) -> 0 | I63: =ROUND(-SUM(H58:H62*$O58:$O62),0) -> 0 | J63: =ROUND(-SUM(I58:I62*$O58:$O62),0) -> 0 | K63: =ROUND(-SUM(J58:J62*$O58:$O62),0) -> 0 | L63: =ROUND(-SUM(K58:K62*$O58:$O62),0) -> 0 | M63: =ROUND(-SUM(L58:L62*$O58:$O62),0) -> 0 | N63: =ROUND(-SUM(M58:M62*$O58:$O62),0) -> 0
A64: Mittelbedarf (+ = Bedarf / - = Überschuss) | D64: =ROUND(D16+D17+D43+D50+D57,0) -> 0 | E64: =ROUND(E16+E17+E43+E50+E57,0) -> 0 | F64: =ROUND(F16+F17+F43+F50+F57,0) -> 0 | G64: =ROUND(G16+G17+G43+G50+G57,0) -> 0 | H64: 0 | I64: 0 | J64: 0 | K64: 0 | L64: 0 | M64: 0 | N64: =ROUND(N16+N17+N43+N50+N57,0) -> 0
A65: Neuaufnahme verzinsliche Darlehen (+ = Zunahme) | O65: Jahr für Jahr einsetzen
A66: Veränderung flüssige Mittel ( - = Deckung Mittelbedarf)
A67: Bestand flüssige Mittel Ende Jahr | C67: =Ausgangslage!H21 -> 0 | D67: =C67+D66 -> 0 | E67: =D67+E66 -> 0 | F67: =E67+F66 -> 0 | G67: =F67+G66 -> 0 | H67: 0 | I67: 0 | J67: 0 | K67: 0 | L67: 0 | M67: 0 | N67: 0
A68: Differenz | D68: =D64-D65+D66 -> 0 | E68: 0 | F68: 0 | G68: 0 | H68: 0 | I68: 0 | J68: 0 | K68: 0 | L68: 0 | M68: 0 | N68: =N64-N65+N66 -> 0 | O68: muss 0 sein!
D69: =IF(D68<>0,"prüfen!","") -> 
A70: Veränderung Zinsaufwand durch Neuverschuldung | F70: =ROUND(E65*Prognosen!E12,0) -> 0 | G70: =ROUND(F65*Prognosen!F12,0) -> 0 | H70: =ROUND(G65*Prognosen!G12,0) -> 0 | I70: =ROUND(H65*Prognosen!I12,0) -> 0 | J70: =ROUND(I65*Prognosen!I12,0) -> 0 | K70: =ROUND(J65*Prognosen!J12,0) -> 0 | L70: =ROUND(K65*Prognosen!K12,0) -> 0 | M70: =ROUND(L65*Prognosen!L12,0) -> 0 | N70: =ROUND(M65*Prognosen!M12,0) -> 0
A71: Veränderung Zinsertrag durch flüssige Mittel | F71: =ROUND(E66*Prognosen!F13,0) -> 0 | G71: =ROUND(F66*Prognosen!G13,0) -> 0 | H71: =ROUND(G66*Prognosen!H13,0) -> 0 | I71: =ROUND(H66*Prognosen!I13,0) -> 0 | J71: =ROUND(I66*Prognosen!J13,0) -> 0 | K71: =ROUND(J66*Prognosen!K13,0) -> 0 | L71: =ROUND(K66*Prognosen!L13,0) -> 0 | M71: =ROUND(L66*Prognosen!M13,0) -> 0 | N71: =ROUND(M66*Prognosen!N13,0) -> 0
A72: Veränderung Zinsbelastung im Jahr (+ = Belastung / - = Entlastung) | F72: =F41-F49-F56+F63+F70-F71 -> 0 | G72: =G41-G49-G56+G63+G70-G71 -> 0 | H72: 0 | I72: 0 | J72: 0 | K72: 0 | L72: 0 | M72: 0 | N72: 0
A73: ="Veränderung Zinsbelastung zu Budget "&Ausgangslage!D5 -> Veränderung Zinsbelastung zu Budget 2024 | F73: =F72 -> 0 | G73: =F73+G72 -> 0 | H73: =G73+H72 -> 0 | I73: 0 | J73: 0 | K73: 0 | L73: 0 | M73: 0 | N73: 0
A74: (+ = Belastung / - = Entlastung)
A76: Berechnung Nettoschuld I | C76: =C3 -> 2022 | D76: 2023 | E76: 2024 | F76: 2025 | G76: 2026 | H76: 2027 | I76: 2028 | J76: 2029 | K76: 2030 | L76: 2031 | M76: 2032 | N76: =N3 -> 2033
C77: Rechnung | D77: =D4 -> Prognose | E77: 1. Planjahr | F77: 2. Planjahr | G77: 3. Planjahr | H77: 4. Planjahr | I77: 5. Planjahr | J77: 6. Planjahr | K77: 7. Planjahr | L77: 8. Planjahr | M77: 9. Planjahr | N77: 10. Planjahr
A78: Nettoschuld I anfangs Jahr (+ = Schuld / - = Vermögen) | D78: =Ausgangslage!H22 -> 0 | E78: =D81 -> 0 | F78: =E81 -> 0 | G78: 0 | H78: 0 | I78: 0 | J78: 0 | K78: 0 | L78: 0 | M78: 0 | N78: 0
A79: Finanzierungsergebnis (+ = Überschuss / - = Fehlbetrag) | D79: =D12 -> 0 | E79: 0 | F79: 0 | G79: 0 | H79: 0 | I79: 0 | J79: 0 | K79: 0 | L79: 0 | M79: 0 | N79: =N12 -> 0
A80: Einlagen/Entnahmen Fonds FK (+ = Entnahme / - = Einlage) | D80: =-Budget!E29+Budget!E71 -> 0 | E80: =-Budget!G29+Budget!G71 -> 0 | F80: =$E$80 -> 0 | G80: =$E$80 -> 0 | H80: 0 | I80: 0 | J80: 0 | K80: 0 | L80: 0 | M80: 0 | N80: 0
A81: Nettoschuld I Ende Jahr (+ = Schuld / - = Vermögen) | C81: =Ausgangslage!H22 -> 0 | D81: =D78-D79-D80 -> 0 | E81: =E78-E79-E80 -> 0 | F81: 0 | G81: 0 | H81: 0 | I81: 0 | J81: 0 | K81: 0 | L81: 0 | M81: 0 | N81: 0

Sheet Titelblatt
A1: ="Gemeinde "&Ausgangslage!D3 -> Gemeinde 9999 Muster
A7: Aufgaben- und Finanzplanung
A8: =Ausgangslage!D5&" bis "&Ausgangslage!D5+Ausgangslage!I5-1 -> 2024 bis 2033
A10: ="Stand "&TEXT(Ausgangslage!D8,"TT.MM.JjjJ") -> Stand 00.01.1900

Sheet InvprogrammA
A1: Investitionsplan Aufgaben- und Finanzplanung
A3: Funktion | B3: Bezeichnung | C3: Betrag | D3: =Investitionsplan!F4 -> 2023 | E3: =D3+1 -> 2024 | F3: =E3+1 -> 2025 | G3: 2026 | H3: 2027 | I3: 2028 | J3: 2029 | K3: 2030 | L3: 2031 | M3: 2032 | N3: 2033 | O3: ="ab "&N3+1 -> ab 2034 | P3: jährliche Abschreibung
A5: Projekte in Bau | C5: =SUM(INDEX(C:C,ROW()+1):INDEX(C:C,MATCH("Projekte beschlossen",$A:$A,0)-1)) -> 0 | D5: =SUM(INDEX(D:D,ROW()+1):INDEX(D:D,MATCH("Projekte beschlossen",$A:$A,0)-1)) -> 0 | E5: =SUM(INDEX(E:E,ROW()+1):INDEX(E:E,MATCH("Projekte beschlossen",$A:$A,0)-1)) -> 0 | F5: =SUM(INDEX(F:F,ROW()+1):INDEX(F:F,MATCH("Projekte beschlossen",$A:$A,0)-1)) -> 0 | G5: =SUM(INDEX(G:G,ROW()+1):INDEX(G:G,MATCH("Projekte beschlossen",$A:$A,0)-1)) -> 0 | H5: =SUM(INDEX(H:H,ROW()+1):INDEX(H:H,MATCH("Projekte beschlossen",$A:$A,0)-1)) -> 0 | I5: =SUM(INDEX(I:I,ROW()+1):INDEX(I:I,MATCH("Projekte beschlossen",$A:$A,0)-1)) -> 0 | J5: =SUM(INDEX(J:J,ROW()+1):INDEX(J:J,MATCH("Projekte beschlossen",$A:$A,0)-1)) -> 0 | K5: =SUM(INDEX(K:K,ROW()+1):INDEX(K:K,MATCH("Projekte beschlossen",$A:$A,0)-1)) -> 0 | L5: =SUM(INDEX(L:L,ROW()+1):INDEX(L:L,MATCH("Projekte beschlossen",$A:$A,0)-1)) -> 0 | M5: =SUM(INDEX(M:M,ROW()+1):INDEX(M:M,MATCH("Projekte beschlossen",$A:$A,0)-1)) -> 0 | N5: =SUM(INDEX(N:N,ROW()+1):INDEX(N:N,MATCH("Projekte beschlossen",$A:$A,0)-1)) -> 0 | O5: =SUM(INDEX(O:O,ROW()+1):INDEX(O:O,MATCH("Projekte beschlossen",$A:$A,0)-1)) -> 0 | P5: =SUM(INDEX(P:P,ROW()+1):INDEX(P:P,MATCH("Projekte beschlossen",$A:$A,0)-1)) -> 0
A8: Projekte beschlossen | C8: =SUM(INDEX(C:C,ROW()+1):INDEX(C:C,MATCH("Projekte geplant",$A:$A,0)-1)) -> 0 | D8: =SUM(INDEX(D:D,ROW()+1):INDEX(D:D,MATCH("Projekte geplant",$A:$A,0)-1)) -> 0 | E8: =SUM(INDEX(E:E,ROW()+1):INDEX(E:E,MATCH("Projekte geplant",$A:$A,0)-1)) -> 0 | F8: =SUM(INDEX(F:F,ROW()+1):INDEX(F:F,MATCH("Projekte geplant",$A:$A,0)-1)) -> 0 | G8: =SUM(INDEX(G:G,ROW()+1):INDEX(G:G,MATCH("Projekte geplant",$A:$A,0)-1)) -> 0 | H8: =SUM(INDEX(H:H,ROW()+1):INDEX(H:H,MATCH("Projekte geplant",$A:$A,0)-1)) -> 0 | I8: =SUM(INDEX(I:I,ROW()+1):INDEX(I:I,MATCH("Projekte geplant",$A:$A,0)-1)) -> 0 | J8: =SUM(INDEX(J:J,ROW()+1):INDEX(J:J,MATCH("Projekte geplant",$A:$A,0)-1)) -> 0 | K8: =SUM(INDEX(K:K,ROW()+1):INDEX(K:K,MATCH("Projekte geplant",$A:$A,0)-1)) -> 0 | L8: =SUM(INDEX(L:L,ROW()+1):INDEX(L:L,MATCH("Projekte geplant",$A:$A,0)-1)) -> 0 | M8: =SUM(INDEX(M:M,ROW()+1):INDEX(M:M,MATCH("Projekte geplant",$A:$A,0)-1)) -> 0 | N8: =SUM(INDEX(N:N,ROW()+1):INDEX(N:N,MATCH("Projekte geplant",$A:$A,0)-1)) -> 0 | O8: =SUM(INDEX(O:O,ROW()+1):INDEX(O:O,MATCH("Projekte geplant",$A:$A,0)-1)) -> 0 | P8: =SUM(INDEX(P:P,ROW()+1):INDEX(P:P,MATCH("Projekte geplant",$A:$A,0)-1)) -> 0
A11: Projekte geplant | C11: =SUM(INDEX(C:C,ROW()+1):INDEX(C:C,MATCH("Total Investitionsprojekte",$A:$A,0)-1)) -> 0 | D11: =SUM(INDEX(D:D,ROW()+1):INDEX(D:D,MATCH("Total Investitionsprojekte",$A:$A,0)-1)) -> 0 | E11: =SUM(INDEX(E:E,ROW()+1):INDEX(E:E,MATCH("Total Investitionsprojekte",$A:$A,0)-1)) -> 0 | F11: =SUM(INDEX(F:F,ROW()+1):INDEX(F:F,MATCH("Total Investitionsprojekte",$A:$A,0)-1)) -> 0 | G11: =SUM(INDEX(G:G,ROW()+1):INDEX(G:G,MATCH("Total Investitionsprojekte",$A:$A,0)-1)) -> 0 | H11: =SUM(INDEX(H:H,ROW()+1):INDEX(H:H,MATCH("Total Investitionsprojekte",$A:$A,0)-1)) -> 0 | I11: =SUM(INDEX(I:I,ROW()+1):INDEX(I:I,MATCH("Total Investitionsprojekte",$A:$A,0)-1)) -> 0 | J11: =SUM(INDEX(J:J,ROW()+1):INDEX(J:J,MATCH("Total Investitionsprojekte",$A:$A,0)-1)) -> 0 | K11: =SUM(INDEX(K:K,ROW()+1):INDEX(K:K,MATCH("Total Investitionsprojekte",$A:$A,0)-1)) -> 0 | L11: =SUM(INDEX(L:L,ROW()+1):INDEX(L:L,MATCH("Total Investitionsprojekte",$A:$A,0)-1)) -> 0 | M11: =SUM(INDEX(M:M,ROW()+1):INDEX(M:M,MATCH("Total Investitionsprojekte",$A:$A,0)-1)) -> 0 | N11: =SUM(INDEX(N:N,ROW()+1):INDEX(N:N,MATCH("Total Investitionsprojekte",$A:$A,0)-1)) -> 0 | O11: =SUM(INDEX(O:O,ROW()+1):INDEX(O:O,MATCH("Total Investitionsprojekte",$A:$A,0)-1)) -> 0 | P11: =SUM(INDEX(P:P,ROW()+1):INDEX(P:P,MATCH("Total Investitionsprojekte",$A:$A,0)-1)) -> 0
A14: Total Investitionsprojekte | C14: =SUM(C$4:INDEX(C:C,ROW()-1))/2 -> 0 | D14: =SUM(D$4:INDEX(D:D,ROW()-1))/2 -> 0 | E14: =SUM(E$4:INDEX(E:E,ROW()-1))/2 -> 0 | F14: =SUM(F$4:INDEX(F:F,ROW()-1))/2 -> 0 | G14: =SUM(G$4:INDEX(G:G,ROW()-1))/2 -> 0 | H14: =SUM(H$4:INDEX(H:H,ROW()-1))/2 -> 0 | I14: =SUM(I$4:INDEX(I:I,ROW()-1))/2 -> 0 | J14: =SUM(J$4:INDEX(J:J,ROW()-1))/2 -> 0 | K14: =SUM(K$4:INDEX(K:K,ROW()-1))/2 -> 0 | L14: =SUM(L$4:INDEX(L:L,ROW()-1))/2 -> 0 | M14: =SUM(M$4:INDEX(M:M,ROW()-1))/2 -> 0 | N14: =SUM(N$4:INDEX(N:N,ROW()-1))/2 -> 0 | O14: =SUM(O$4:INDEX(O:O,ROW()-1))/2 -> 0 | P14: =SUM(P$4:INDEX(P:P,ROW()-1))/2 -> 0

Sheet InvprogrammB
A1: Investitionsplan Aufgaben- und Finanzplanung
A3: Funktion | B3: Bezeichnung | C3: Betrag | D3: =Investitionsplan!F4 -> 2023 | E3: =D3+1 -> 2024 | F3: 2025 | G3: 2026 | H3: 2027 | I3: 2028 | J3: 2029 | K3: 2030 | L3: 2031 | M3: 2032 | N3: 2033 | O3: ="ab "&N3+1 -> ab 2034 | P3: jährliche Abschreibung
A6: Total Investitionsprojekte | C6: =SUM(C$4:INDEX(C:C,ROW()-1)) -> 0 | D6: =SUM(D$4:INDEX(D:D,ROW()-1)) -> 0 | E6: =SUM(E$4:INDEX(E:E,ROW()-1)) -> 0 | F6: =SUM(F$4:INDEX(F:F,ROW()-1)) -> 0 | G6: =SUM(G$4:INDEX(G:G,ROW()-1)) -> 0 | H6: =SUM(H$4:INDEX(H:H,ROW()-1)) -> 0 | I6: =SUM(I$4:INDEX(I:I,ROW()-1)) -> 0 | J6: =SUM(J$4:INDEX(J:J,ROW()-1)) -> 0 | K6: =SUM(K$4:INDEX(K:K,ROW()-1)) -> 0 | L6: =SUM(L$4:INDEX(L:L,ROW()-1)) -> 0 | M6: =SUM(M$4:INDEX(M:M,ROW()-1)) -> 0 | N6: =SUM(N$4:INDEX(N:N,ROW()-1)) -> 0 | O6: =SUM(O$4:INDEX(O:O,ROW()-1)) -> 0 | P6: =SUM(P$4:INDEX(P:P,ROW()-1)) -> 0

Sheet Plan-ER
A1: Plan-Erfolgsrechnung
C2: Budget | D2: =Budget!E4 -> Prognose
C3: =Ausgangslage!D5-1 -> 2023 | D3: =C3 -> 2023 | E3: =D3+1 -> 2024 | F3: 2025 | G3: 2026 | H3: 2027 | I3: 2028 | J3: 2029 | K3: 2030 | L3: 2031 | M3: 2032 | N3: =M3+1 -> 2033
A4: Einwohnerzahl | C4: =Prognosen!C5 -> 0 | D4: =Prognosen!D5 -> 0 | E4: =Prognosen!E5 -> 0 | F4: =Prognosen!F5 -> 0 | G4: =Prognosen!G5 -> 0 | H4: =Prognosen!H5 -> 0 | I4: =Prognosen!I5 -> 0 | J4: =Prognosen!J5 -> 0 | K4: =Prognosen!K5 -> 0 | L4: =Prognosen!L5 -> 0 | M4: =Prognosen!M5 -> 0 | N4: =Prognosen!N5 -> 0
A5: Steuerfuss | C5: =Prognosen!C6 -> 0% | D5: =Prognosen!D6 -> 0% | E5: =Prognosen!E6 -> 0% | F5: =Prognosen!F6 -> 0% | G5: =Prognosen!G6 -> 0% | H5: =Prognosen!H6 -> 0% | I5: =Prognosen!I6 -> 0% | J5: =Prognosen!J6 -> 0% | K5: =Prognosen!K6 -> 0% | L5: =Prognosen!L6 -> 0% | M5: =Prognosen!M6 -> 0% | N5: =Prognosen!N6 -> 0%
A7: Betrieblicher Aufwand | C7: =ROUND(C9+C11+C13+C15+C17,0) -> 0 | D7: 0 | E7: 0 | F7: 0 | G7: 0 | H7: 0 | I7: 0 | J7: 0 | K7: 0 | L7: 0 | M7: 0 | N7: 0
A9: 30 | B9: Personalaufwand | C9: =Budget!C12 -> 0 | D9: =Budget!E12 -> 0 | E9: =Budget!G12 -> 0 | F9: =ROUND($E9*ZZFaktor(Prognosen!$F7:F7)+SUM(IF(Prognosen!$A$51:$A$101=$A9,Prognosen!F$51:F$101)),0) -> 0 | G9: =ROUND($E9*ZZFaktor(Prognosen!$F7:G7)+SUM(IF(Prognosen!$A$51:$A$101=$A9,Prognosen!G$51:G$101)),0) -> 0 | H9: =ROUND($E9*ZZFaktor(Prognosen!$F7:H7)+SUM(IF(Prognosen!$A$51:$A$101=$A9,Prognosen!H$51:H$101)),0) -> 0 | I9: =ROUND($E9*ZZFaktor(Prognosen!$F7:I7)+SUM(IF(Prognosen!$A$51:$A$101=$A9,Prognosen!I$51:I$101)),0) -> 0 | J9: =ROUND($E9*ZZFaktor(Prognosen!$F7:J7)+SUM(IF(Prognosen!$A$51:$A$101=$A9,Prognosen!J$51:J$101)),0) -> 0 | K9: =ROUND($E9*ZZFaktor(Prognosen!$F7:K7)+SUM(IF(Prognosen!$A$51:$A$101=$A9,Prognosen!K$51:K$101)),0) -> 0 | L9: =ROUND($E9*ZZFaktor(Prognosen!$F7:L7)+SUM(IF(Prognosen!$A$51:$A$101=$A9,Prognosen!L$51:L$101)),0) -> 0 | M9: =ROUND($E9*ZZFaktor(Prognosen!$F7:M7)+SUM(IF(Prognosen!$A$51:$A$101=$A9,Prognosen!M$51:M$101)),0) -> 0 | N9: =ROUND($E9*ZZFaktor(Prognosen!$F7:N7)+SUM(IF(Prognosen!$A$51:$A$101=$A9,Prognosen!N$51:N$101)),0) -> 0
A11: 31 | B11: Sach- und übriger Betriebsaufwand | C11: =Budget!C16 -> 0 | D11: =Budget!E16 -> 0 | E11: =Budget!G16 -> 0 | F11: =ROUND((Budget!$G$17)*ZZFaktor(Prognosen!$F8:F8)+F24+SUM(IF(Prognosen!$A$51:$A$101=$A11,Prognosen!F$51:F$101)),0) -> 0 | G11: =ROUND((Budget!$G$17)*ZZFaktor(Prognosen!$F8:G8)+G24+SUM(IF(Prognosen!$A$51:$A$101=$A11,Prognosen!G$51:G$101)),0) -> 0 | H11: =ROUND((Budget!$G$17)*ZZFaktor(Prognosen!$F8:H8)+H24+SUM(IF(Prognosen!$A$51:$A$101=$A11,Prognosen!H$51:H$101)),0) -> 0 | I11: =ROUND((Budget!$G$17)*ZZFaktor(Prognosen!$F8:I8)+I24+SUM(IF(Prognosen!$A$51:$A$101=$A11,Prognosen!I$51:I$101)),0) -> 0 | J11: =ROUND((Budget!$G$17)*ZZFaktor(Prognosen!$F8:J8)+J24+SUM(IF(Prognosen!$A$51:$A$101=$A11,Prognosen!J$51:J$101)),0) -> 0 | K11: =ROUND((Budget!$G$17)*ZZFaktor(Prognosen!$F8:K8)+K24+SUM(IF(Prognosen!$A$51:$A$101=$A11,Prognosen!K$51:K$101)),0) -> 0 | L11: =ROUND((Budget!$G$17)*ZZFaktor(Prognosen!$F8:L8)+L24+SUM(IF(Prognosen!$A$51:$A$101=$A11,Prognosen!L$51:L$101)),0) -> 0 | M11: =ROUND((Budget!$G$17)*ZZFaktor(Prognosen!$F8:M8)+M24+SUM(IF(Prognosen!$A$51:$A$101=$A11,Prognosen!M$51:M$101)),0) -> 0 | N11: =ROUND((Budget!$G$17)*ZZFaktor(Prognosen!$F8:N8)+N24+SUM(IF(Prognosen!$A$51:$A$101=$A11,Prognosen!N$51:N$101)),0) -> 0
A13: 33 | B13: Abschreibungen Verwaltungsvermögen inkl. 366 | C13: =Budget!C23+Budget!C24 -> 0 | D13: =Budget!E23+Budget!E24 -> 0 | E13: =Budget!G23+Budget!G24 -> 0 | F13: =Investitionsplan!W9 -> 0 | G13: =Investitionsplan!X9 -> 0 | H13: =Investitionsplan!Y9 -> 0 | I13: =Investitionsplan!Z9 -> 0 | J13: =Investitionsplan!AA9 -> 0 | K13: =Investitionsplan!AB9 -> 0 | L13: =Investitionsplan!AC9 -> 0 | M13: =Investitionsplan!AD9 -> 0 | N13: =Investitionsplan!AE9 -> 0
A15: 35 | B15: Einlagen in Fonds | C15: =Budget!C28 -> 0 | D15: =Budget!E28 -> 0 | E15: =Budget!G28 -> 0 | F15: =$E15+SUM(IF(Prognosen!$A$51:$A$101=$A15,Prognosen!F$51:F$101)) -> 0 | G15: =$E15+SUM(IF(Prognosen!$A$51:$A$101=$A15,Prognosen!G$51:G$101)) -> 0 | H15: =$E15+SUM(IF(Prognosen!$A$51:$A$101=$A15,Prognosen!H$51:H$101)) -> 0 | I15: =$E15+SUM(IF(Prognosen!$A$51:$A$101=$A15,Prognosen!I$51:I$101)) -> 0 | J15: =$E15+SUM(IF(Prognosen!$A$51:$A$101=$A15,Prognosen!J$51:J$101)) -> 0 | K15: =$E15+SUM(IF(Prognosen!$A$51:$A$101=$A15,Prognosen!K$51:K$101)) -> 0 | L15: =$E15+SUM(IF(Prognosen!$A$51:$A$101=$A15,Prognosen!L$51:L$101)) -> 0 | M15: =$E15+SUM(IF(Prognosen!$A$51:$A$101=$A15,Prognosen!M$51:M$101)) -> 0 | N15: =$E15+SUM(IF(Prognosen!$A$51:$A$101=$A15,Prognosen!N$51:N$101)) -> 0
A17: 36 | B17: Transferaufwand ohne 366 | C17: =Budget!C33 -> 0 | D17: =Budget!E33 -> 0 | E17: =Budget!G33 -> 0 | F17: =ROUND(Budget!$G37*ZZFaktor(Prognosen!$F9:F9)+SUM(IF(Prognosen!$A$51:$A$101=$A17,Prognosen!F$51:F$101)),0)+F18 -> 0 | G17: =ROUND(Budget!$G37*ZZFaktor(Prognosen!$F9:G9)+SUM(IF(Prognosen!$A$51:$A$101=$A17,Prognosen!G$51:G$101)),0)+G18 -> 0 | H17: =ROUND(Budget!$G37*ZZFaktor(Prognosen!$F9:H9)+SUM(IF(Prognosen!$A$51:$A$101=$A17,Prognosen!H$51:H$101)),0)+H18 -> 0 | I17: =ROUND(Budget!$G37*ZZFaktor(Prognosen!$F9:I9)+SUM(IF(Prognosen!$A$51:$A$101=$A17,Prognosen!I$51:I$101)),0)+I18 -> 0 | J17: =ROUND(Budget!$G37*ZZFaktor(Prognosen!$F9:J9)+SUM(IF(Prognosen!$A$51:$A$101=$A17,Prognosen!J$51:J$101)),0)+J18 -> 0 | K17: =ROUND(Budget!$G37*ZZFaktor(Prognosen!$F9:K9)+SUM(IF(Prognosen!$A$51:$A$101=$A17,Prognosen!K$51:K$101)),0)+K18 -> 0 | L17: =ROUND(Budget!$G37*ZZFaktor(Prognosen!$F9:L9)+SUM(IF(Prognosen!$A$51:$A$101=$A17,Prognosen!L$51:L$101)),0)+L18 -> 0 | M17: =ROUND(Budget!$G37*ZZFaktor(Prognosen!$F9:M9)+SUM(IF(Prognosen!$A$51:$A$101=$A17,Prognosen!M$51:M$101)),0)+M18 -> 0 | N17: =ROUND(Budget!$G37*ZZFaktor(Prognosen!$F9:N9)+SUM(IF(Prognosen!$A$51:$A$101=$A17,Prognosen!N$51:N$101)),0)+N18 -> 0
B18: davon Finanzausgleichsabgaben | C18: =Budget!C35 -> 0 | D18: =Budget!E35 -> 0 | E18: =Prognosen!E29 -> 0 | F18: =Prognosen!F29 -> 0 | G18: =Prognosen!G29 -> 0 | H18: =Prognosen!H29 -> 0 | I18: =Prognosen!I29 -> 0 | J18: =Prognosen!J29 -> 0 | K18: =Prognosen!K29 -> 0 | L18: =Prognosen!L29 -> 0 | M18: =Prognosen!M29 -> 0 | N18: =Prognosen!N29 -> 0
A20: Betrieblicher Ertrag | C20: =ROUND(C22+C29+C31+C33+C35+C37,0) -> 0 | D20: =ROUND(D22+D29+D31+D33+D35+D37,0) -> 0 | E20: 0 | F20: 0 | G20: 0 | H20: 0 | I20: 0 | J20: 0 | K20: 0 | L20: 0 | M20: 0 | N20: =ROUND(N22+N29+N31+N33+N35+N37,0) -> 0
A22: 40 | B22: Fiskalertrag | C22: =C23+C25+C26+C27 -> 0 | D22: =D23+D25+D26+D27 -> 0 | E22: 0 | F22: 0 | G22: 0 | H22: 0 | I22: 0 | J22: 0 | K22: 0 | L22: 0 | M22: 0 | N22: =N23+N25+N26+N27 -> 0
A23: 4000/1 | B23: Einkommens- und Vermögenssteuern natürliche Pers. | C23: =Budget!C45 -> 0 | D23: =Budget!E45 -> 0 | E23: =Budget!G45 -> 0 | F23: =Prognosen!F16 -> 0 | G23: =Prognosen!G16 -> 0 | H23: =Prognosen!H16 -> 0 | I23: =Prognosen!I16 -> 0 | J23: =Prognosen!J16 -> 0 | K23: =Prognosen!K16 -> 0 | L23: =Prognosen!L16 -> 0 | M23: =Prognosen!M16 -> 0 | N23: =Prognosen!N16 -> 0
A24: 31 | B24: Abschreibungen Steuerforderungen | C24: =Budget!C46 -> 0 | D24: =Budget!E46 -> 0 | E24: =Budget!G46 -> 0 | F24: =Prognosen!F20 -> 0 | G24: =Prognosen!G20 -> 0 | H24: =Prognosen!H20 -> 0 | I24: =Prognosen!I20 -> 0 | J24: =Prognosen!J20 -> 0 | K24: =Prognosen!K20 -> 0 | L24: =Prognosen!L20 -> 0 | M24: =Prognosen!M20 -> 0 | N24: =Prognosen!N20 -> 0
A25: 4002 | B25: Quellensteuern | C25: =Budget!C47 -> 0 | D25: =Budget!E47 -> 0 | E25: =Budget!G47 -> 0 | F25: =Prognosen!F21 -> 0 | G25: =Prognosen!G21 -> 0 | H25: =Prognosen!H21 -> 0 | I25: =Prognosen!I21 -> 0 | J25: =Prognosen!J21 -> 0 | K25: =Prognosen!K21 -> 0 | L25: =Prognosen!L21 -> 0 | M25: =Prognosen!M21 -> 0 | N25: =Prognosen!N21 -> 0
A26: 4010 | B26: Gewinn- und Kapitalsteuern juristische Pers. | C26: =Budget!C48 -> 0 | D26: =Budget!E48 -> 0 | E26: =Budget!G48 -> 0 | F26: =Prognosen!F22 -> 0 | G26: =Prognosen!G22 -> 0 | H26: =Prognosen!H22 -> 0 | I26: =Prognosen!I22 -> 0 | J26: =Prognosen!J22 -> 0 | K26: =Prognosen!K22 -> 0 | L26: =Prognosen!L22 -> 0 | M26: =Prognosen!M22 -> 0 | N26: =Prognosen!N22 -> 0
A27: 40 | B27: Sondersteuern und übriger Fiskalertrag | C27: =Budget!C52+Budget!C54 -> 0 | D27: =Budget!E52+Budget!E54 -> 0 | E27: =Budget!G52+Budget!G54 -> 0 | F27: =Prognosen!F24+Prognosen!F25 -> 0 | G27: =Prognosen!G24+Prognosen!G25 -> 0 | H27: =Prognosen!H24+Prognosen!H25 -> 0 | I27: =Prognosen!I24+Prognosen!I25 -> 0 | J27: =Prognosen!J24+Prognosen!J25 -> 0 | K27: =Prognosen!K24+Prognosen!K25 -> 0 | L27: =Prognosen!L24+Prognosen!L25 -> 0 | M27: =Prognosen!M24+Prognosen!M25 -> 0 | N27: =Prognosen!N24+Prognosen!N25 -> 0
A29: 41 | B29: Regalien und Konzessionen | C29: =Budget!C58 -> 0 | D29: =Budget!E58 -> 0 | E29: =Budget!G58 -> 0 | F29: =$E29-SUM(IF(Prognosen!$A$51:$A$101=$A29,Prognosen!F$51:F$101)) -> 0 | G29: =$E29-SUM(IF(Prognosen!$A$51:$A$101=$A29,Prognosen!G$51:G$101)) -> 0 | H29: =$E29-SUM(IF(Prognosen!$A$51:$A$101=$A29,Prognosen!H$51:H$101)) -> 0 | I29: =$E29-SUM(IF(Prognosen!$A$51:$A$101=$A29,Prognosen!I$51:I$101)) -> 0 | J29: =$E29-SUM(IF(Prognosen!$A$51:$A$101=$A29,Prognosen!J$51:J$101)) -> 0 | K29: =$E29-SUM(IF(Prognosen!$A$51:$A$101=$A29,Prognosen!K$51:K$101)) -> 0 | L29: =$E29-SUM(IF(Prognosen!$A$51:$A$101=$A29,Prognosen!L$51:L$101)) -> 0 | M29: =$E29-SUM(IF(Prognosen!$A$51:$A$101=$A29,Prognosen!M$51:M$101)) -> 0 | N29: =$E29-SUM(IF(Prognosen!$A$51:$A$101=$A29,Prognosen!N$51:N$101)) -> 0
A31: 42 | B31: Entgelte | C31: =Budget!C62 -> 0 | D31: =Budget!E62 -> 0 | E31: =Budget!G62 -> 0 | F31: =ROUND(Budget!$G$62*ZZFaktor(Prognosen!$F10:F10)-SUM(IF(Prognosen!$A$51:$A$101=$A31,Prognosen!F$51:F$101)),0) -> 0 | G31: =ROUND(Budget!$G$62*ZZFaktor(Prognosen!$F10:G10)-SUM(IF(Prognosen!$A$51:$A$101=$A31,Prognosen!G$51:G$101)),0) -> 0 | H31: =ROUND(Budget!$G$62*ZZFaktor(Prognosen!$F10:H10)-SUM(IF(Prognosen!$A$51:$A$101=$A31,Prognosen!H$51:H$101)),0) -> 0 | I31: =ROUND(Budget!$G$62*ZZFaktor(Prognosen!$F10:I10)-SUM(IF(Prognosen!$A$51:$A$101=$A31,Prognosen!I$51:I$101)),0) -> 0 | J31: =ROUND(Budget!$G$62*ZZFaktor(Prognosen!$F10:J10)-SUM(IF(Prognosen!$A$51:$A$101=$A31,Prognosen!J$51:J$101)),0) -> 0 | K31: =ROUND(Budget!$G$62*ZZFaktor(Prognosen!$F10:K10)-SUM(IF(Prognosen!$A$51:$A$101=$A31,Prognosen!K$51:K$101)),0) -> 0 | L31: =ROUND(Budget!$G$62*ZZFaktor(Prognosen!$F10:L10)-SUM(IF(Prognosen!$A$51:$A$101=$A31,Prognosen!L$51:L$101)),0) -> 0 | M31: =ROUND(Budget!$G$62*ZZFaktor(Prognosen!$F10:M10)-SUM(IF(Prognosen!$A$51:$A$101=$A31,Prognosen!M$51:M$101)),0) -> 0 | N31: =ROUND(Budget!$G$62*ZZFaktor(Prognosen!$F10:N10)-SUM(IF(Prognosen!$A$51:$A$101=$A31,Prognosen!N$51:N$101)),0) -> 0
A33: 43 | B33: Verschiedene Erträge | C33: =Budget!C66 -> 0 | D33: =Budget!E66 -> 0 | E33: =Budget!G66 -> 0 | F33: =$E33-SUM(IF(Prognosen!$A$51:$A$101=$A33,Prognosen!F$51:F$101)) -> 0 | G33: =$E33-SUM(IF(Prognosen!$A$51:$A$101=$A33,Prognosen!G$51:G$101)) -> 0 | H33: =$E33-SUM(IF(Prognosen!$A$51:$A$101=$A33,Prognosen!H$51:H$101)) -> 0 | I33: =$E33-SUM(IF(Prognosen!$A$51:$A$101=$A33,Prognosen!I$51:I$101)) -> 0 | J33: =$E33-SUM(IF(Prognosen!$A$51:$A$101=$A33,Prognosen!J$51:J$101)) -> 0 | K33: =$E33-SUM(IF(Prognosen!$A$51:$A$101=$A33,Prognosen!K$51:K$101)) -> 0 | L33: =$E33-SUM(IF(Prognosen!$A$51:$A$101=$A33,Prognosen!L$51:L$101)) -> 0 | M33: =$E33-SUM(IF(Prognosen!$A$51:$A$101=$A33,Prognosen!M$51:M$101)) -> 0 | N33: =$E33-SUM(IF(Prognosen!$A$51:$A$101=$A33,Prognosen!N$51:N$101)) -> 0
A35: 45 | B35: Entnahmen aus Fonds | C35: =Budget!C70 -> 0 | D35: =Budget!E70 -> 0 | E35: =Budget!G70 -> 0 | F35: =$E35-SUM(IF(Prognosen!$A$51:$A$101=$A35,Prognosen!F$51:F$101)) -> 0 | G35: =$E35-SUM(IF(Prognosen!$A$51:$A$101=$A35,Prognosen!G$51:G$101)) -> 0 | H35: =$E35-SUM(IF(Prognosen!$A$51:$A$101=$A35,Prognosen!H$51:H$101)) -> 0 | I35: =$E35-SUM(IF(Prognosen!$A$51:$A$101=$A35,Prognosen!I$51:I$101)) -> 0 | J35: =$E35-SUM(IF(Prognosen!$A$51:$A$101=$A35,Prognosen!J$51:J$101)) -> 0 | K35: =$E35-SUM(IF(Prognosen!$A$51:$A$101=$A35,Prognosen!K$51:K$101)) -> 0 | L35: =$E35-SUM(IF(Prognosen!$A$51:$A$101=$A35,Prognosen!L$51:L$101)) -> 0 | M35: =$E35-SUM(IF(Prognosen!$A$51:$A$101=$A35,Prognosen!M$51:M$101)) -> 0 | N35: =$E35-SUM(IF(Prognosen!$A$51:$A$101=$A35,Prognosen!N$51:N$101)) -> 0
A37: 46 | B37: Transferertrag | C37: =Budget!C75 -> 0 | D37: =Budget!E75 -> 0 | E37: =Budget!G75 -> 0 | F37: =ROUND(Budget!$G77*ZZFaktor(Prognosen!$F11:F11)-SUM(IF(Prognosen!$A$51:$A$101=$A37,Prognosen!F$51:F$101)),0)+F38 -> 0 | G37: =ROUND(Budget!$G77*ZZFaktor(Prognosen!$F11:G11)-SUM(IF(Prognosen!$A$51:$A$101=$A37,Prognosen!G$51:G$101)),0)+G38 -> 0 | H37: =ROUND(Budget!$G77*ZZFaktor(Prognosen!$F11:H11)-SUM(IF(Prognosen!$A$51:$A$101=$A37,Prognosen!H$51:H$101)),0)+H38 -> 0 | I37: =ROUND(Budget!$G77*ZZFaktor(Prognosen!$F11:I11)-SUM(IF(Prognosen!$A$51:$A$101=$A37,Prognosen!I$51:I$101)),0)+I38 -> 0 | J37: =ROUND(Budget!$G77*ZZFaktor(Prognosen!$F11:J11)-SUM(IF(Prognosen!$A$51:$A$101=$A37,Prognosen!J$51:J$101)),0)+J38 -> 0 | K37: =ROUND(Budget!$G77*ZZFaktor(Prognosen!$F11:K11)-SUM(IF(Prognosen!$A$51:$A$101=$A37,Prognosen!K$51:K$101)),0)+K38 -> 0 | L37: =ROUND(Budget!$G77*ZZFaktor(Prognosen!$F11:L11)-SUM(IF(Prognosen!$A$51:$A$101=$A37,Prognosen!L$51:L$101)),0)+L38 -> 0 | M37: =ROUND(Budget!$G77*ZZFaktor(Prognosen!$F11:M11)-SUM(IF(Prognosen!$A$51:$A$101=$A37,Prognosen!M$51:M$101)),0)+M38 -> 0 | N37: =ROUND(Budget!$G77*ZZFaktor(Prognosen!$F11:N11)-SUM(IF(Prognosen!$A$51:$A$101=$A37,Prognosen!N$51:N$101)),0)+N38 -> 0
B38: davon Finanzausgleichsbeiträge | C38: =Budget!C76 -> 0 | D38: =Budget!E76 -> 0 | E38: =SUM(Prognosen!E30:E33) -> 0 | F38: =SUM(Prognosen!F30:F33) -> 0 | G38: =SUM(Prognosen!G30:G33) -> 0 | H38: =SUM(Prognosen!H30:H33) -> 0 | I38: =SUM(Prognosen!I30:I33) -> 0 | J38: =SUM(Prognosen!J30:J33) -> 0 | K38: =SUM(Prognosen!K30:K33) -> 0 | L38: =SUM(Prognosen!L30:L33) -> 0 | M38: =SUM(Prognosen!M30:M33) -> 0 | N38: =SUM(Prognosen!N30:N33) -> 0
A40: Ergebnis aus betrieblicher Tätigkeit | C40: =C20-C7 -> 0 | D40: 0 | E40: 0 | F40: 0 | G40: 0 | H40: 0 | I40: 0 | J40: 0 | K40: 0 | L40: 0 | M40: 0 | N40: 0
A42: 34 | B42: Finanzaufwand | C42: =Budget!C83 -> 0 | D42: =Budget!E83 -> 0 | E42: =Budget!G83 -> 0 | F42: =E42+'Schulden-Zinsen'!F41+'Schulden-Zinsen'!F63+'Schulden-Zinsen'!F70+SUM(IF(Prognosen!$A$51:$A$101=$A42,Prognosen!F$51:F$101)) -> 0 | G42: =F42+'Schulden-Zinsen'!G41+'Schulden-Zinsen'!G63+'Schulden-Zinsen'!G70+SUM(IF(Prognosen!$A$51:$A$101=$A42,Prognosen!G$51:G$101))-SUM(IF(Prognosen!$A$51:$A$101=$A42,Prognosen!F$51:F$101)) -> 0 | H42: =G42+'Schulden-Zinsen'!H41+'Schulden-Zinsen'!H63+'Schulden-Zinsen'!H70+SUM(IF(Prognosen!$A$51:$A$101=$A42,Prognosen!H$51:H$101))-SUM(IF(Prognosen!$A$51:$A$101=$A42,Prognosen!G$51:G$101)) -> 0 | I42: =H42+'Schulden-Zinsen'!I41+'Schulden-Zinsen'!I63+'Schulden-Zinsen'!I70+SUM(IF(Prognosen!$A$51:$A$101=$A42,Prognosen!I$51:I$101))-SUM(IF(Prognosen!$A$51:$A$101=$A42,Prognosen!H$51:H$101)) -> 0 | J42: =I42+'Schulden-Zinsen'!J41+'Schulden-Zinsen'!J63+'Schulden-Zinsen'!J70+SUM(IF(Prognosen!$A$51:$A$101=$A42,Prognosen!J$51:J$101))-SUM(IF(Prognosen!$A$51:$A$101=$A42,Prognosen!I$51:I$101)) -> 0 | K42: =J42+'Schulden-Zinsen'!K41+'Schulden-Zinsen'!K63+'Schulden-Zinsen'!K70+SUM(IF(Prognosen!$A$51:$A$101=$A42,Prognosen!K$51:K$101))-SUM(IF(Prognosen!$A$51:$A$101=$A42,Prognosen!J$51:J$101)) -> 0 | L42: =K42+'Schulden-Zinsen'!L41+'Schulden-Zinsen'!L63+'Schulden-Zinsen'!L70+SUM(IF(Prognosen!$A$51:$A$101=$A42,Prognosen!L$51:L$101))-SUM(IF(Prognosen!$A$51:$A$101=$A42,Prognosen!K$51:K$101)) -> 0 | M42: =L42+'Schulden-Zinsen'!M41+'Schulden-Zinsen'!M63+'Schulden-Zinsen'!M70+SUM(IF(Prognosen!$A$51:$A$101=$A42,Prognosen!M$51:M$101))-SUM(IF(Prognosen!$A$51:$A$101=$A42,Prognosen!L$51:L$101)) -> 0 | N42: =M42+'Schulden-Zinsen'!N41+'Schulden-Zinsen'!N63+'Schulden-Zinsen'!N70+SUM(IF(Prognosen!$A$51:$A$101=$A42,Prognosen!N$51:N$101))-SUM(IF(Prognosen!$A$51:$A$101=$A42,Prognosen!M$51:M$101)) -> 0
A44: 44 | B44: Finanzertrag | C44: =Budget!C87 -> 0 | D44: =Budget!E87 -> 0 | E44: =Budget!G87 -> 0 | F44: =E44+'Schulden-Zinsen'!F49+'Schulden-Zinsen'!F56+'Schulden-Zinsen'!F71-SUM(IF(Prognosen!$A$51:$A$101=$A44,Prognosen!F$51:F$101)) -> 0 | G44: =F44+'Schulden-Zinsen'!G49+'Schulden-Zinsen'!G56+'Schulden-Zinsen'!G71-SUM(IF(Prognosen!$A$51:$A$101=$A44,Prognosen!G$51:G$101))+SUM(IF(Prognosen!$A$51:$A$101=$A44,Prognosen!F$51:F$101)) -> 0 | H44: =G44+'Schulden-Zinsen'!H49+'Schulden-Zinsen'!H56+'Schulden-Zinsen'!H71-SUM(IF(Prognosen!$A$51:$A$101=$A44,Prognosen!H$51:H$101))+SUM(IF(Prognosen!$A$51:$A$101=$A44,Prognosen!G$51:G$101)) -> 0 | I44: =H44+'Schulden-Zinsen'!I49+'Schulden-Zinsen'!I56+'Schulden-Zinsen'!I71-SUM(IF(Prognosen!$A$51:$A$101=$A44,Prognosen!I$51:I$101))+SUM(IF(Prognosen!$A$51:$A$101=$A44,Prognosen!H$51:H$101)) -> 0 | J44: =I44+'Schulden-Zinsen'!J49+'Schulden-Zinsen'!J56+'Schulden-Zinsen'!J71-SUM(IF(Prognosen!$A$51:$A$101=$A44,Prognosen!J$51:J$101))+SUM(IF(Prognosen!$A$51:$A$101=$A44,Prognosen!I$51:I$101)) -> 0 | K44: =J44+'Schulden-Zinsen'!K49+'Schulden-Zinsen'!K56+'Schulden-Zinsen'!K71-SUM(IF(Prognosen!$A$51:$A$101=$A44,Prognosen!K$51:K$101))+SUM(IF(Prognosen!$A$51:$A$101=$A44,Prognosen!J$51:J$101)) -> 0 | L44: =K44+'Schulden-Zinsen'!L49+'Schulden-Zinsen'!L56+'Schulden-Zinsen'!L71-SUM(IF(Prognosen!$A$51:$A$101=$A44,Prognosen!L$51:L$101))+SUM(IF(Prognosen!$A$51:$A$101=$A44,Prognosen!K$51:K$101)) -> 0 | M44: =L44+'Schulden-Zinsen'!M49+'Schulden-Zinsen'!M56+'Schulden-Zinsen'!M71-SUM(IF(Prognosen!$A$51:$A$101=$A44,Prognosen!M$51:M$101))+SUM(IF(Prognosen!$A$51:$A$101=$A44,Prognosen!L$51:L$101)) -> 0 | N44: =M44+'Schulden-Zinsen'!N49+'Schulden-Zinsen'!N56+'Schulden-Zinsen'!N71-SUM(IF(Prognosen!$A$51:$A$101=$A44,Prognosen!N$51:N$101))+SUM(IF(Prognosen!$A$51:$A$101=$A44,Prognosen!M$51:M$101)) -> 0
A46: Ergebnis aus Finanzierung | C46: =ROUND(C44-C42,0) -> 0 | D46: =ROUND(D44-D42,0) -> 0 | E46: 0 | F46: 0 | G46: 0 | H46: 0 | I46: 0 | J46: 0 | K46: 0 | L46: 0 | M46: 0 | N46: =ROUND(N44-N42,0) -> 0
A48: Operatives Ergebnis | C48: =C40+C46 -> 0 | D48: =D40+D46 -> 0 | E48: 0 | F48: 0 | G48: 0 | H48: 0 | I48: 0 | J48: 0 | K48: 0 | L48: 0 | M48: 0 | N48: =N40+N46 -> 0
A50: 38/48 | B50: Ausserordentliches Ergebnis | C50: =-Budget!C96+(Budget!C100-Budget!C102)+(-EK!C6) -> 0 | D50: =-Budget!E96+(Budget!E100-Budget!E102)+(-EK!C6) -> 0 | E50: =-Prognosen!E43+(Prognosen!E45-Prognosen!E38)+(-EK!D6) -> 0 | F50: =-Prognosen!F43+(Prognosen!F45-Prognosen!F38)+(-EK!E6) -> 0 | G50: =-Prognosen!G43+(Prognosen!G45-Prognosen!G38)+(-EK!F6) -> 0 | H50: =-Prognosen!H43+(Prognosen!H45-Prognosen!H38)+(-EK!G6) -> 0 | I50: =-Prognosen!I43+(Prognosen!I45-Prognosen!I38)+(-EK!H6) -> 0 | J50: =-Prognosen!J43+(Prognosen!J45-Prognosen!J38)+(-EK!I6) -> 0 | K50: =-Prognosen!K43+(Prognosen!K45-Prognosen!K38)+(-EK!J6) -> 0 | L50: =-Prognosen!L43+(Prognosen!L45-Prognosen!L38)+(-EK!K6) -> 0 | M50: =-Prognosen!M43+(Prognosen!M45-Prognosen!M38)+(-EK!L6) -> 0 | N50: =-Prognosen!N43+(Prognosen!N45-Prognosen!N38)+(-EK!M6) -> 0
A51: 3899 | B51: davon Abtragung Bilanzfehlbetrag | C51: =Budget!C98 -> 0 | D51: =Budget!E98 -> 0 | E51: =Budget!G98 -> 0 | F51: =EK!E12 -> 0 | G51: =EK!F12 -> 0 | H51: =EK!G12 -> 0 | I51: =EK!H12 -> 0 | J51: =EK!I12 -> 0 | K51: =EK!J12 -> 0 | L51: =EK!K12 -> 0 | M51: =EK!L12 -> 0 | N51: =EK!M12 -> 0
A53: Gesamtergebnis | C53: =ROUND(C48+C50,0) -> 0 | D53: =ROUND(D48+D50,0) -> 0 | E53: 0 | F53: 0 | G53: 0 | H53: 0 | I53: 0 | J53: 0 | K53: 0 | L53: 0 | M53: 0 | N53: 0
A55: ="Mittelfristiges Haushaltsgleichgewicht "&Ausgangslage!D5 -> Mittelfristiges Haushaltsgleichgewicht 2024 | B55: ="Bilanz 31.12."&E41-2 -> Bilanz 31.12.-2
A56: mit operativem Ergebnis gerechnet | E56: =Ausgangslage!J58+Ausgangslage!L58+D48+E48+F48+G48+H48 -> 0
A57: mit Gesamtergebnis gerechnet | E57: =Ausgangslage!J59+Ausgangslage!L59+D53+E53+F53+G53+H53 -> 0

Sheet EK
A1: ="Eigenkapital Aufgaben- und Finanzplanung "&Ausgangslage!D5-1&" - "&Ausgangslage!D5+Ausgangslage!I5-1 -> Eigenkapital Aufgaben- und Finanzplanung 2023 - 2033
C3: =Ausgangslage!D5-1 -> 2023 | D3: =C3+1 -> 2024 | E3: =D3+1 -> 2025 | F3: 2026 | G3: 2027 | H3: 2028 | I3: 2029 | J3: 2030 | K3: 2031 | L3: 2032 | M3: =L3+1 -> 2033
A4: 29500.01 | B4: Aufwertungsreserve übr. Anlagen Anfang Jahr | C4: =Ausgangslage!H25 -> 0 | D4: =C4+C6+C7 -> 0 | E4: =D4+D6+D7 -> 0 | F4: 0 | G4: 0 | H4: 0 | I4: 0 | J4: 0 | K4: 0 | L4: 0 | M4: 0
A5: 29500.02 | B5: Aufwertungsreserve Grundstücke Anfang Jahr | C5: =Ausgangslage!H26 -> 0 | D5: =C5+C8 -> 0 | E5: =D5+D8 -> 0 | F5: 0 | G5: 0 | H5: 0 | I5: 0 | J5: 0 | K5: 0 | L5: 0 | M5: 0
A6: 4895 | B6: Entnahme Aufwertungsreserve | C6: =-IF(OR(Ausgangslage!$H$25=0,Ausgangslage!$H$25=""), 0, IF(Ausgangslage!$L$25="", 0, IF(Ausgangslage!$L$25<C3, 0, MIN(MAX(0,Ausgangslage!$H$25),Budget!E102)))) -> 0 | D6: =-IF(OR(Ausgangslage!$H$25=0,Ausgangslage!$H$25=""), 0, IF(Ausgangslage!$L$25="", 0, IF(Ausgangslage!$L$25<D$3, 0, MIN(MAX(0,D$4),Prognosen!E$38)))) -> 0 | E6: =-IF(OR(Ausgangslage!$H$25=0,Ausgangslage!$H$25=""), 0, IF(Ausgangslage!$L$25="", 0, IF(Ausgangslage!$L$25<E$3, 0, MIN(MAX(0,E$4),Prognosen!F$38)))) -> 0 | F6: =-IF(OR(Ausgangslage!$H$25=0,Ausgangslage!$H$25=""), 0, IF(Ausgangslage!$L$25="", 0, IF(Ausgangslage!$L$25<F$3, 0, MIN(MAX(0,F$4),Prognosen!G$38)))) -> 0 | G6: =-IF(OR(Ausgangslage!$H$25=0,Ausgangslage!$H$25=""), 0, IF(Ausgangslage!$L$25="", 0, IF(Ausgangslage!$L$25<G$3, 0, MIN(MAX(0,G$4),Prognosen!H$38)))) -> 0 | H6: =-IF(OR(Ausgangslage!$H$25=0,Ausgangslage!$H$25=""), 0, IF(Ausgangslage!$L$25="", 0, IF(Ausgangslage!$L$25<H$3, 0, MIN(MAX(0,H$4),Prognosen!I$38)))) -> 0 | I6: =-IF(OR(Ausgangslage!$H$25=0,Ausgangslage!$H$25=""), 0, IF(Ausgangslage!$L$25="", 0, IF(Ausgangslage!$L$25<I$3, 0, MIN(MAX(0,I$4),Prognosen!J$38)))) -> 0 | J6: =-IF(OR(Ausgangslage!$H$25=0,Ausgangslage!$H$25=""), 0, IF(Ausgangslage!$L$25="", 0, IF(Ausgangslage!$L$25<J$3, 0, MIN(MAX(0,J$4),Prognosen!K$38)))) -> 0 | K6: =-IF(OR(Ausgangslage!$H$25=0,Ausgangslage!$H$25=""), 0, IF(Ausgangslage!$L$25="", 0, IF(Ausgangslage!$L$25<K$3, 0, MIN(MAX(0,K$4),Prognosen!L$38)))) -> 0 | L6: =-IF(OR(Ausgangslage!$H$25=0,Ausgangslage!$H$25=""), 0, IF(Ausgangslage!$L$25="", 0, IF(Ausgangslage!$L$25<L$3, 0, MIN(MAX(0,L$4),Prognosen!M$38)))) -> 0 | M6: =-IF(OR(Ausgangslage!$H$25=0,Ausgangslage!$H$25=""), 0, IF(Ausgangslage!$L$25="", 0, IF(Ausgangslage!$L$25<M$3, 0, MIN(MAX(0,M$4),Prognosen!N$38)))) -> 0
B7: Umbuchung Aufwertungsreserve übrige Anlagen | C7: =-IF(OR(Ausgangslage!$H$25=0,Ausgangslage!$H$25=""),0, IF(Ausgangslage!$P$25="", IF(Ausgangslage!$L$25="", C3, IF(Ausgangslage!$L$25<=C3, C4,0)), IF(Ausgangslage!$P$25<=C3, C4,0))) -> 0 | D7: =-IF(OR(Ausgangslage!$H$25=0,Ausgangslage!$H$25=""),0, IF(Ausgangslage!$P$25="", IF(Ausgangslage!$L$25="", D3, IF(Ausgangslage!$L$25<=D3, D4,0)), IF(Ausgangslage!$P$25<=D3, D4,0))) -> 0 | E7: =-IF(OR(Ausgangslage!$H$25=0,Ausgangslage!$H$25=""),0, IF(Ausgangslage!$P$25="", IF(Ausgangslage!$L$25="", E3, IF(Ausgangslage!$L$25<=E3, E4,0)), IF(Ausgangslage!$P$25<=E3, E4,0))) -> 0 | F7: =-IF(OR(Ausgangslage!$H$25=0,Ausgangslage!$H$25=""),0, IF(Ausgangslage!$P$25="", IF(Ausgangslage!$L$25="", F3, IF(Ausgangslage!$L$25<=F3, F4,0)), IF(Ausgangslage!$P$25<=F3, F4,0))) -> 0 | G7: =-IF(OR(Ausgangslage!$H$25=0,Ausgangslage!$H$25=""),0, IF(Ausgangslage!$P$25="", IF(Ausgangslage!$L$25="", G3, IF(Ausgangslage!$L$25<=G3, G4,0)), IF(Ausgangslage!$P$25<=G3, G4,0))) -> 0 | H7: =-IF(OR(Ausgangslage!$H$25=0,Ausgangslage!$H$25=""),0, IF(Ausgangslage!$P$25="", IF(Ausgangslage!$L$25="", H3, IF(Ausgangslage!$L$25<=H3, H4,0)), IF(Ausgangslage!$P$25<=H3, H4,0))) -> 0 | I7: =-IF(OR(Ausgangslage!$H$25=0,Ausgangslage!$H$25=""),0, IF(Ausgangslage!$P$25="", IF(Ausgangslage!$L$25="", I3, IF(Ausgangslage!$L$25<=I3, I4,0)), IF(Ausgangslage!$P$25<=I3, I4,0))) -> 0 | J7: =-IF(OR(Ausgangslage!$H$25=0,Ausgangslage!$H$25=""),0, IF(Ausgangslage!$P$25="", IF(Ausgangslage!$L$25="", J3, IF(Ausgangslage!$L$25<=J3, J4,0)), IF(Ausgangslage!$P$25<=J3, J4,0))) -> 0 | K7: =-IF(OR(Ausgangslage!$H$25=0,Ausgangslage!$H$25=""),0, IF(Ausgangslage!$P$25="", IF(Ausgangslage!$L$25="", K3, IF(Ausgangslage!$L$25<=K3, K4,0)), IF(Ausgangslage!$P$25<=K3, K4,0))) -> 0 | L7: =-IF(OR(Ausgangslage!$H$25=0,Ausgangslage!$H$25=""),0, IF(Ausgangslage!$P$25="", IF(Ausgangslage!$L$25="", L3, IF(Ausgangslage!$L$25<=L3, L4,0)), IF(Ausgangslage!$P$25<=L3, L4,0))) -> 0 | M7: =-IF(OR(Ausgangslage!$H$25=0,Ausgangslage!$H$25=""),0, IF(Ausgangslage!$P$25="", IF(Ausgangslage!$L$25="", M3, IF(Ausgangslage!$L$25<=M3, M4,0)), IF(Ausgangslage!$P$25<=M3, M4,0))) -> 0
B8: Umbuchung Aufwertungsreserve Grundstücke | C8: =-IF(C3=Ausgangslage!$P$26,Ausgangslage!$H$26,0) -> 0 | D8: =-IF(D3=Ausgangslage!$P$26,Ausgangslage!$H$26,0) -> 0 | E8: =-IF(E3=Ausgangslage!$P$26,Ausgangslage!$H$26,0) -> 0 | F8: =-IF(F3=Ausgangslage!$P$26,Ausgangslage!$H$26,0) -> 0 | G8: =-IF(G3=Ausgangslage!$P$26,Ausgangslage!$H$26,0) -> 0 | H8: =-IF(H3=Ausgangslage!$P$26,Ausgangslage!$H$26,0) -> 0 | I8: =-IF(I3=Ausgangslage!$P$26,Ausgangslage!$H$26,0) -> 0 | J8: =-IF(J3=Ausgangslage!$P$26,Ausgangslage!$H$26,0) -> 0 | K8: =-IF(K3=Ausgangslage!$P$26,Ausgangslage!$H$26,0) -> 0 | L8: =-IF(L3=Ausgangslage!$P$26,Ausgangslage!$H$26,0) -> 0 | M8: =-IF(M3=Ausgangslage!$P$26,Ausgangslage!$H$26,0) -> 0
A9: 29500 | B9: Aufwertungsreserve Ende Jahr | C9: =SUM(C4:C8) -> 0 | D9: =SUM(D4:D8) -> 0 | E9: 0 | F9: 0 | G9: 0 | H9: 0 | I9: 0 | J9: 0 | K9: 0 | L9: 0 | M9: 0
A11: 299 | B11: Bilanzüberschuss/-fehlbetrag Anfang Jahr | C11: =Ausgangslage!H28 -> 0 | D11: =C15 -> 0 | E11: =D15 -> 0 | F11: 0 | G11: 0 | H11: 0 | I11: 0 | J11: 0 | K11: 0 | L11: 0 | M11: 0
A12: 3899 | B12: Abtragung Bilanzfehlbetrag (30%) | C12: =Budget!E98 -> 0 | D12: =Budget!G98 -> 0 | E12: =ROUND(IF((E11)<0,(E11)*-30%,0),0) -> 0 | F12: 0 | G12: 0 | H12: 0 | I12: 0 | J12: 0 | K12: 0 | L12: 0 | M12: 0
A13: 90 | B13: Gesamtergebnis | C13: =Budget!E106 -> 0 | D13: =Budget!G106 -> 0 | E13: ='Plan-ER'!F53 -> 0 | F13: ='Plan-ER'!G53 -> 0 | G13: ='Plan-ER'!H53 -> 0 | H13: ='Plan-ER'!I53 -> 0 | I13: ='Plan-ER'!J53 -> 0 | J13: ='Plan-ER'!K53 -> 0 | K13: ='Plan-ER'!L53 -> 0 | L13: ='Plan-ER'!M53 -> 0 | M13: ='Plan-ER'!N53 -> 0
B14: Umbuchung Aufwertungsreserve | C14: =-C8-C7 -> 0 | D14: =-D8-D7 -> 0 | E14: 0 | F14: 0 | G14: 0 | H14: 0 | I14: 0 | J14: 0 | K14: 0 | L14: 0 | M14: 0
A15: 299 | B15: Bilanzüberschuss/ -fehlbetrag Ende Jahr | C15: =SUM(C11:C14) -> 0 | D15: =SUM(D11:D14) -> 0 | E15: 0 | F15: 0 | G15: 0 | H15: 0 | I15: 0 | J15: 0 | K15: 0 | L15: 0 | M15: 0

Sheet Schulden
A1: ="Schuldenübersicht "&Ausgangslage!D5-1&" - "&Ausgangslage!D5+Ausgangslage!I5-1 -> Schuldenübersicht 2023 - 2033
A3: Bestehende Kredite/Darlehen | C3: Betrag | D3: Zinssatz | E3: =Ausgangslage!D5-1 -> 2023 | F3: =E3+1 -> 2024 | G3: 2025 | H3: 2026 | I3: 2027 | J3: 2028 | K3: 2029 | L3: 2030 | M3: 2031 | N3: 2032 | O3: =N3+1 -> 2033
A4: Anfangsbestand | C4: =SUM(Ausgangslage!H31:I50) -> 0 | E4: =C4 -> 0
A6: Neuaufnahme Kredite/Darlehen
A7: Kapitalbedarf gemäss Planung | C7: =SUM(E7:O7) -> 0 | D7: =+Prognosen!E12 -> 0.00% | E7: ='Schulden-Zinsen'!D65 -> 0 | F7: ='Schulden-Zinsen'!E65 -> 0
A8: Kapitalbedarf gemäss Planung | C8: =SUM(E8:O8) -> 0 | D8: =+Prognosen!F12 -> 0.00% | G8: ='Schulden-Zinsen'!F65 -> 0
A9: Kapitalbedarf gemäss Planung | C9: 0 | D9: =+Prognosen!G12 -> 0.00% | H9: ='Schulden-Zinsen'!G65 -> 0
A10: Kapitalbedarf gemäss Planung | C10: 0 | D10: =+Prognosen!H12 -> 0.00% | I10: ='Schulden-Zinsen'!H65 -> 0
A11: Kapitalbedarf gemäss Planung | C11: 0 | D11: =+Prognosen!I12 -> 0.00% | J11: ='Schulden-Zinsen'!I65 -> 0
A12: Kapitalbedarf gemäss Planung | C12: 0 | D12: =+Prognosen!J12 -> 0.00% | K12: ='Schulden-Zinsen'!J65 -> 0
A13: Kapitalbedarf gemäss Planung | C13: 0 | D13: =+Prognosen!K12 -> 0.00% | L13: ='Schulden-Zinsen'!K65 -> 0
A14: Kapitalbedarf gemäss Planung | C14: 0 | D14: =+Prognosen!L12 -> 0.00% | M14: ='Schulden-Zinsen'!L65 -> 0
A15: Kapitalbedarf gemäss Planung | C15: 0 | D15: =+Prognosen!M12 -> 0.00% | N15: ='Schulden-Zinsen'!M65 -> 0
A16: Kapitalbedarf gemäss Planung | C16: 0 | D16: =+Prognosen!N12 -> 0.00% | O16: ='Schulden-Zinsen'!N65 -> 0
A18: Rückzahlung Kredite/Darlehen
A19: =IF('Schulden-Zinsen'!A18="","",'Schulden-Zinsen'!A18) ->  | C19: =SUM(E19:O19) -> 0 | D19: ='Schulden-Zinsen'!O18 -> 0.00% | E19: =-'Schulden-Zinsen'!D18 -> 0 | F19: =-'Schulden-Zinsen'!E18 -> 0 | G19: =-'Schulden-Zinsen'!F18 -> 0 | H19: =-'Schulden-Zinsen'!G18 -> 0 | I19: =-'Schulden-Zinsen'!H18 -> 0 | J19: =-'Schulden-Zinsen'!I18 -> 0 | K19: =-'Schulden-Zinsen'!J18 -> 0 | L19: =-'Schulden-Zinsen'!K18 -> 0 | M19: =-'Schulden-Zinsen'!L18 -> 0 | N19: =-'Schulden-Zinsen'!M18 -> 0 | O19: =-'Schulden-Zinsen'!N18 -> 0
A20: =IF('Schulden-Zinsen'!A19="","",'Schulden-Zinsen'!A19) ->  | C20: 0 | D20: ='Schulden-Zinsen'!O19 -> 0.00% | E20: =-'Schulden-Zinsen'!D19 -> 0 | F20: =-'Schulden-Zinsen'!E19 -> 0 | G20: =-'Schulden-Zinsen'!F19 -> 0 | H20: =-'Schulden-Zinsen'!G19 -> 0 | I20: =-'Schulden-Zinsen'!H19 -> 0 | J20: =-'Schulden-Zinsen'!I19 -> 0 | K20: =-'Schulden-Zinsen'!J19 -> 0 | L20: =-'Schulden-Zinsen'!K19 -> 0 | M20: =-'Schulden-Zinsen'!L19 -> 0 | N20: =-'Schulden-Zinsen'!M19 -> 0 | O20: =-'Schulden-Zinsen'!N19 -> 0
A21: =IF('Schulden-Zinsen'!A20="","",'Schulden-Zinsen'!A20) ->  | C21: 0 | D21: ='Schulden-Zinsen'!O20 -> 0.00% | E21: =-'Schulden-Zinsen'!D20 -> 0 | F21: =-'Schulden-Zinsen'!E20 -> 0 | G21: =-'Schulden-Zinsen'!F20 -> 0 | H21: =-'Schulden-Zinsen'!G20 -> 0 | I21: =-'Schulden-Zinsen'!H20 -> 0 | J21: =-'Schulden-Zinsen'!I20 -> 0 | K21: =-'Schulden-Zinsen'!J20 -> 0 | L21: =-'Schulden-Zinsen'!K20 -> 0 | M21: =-'Schulden-Zinsen'!L20 -> 0 | N21: =-'Schulden-Zinsen'!M20 -> 0 | O21: =-'Schulden-Zinsen'!N20 -> 0
A22: =IF('Schulden-Zinsen'!A21="","",'Schulden-Zinsen'!A21) ->  | C22: 0 | D22: ='Schulden-Zinsen'!O21 -> 0.00% | E22: =-'Schulden-Zinsen'!D21 -> 0 | F22: =-'Schulden-Zinsen'!E21 -> 0 | G22: =-'Schulden-Zinsen'!F21 -> 0 | H22: =-'Schulden-Zinsen'!G21 -> 0 | I22: =-'Schulden-Zinsen'!H21 -> 0 | J22: =-'Schulden-Zinsen'!I21 -> 0 | K22: =-'Schulden-Zinsen'!J21 -> 0 | L22: =-'Schulden-Zinsen'!K21 -> 0 | M22: =-'Schulden-Zinsen'!L21 -> 0 | N22: =-'Schulden-Zinsen'!M21 -> 0 | O22: =-'Schulden-Zinsen'!N21 -> 0
A23: =IF('Schulden-Zinsen'!A22="","",'Schulden-Zinsen'!A22) ->  | C23: 0 | D23: ='Schulden-Zinsen'!O22 -> 0.00% | E23: =-'Schulden-Zinsen'!D22 -> 0 | F23: =-'Schulden-Zinsen'!E22 -> 0 | G23: =-'Schulden-Zinsen'!F22 -> 0 | H23: =-'Schulden-Zinsen'!G22 -> 0 | I23: =-'Schulden-Zinsen'!H22 -> 0 | J23: =-'Schulden-Zinsen'!I22 -> 0 | K23: =-'Schulden-Zinsen'!J22 -> 0 | L23: =-'Schulden-Zinsen'!K22 -> 0 | M23: =-'Schulden-Zinsen'!L22 -> 0 | N23: =-'Schulden-Zinsen'!M22 -> 0 | O23: =-'Schulden-Zinsen'!N22 -> 0
A24: =IF('Schulden-Zinsen'!A23="","",'Schulden-Zinsen'!A23) ->  | C24: 0 | D24: ='Schulden-Zinsen'!O23 -> 0.00% | E24: =-'Schulden-Zinsen'!D23 -> 0 | F24: =-'Schulden-Zinsen'!E23 -> 0 | G24: =-'Schulden-Zinsen'!F23 -> 0 | H24: =-'Schulden-Zinsen'!G23 -> 0 | I24: =-'Schulden-Zinsen'!H23 -> 0 | J24: =-'Schulden-Zinsen'!I23 -> 0 | K24: =-'Schulden-Zinsen'!J23 -> 0 | L24: =-'Schulden-Zinsen'!K23 -> 0 | M24: =-'Schulden-Zinsen'!L23 -> 0 | N24: =-'Schulden-Zinsen'!M23 -> 0 | O24: =-'Schulden-Zinsen'!N23 -> 0
A25: =IF('Schulden-Zinsen'!A24="","",'Schulden-Zinsen'!A24) ->  | C25: 0 | D25: ='Schulden-Zinsen'!O24 -> 0.00% | E25: =-'Schulden-Zinsen'!D24 -> 0 | F25: =-'Schulden-Zinsen'!E24 -> 0 | G25: =-'Schulden-Zinsen'!F24 -> 0 | H25: =-'Schulden-Zinsen'!G24 -> 0 | I25: =-'Schulden-Zinsen'!H24 -> 0 | J25: =-'Schulden-Zinsen'!I24 -> 0 | K25: =-'Schulden-Zinsen'!J24 -> 0 | L25: =-'Schulden-Zinsen'!K24 -> 0 | M25: =-'Schulden-Zinsen'!L24 -> 0 | N25: =-'Schulden-Zinsen'!M24 -> 0 | O25: =-'Schulden-Zinsen'!N24 -> 0
A26: =IF('Schulden-Zinsen'!A25="","",'Schulden-Zinsen'!A25) ->  | C26: 0 | D26: ='Schulden-Zinsen'!O25 -> 0.00% | E26: =-'Schulden-Zinsen'!D25 -> 0 | F26: =-'Schulden-Zinsen'!E25 -> 0 | G26: =-'Schulden-Zinsen'!F25 -> 0 | H26: =-'Schulden-Zinsen'!G25 -> 0 | I26: =-'Schulden-Zinsen'!H25 -> 0 | J26: =-'Schulden-Zinsen'!I25 -> 0 | K26: =-'Schulden-Zinsen'!J25 -> 0 | L26: =-'Schulden-Zinsen'!K25 -> 0 | M26: =-'Schulden-Zinsen'!L25 -> 0 | N26: =-'Schulden-Zinsen'!M25 -> 0 | O26: =-'Schulden-Zinsen'!N25 -> 0
A27: =IF('Schulden-Zinsen'!A26="","",'Schulden-Zinsen'!A26) ->  | C27: 0 | D27: ='Schulden-Zinsen'!O26 -> 0.00% | E27: =-'Schulden-Zinsen'!D26 -> 0 | F27: =-'Schulden-Zinsen'!E26 -> 0 | G27: =-'Schulden-Zinsen'!F26 -> 0 | H27: =-'Schulden-Zinsen'!G26 -> 0 | I27: =-'Schulden-Zinsen'!H26 -> 0 | J27: =-'Schulden-Zinsen'!I26 -> 0 | K27: =-'Schulden-Zinsen'!J26 -> 0 | L27: =-'Schulden-Zinsen'!K26 -> 0 | M27: =-'Schulden-Zinsen'!L26 -> 0 | N27: =-'Schulden-Zinsen'!M26 -> 0 | O27: =-'Schulden-Zinsen'!N26 -> 0
A28: =IF('Schulden-Zinsen'!A27="","",'Schulden-Zinsen'!A27) ->  | C28: 0 | D28: ='Schulden-Zinsen'!O27 -> 0.00% | E28: =-'Schulden-Zinsen'!D27 -> 0 | F28: =-'Schulden-Zinsen'!E27 -> 0 | G28: =-'Schulden-Zinsen'!F27 -> 0 | H28: =-'Schulden-Zinsen'!G27 -> 0 | I28: =-'Schulden-Zinsen'!H27 -> 0 | J28: =-'Schulden-Zinsen'!I27 -> 0 | K28: =-'Schulden-Zinsen'!J27 -> 0 | L28: =-'Schulden-Zinsen'!K27 -> 0 | M28: =-'Schulden-Zinsen'!L27 -> 0 | N28: =-'Schulden-Zinsen'!M27 -> 0 | O28: =-'Schulden-Zinsen'!N27 -> 0
A29: =IF('Schulden-Zinsen'!A28="","",'Schulden-Zinsen'!A28) ->  | C29: =SUM(E29:O29) -> 0 | D29: ='Schulden-Zinsen'!O28 -> 0.00% | E29: =-'Schulden-Zinsen'!D28 -> 0 | F29: =-'Schulden-Zinsen'!E28 -> 0 | G29: =-'Schulden-Zinsen'!F28 -> 0 | H29: =-'Schulden-Zinsen'!G28 -> 0 | I29: =-'Schulden-Zinsen'!H28 -> 0 | J29: =-'Schulden-Zinsen'!I28 -> 0 | K29: =-'Schulden-Zinsen'!J28 -> 0 | L29: =-'Schulden-Zinsen'!K28 -> 0 | M29: =-'Schulden-Zinsen'!L28 -> 0 | N29: =-'Schulden-Zinsen'!M28 -> 0 | O29: =-'Schulden-Zinsen'!N28 -> 0
A30: =IF('Schulden-Zinsen'!A29="","",'Schulden-Zinsen'!A29) ->  | C30: 0 | D30: ='Schulden-Zinsen'!O29 -> 0.00% | E30: =-'Schulden-Zinsen'!D29 -> 0 | F30: =-'Schulden-Zinsen'!E29 -> 0 | G30: =-'Schulden-Zinsen'!F29 -> 0 | H30: =-'Schulden-Zinsen'!G29 -> 0 | I30: =-'Schulden-Zinsen'!H29 -> 0 | J30: =-'Schulden-Zinsen'!I29 -> 0 | K30: =-'Schulden-Zinsen'!J29 -> 0 | L30: =-'Schulden-Zinsen'!K29 -> 0 | M30: =-'Schulden-Zinsen'!L29 -> 0 | N30: =-'Schulden-Zinsen'!M29 -> 0 | O30: =-'Schulden-Zinsen'!N29 -> 0
A31: =IF('Schulden-Zinsen'!A30="","",'Schulden-Zinsen'!A30) ->  | C31: 0 | D31: ='Schulden-Zinsen'!O30 -> 0.00% | E31: =-'Schulden-Zinsen'!D30 -> 0 | F31: =-'Schulden-Zinsen'!E30 -> 0 | G31: =-'Schulden-Zinsen'!F30 -> 0 | H31: =-'Schulden-Zinsen'!G30 -> 0 | I31: =-'Schulden-Zinsen'!H30 -> 0 | J31: =-'Schulden-Zinsen'!I30 -> 0 | K31: =-'Schulden-Zinsen'!J30 -> 0 | L31: =-'Schulden-Zinsen'!K30 -> 0 | M31: =-'Schulden-Zinsen'!L30 -> 0 | N31: =-'Schulden-Zinsen'!M30 -> 0 | O31: =-'Schulden-Zinsen'!N30 -> 0
A32: =IF('Schulden-Zinsen'!A31="","",'Schulden-Zinsen'!A31) ->  | C32: 0 | D32: ='Schulden-Zinsen'!O31 -> 0.00% | E32: =-'Schulden-Zinsen'!D31 -> 0 | F32: =-'Schulden-Zinsen'!E31 -> 0 | G32: =-'Schulden-Zinsen'!F31 -> 0 | H32: =-'Schulden-Zinsen'!G31 -> 0 | I32: =-'Schulden-Zinsen'!H31 -> 0 | J32: =-'Schulden-Zinsen'!I31 -> 0 | K32: =-'Schulden-Zinsen'!J31 -> 0 | L32: =-'Schulden-Zinsen'!K31 -> 0 | M32: =-'Schulden-Zinsen'!L31 -> 0 | N32: =-'Schulden-Zinsen'!M31 -> 0 | O32: =-'Schulden-Zinsen'!N31 -> 0
A33: =IF('Schulden-Zinsen'!A32="","",'Schulden-Zinsen'!A32) ->  | C33: 0 | D33: ='Schulden-Zinsen'!O32 -> 0.00% | E33: =-'Schulden-Zinsen'!D32 -> 0 | F33: =-'Schulden-Zinsen'!E32 -> 0 | G33: =-'Schulden-Zinsen'!F32 -> 0 | H33: =-'Schulden-Zinsen'!G32 -> 0 | I33: =-'Schulden-Zinsen'!H32 -> 0 | J33: =-'Schulden-Zinsen'!I32 -> 0 | K33: =-'Schulden-Zinsen'!J32 -> 0 | L33: =-'Schulden-Zinsen'!K32 -> 0 | M33: =-'Schulden-Zinsen'!L32 -> 0 | N33: =-'Schulden-Zinsen'!M32 -> 0 | O33: =-'Schulden-Zinsen'!N32 -> 0
A34: =IF('Schulden-Zinsen'!A33="","",'Schulden-Zinsen'!A33) ->  | C34: 0 | D34: ='Schulden-Zinsen'!O33 -> 0.00% | E34: =-'Schulden-Zinsen'!D33 -> 0 | F34: =-'Schulden-Zinsen'!E33 -> 0 | G34: =-'Schulden-Zinsen'!F33 -> 0 | H34: =-'Schulden-Zinsen'!G33 -> 0 | I34: =-'Schulden-Zinsen'!H33 -> 0 | J34: =-'Schulden-Zinsen'!I33 -> 0 | K34: =-'Schulden-Zinsen'!J33 -> 0 | L34: =-'Schulden-Zinsen'!K33 -> 0 | M34: =-'Schulden-Zinsen'!L33 -> 0 | N34: =-'Schulden-Zinsen'!M33 -> 0 | O34: =-'Schulden-Zinsen'!N33 -> 0
A35: =IF('Schulden-Zinsen'!A34="","",'Schulden-Zinsen'!A34) ->  | C35: 0 | D35: ='Schulden-Zinsen'!O34 -> 0.00% | E35: =-'Schulden-Zinsen'!D34 -> 0 | F35: =-'Schulden-Zinsen'!E34 -> 0 | G35: =-'Schulden-Zinsen'!F34 -> 0 | H35: =-'Schulden-Zinsen'!G34 -> 0 | I35: =-'Schulden-Zinsen'!H34 -> 0 | J35: =-'Schulden-Zinsen'!I34 -> 0 | K35: =-'Schulden-Zinsen'!J34 -> 0 | L35: =-'Schulden-Zinsen'!K34 -> 0 | M35: =-'Schulden-Zinsen'!L34 -> 0 | N35: =-'Schulden-Zinsen'!M34 -> 0 | O35: =-'Schulden-Zinsen'!N34 -> 0
A36: =IF('Schulden-Zinsen'!A35="","",'Schulden-Zinsen'!A35) ->  | C36: 0 | D36: ='Schulden-Zinsen'!O35 -> 0.00% | E36: =-'Schulden-Zinsen'!D35 -> 0 | F36: =-'Schulden-Zinsen'!E35 -> 0 | G36: =-'Schulden-Zinsen'!F35 -> 0 | H36: =-'Schulden-Zinsen'!G35 -> 0 | I36: =-'Schulden-Zinsen'!H35 -> 0 | J36: =-'Schulden-Zinsen'!I35 -> 0 | K36: =-'Schulden-Zinsen'!J35 -> 0 | L36: =-'Schulden-Zinsen'!K35 -> 0 | M36: =-'Schulden-Zinsen'!L35 -> 0 | N36: =-'Schulden-Zinsen'!M35 -> 0 | O36: =-'Schulden-Zinsen'!N35 -> 0
A37: =IF('Schulden-Zinsen'!A36="","",'Schulden-Zinsen'!A36) ->  | C37: 0 | D37: ='Schulden-Zinsen'!O36 -> 0.00% | E37: =-'Schulden-Zinsen'!D36 -> 0 | F37: =-'Schulden-Zinsen'!E36 -> 0 | G37: =-'Schulden-Zinsen'!F36 -> 0 | H37: =-'Schulden-Zinsen'!G36 -> 0 | I37: =-'Schulden-Zinsen'!H36 -> 0 | J37: =-'Schulden-Zinsen'!I36 -> 0 | K37: =-'Schulden-Zinsen'!J36 -> 0 | L37: =-'Schulden-Zinsen'!K36 -> 0 | M37: =-'Schulden-Zinsen'!L36 -> 0 | N37: =-'Schulden-Zinsen'!M36 -> 0 | O37: =-'Schulden-Zinsen'!N36 -> 0
A38: =IF('Schulden-Zinsen'!A37="","",'Schulden-Zinsen'!A37) ->  | C38: 0 | D38: ='Schulden-Zinsen'!O37 -> 0.00% | E38: =-'Schulden-Zinsen'!D37 -> 0 | F38: =-'Schulden-Zinsen'!E37 -> 0 | G38: =-'Schulden-Zinsen'!F37 -> 0 | H38: =-'Schulden-Zinsen'!G37 -> 0 | I38: =-'Schulden-Zinsen'!H37 -> 0 | J38: =-'Schulden-Zinsen'!I37 -> 0 | K38: =-'Schulden-Zinsen'!J37 -> 0 | L38: =-'Schulden-Zinsen'!K37 -> 0 | M38: =-'Schulden-Zinsen'!L37 -> 0 | N38: =-'Schulden-Zinsen'!M37 -> 0 | O38: =-'Schulden-Zinsen'!N37 -> 0
A39: =IF('Schulden-Zinsen'!A38="","",'Schulden-Zinsen'!A38) ->  | C39: 0 | D39: ='Schulden-Zinsen'!O38 -> 0.00% | E39: =-'Schulden-Zinsen'!D38 -> 0 | F39: =-'Schulden-Zinsen'!E38 -> 0 | G39: =-'Schulden-Zinsen'!F38 -> 0 | H39: =-'Schulden-Zinsen'!G38 -> 0 | I39: =-'Schulden-Zinsen'!H38 -> 0 | J39: =-'Schulden-Zinsen'!I38 -> 0 | K39: =-'Schulden-Zinsen'!J38 -> 0 | L39: =-'Schulden-Zinsen'!K38 -> 0 | M39: =-'Schulden-Zinsen'!L38 -> 0 | N39: =-'Schulden-Zinsen'!M38 -> 0 | O39: =-'Schulden-Zinsen'!N38 -> 0
A40: =IF('Schulden-Zinsen'!A39="","",'Schulden-Zinsen'!A39) ->  | C40: 0 | D40: ='Schulden-Zinsen'!O39 -> 0.00% | E40: =-'Schulden-Zinsen'!D39 -> 0 | F40: =-'Schulden-Zinsen'!E39 -> 0 | G40: =-'Schulden-Zinsen'!F39 -> 0 | H40: =-'Schulden-Zinsen'!G39 -> 0 | I40: =-'Schulden-Zinsen'!H39 -> 0 | J40: =-'Schulden-Zinsen'!I39 -> 0 | K40: =-'Schulden-Zinsen'!J39 -> 0 | L40: =-'Schulden-Zinsen'!K39 -> 0 | M40: =-'Schulden-Zinsen'!L39 -> 0 | N40: =-'Schulden-Zinsen'!M39 -> 0 | O40: =-'Schulden-Zinsen'!N39 -> 0
A41: =IF('Schulden-Zinsen'!A40="","",'Schulden-Zinsen'!A40) ->  | C41: 0 | D41: ='Schulden-Zinsen'!O40 -> 0.00% | E41: =-'Schulden-Zinsen'!D40 -> 0 | F41: =-'Schulden-Zinsen'!E40 -> 0 | G41: =-'Schulden-Zinsen'!F40 -> 0 | H41: =-'Schulden-Zinsen'!G40 -> 0 | I41: =-'Schulden-Zinsen'!H40 -> 0 | J41: =-'Schulden-Zinsen'!I40 -> 0 | K41: =-'Schulden-Zinsen'!J40 -> 0 | L41: =-'Schulden-Zinsen'!K40 -> 0 | M41: =-'Schulden-Zinsen'!L40 -> 0 | N41: =-'Schulden-Zinsen'!M40 -> 0 | O41: =-'Schulden-Zinsen'!N40 -> 0
A43: Bestand Kredite/Darlehen | E43: =SUM(E4:E41) -> 0 | F43: =+E43+SUM(F4:F41) -> 0 | G43: 0 | H43: 0 | I43: 0 | J43: 0 | K43: 0 | L43: 0 | M43: 0 | N43: 0 | O43: 0

Sheet Übersicht
A1: ="Übersicht Aufgaben- und Finanzplanung "&Ausgangslage!D5-1&" - "&Ausgangslage!D5+Ausgangslage!I5-1 -> Übersicht Aufgaben- und Finanzplanung 2023 - 2033
C3: =Ausgangslage!D5-1 -> 2023 | D3: =C3+1 -> 2024 | E3: =D3+1 -> 2025 | F3: 2026 | G3: 2027 | H3: 2028 | I3: 2029 | J3: 2030 | K3: 2031 | L3: 2032 | M3: =L3+1 -> 2033
A4: Einwohnerzahl | C4: ='Plan-ER'!D4 -> 0 | D4: ='Plan-ER'!E4 -> 0 | E4: ='Plan-ER'!F4 -> 0 | F4: ='Plan-ER'!G4 -> 0 | G4: ='Plan-ER'!H4 -> 0 | H4: ='Plan-ER'!I4 -> 0 | I4: ='Plan-ER'!J4 -> 0 | J4: ='Plan-ER'!K4 -> 0 | K4: ='Plan-ER'!L4 -> 0 | L4: ='Plan-ER'!M4 -> 0 | M4: ='Plan-ER'!N4 -> 0
A5: Steuerfuss | C5: ='Plan-ER'!D5 -> 0% | D5: ='Plan-ER'!E5 -> 0% | E5: ='Plan-ER'!F5 -> 0% | F5: ='Plan-ER'!G5 -> 0% | G5: ='Plan-ER'!H5 -> 0% | H5: ='Plan-ER'!I5 -> 0% | I5: ='Plan-ER'!J5 -> 0% | J5: ='Plan-ER'!K5 -> 0% | K5: ='Plan-ER'!L5 -> 0% | L5: ='Plan-ER'!M5 -> 0% | M5: ='Plan-ER'!N5 -> 0%
C7: =C3 -> 2023 | D7: =C7+1 -> 2024 | E7: =D7+1 -> 2025 | F7: 2026 | G7: 2027 | H7: 2028 | I7: 2029 | J7: 2030 | K7: 2031 | L7: 2032 | M7: =L7+1 -> 2033
A8: Abschreibungen aus Anlagebuchhaltung | C8: =Budget!E23+Budget!E24 -> 0 | D8: =Budget!G23+Budget!G24 -> 0 | E8: =Investitionsplan!W5 -> 0 | F8: =Investitionsplan!X5 -> 0 | G8: =Investitionsplan!Y5 -> 0 | H8: =Investitionsplan!Z5 -> 0 | I8: =Investitionsplan!AA5 -> 0 | J8: =Investitionsplan!AB5 -> 0 | K8: =Investitionsplan!AC5 -> 0 | L8: =Investitionsplan!AD5 -> 0 | M8: =Investitionsplan!AE5 -> 0
A9: Abschreibungen aus Investitionsplan | E9: =Investitionsplan!W9-Investitionsplan!W5 -> 0 | F9: =Investitionsplan!X9-Investitionsplan!X5 -> 0 | G9: =Investitionsplan!Y9-Investitionsplan!Y5 -> 0 | H9: =Investitionsplan!Z9-Investitionsplan!Z5 -> 0 | I9: =Investitionsplan!AA9-Investitionsplan!AA5 -> 0 | J9: =Investitionsplan!AB9-Investitionsplan!AB5 -> 0 | K9: =Investitionsplan!AC9-Investitionsplan!AC5 -> 0 | L9: =Investitionsplan!AD9-Investitionsplan!AD5 -> 0 | M9: =Investitionsplan!AE9-Investitionsplan!AE5 -> 0
A10: Abschreibungen | C10: =C8 -> 0 | D10: =D8 -> 0 | E10: =Investitionsplan!W9 -> 0 | F10: =Investitionsplan!X9 -> 0 | G10: =Investitionsplan!Y9 -> 0 | H10: =Investitionsplan!Z9 -> 0 | I10: =Investitionsplan!AA9 -> 0 | J10: =Investitionsplan!AB9 -> 0 | K10: =Investitionsplan!AC9 -> 0 | L10: =Investitionsplan!AD9 -> 0 | M10: =Investitionsplan!AE9 -> 0
C12: =C3 -> 2023 | D12: =D3 -> 2024 | E12: 2025 | F12: 2026 | G12: 2027 | H12: 2028 | I12: 2029 | J12: 2030 | K12: 2031 | L12: 2032 | M12: =M3 -> 2033
A13: Ergebnis aus betrieblicher Tätigkeit | C13: ='Plan-ER'!D40 -> 0 | D13: ='Plan-ER'!E40 -> 0 | E13: ='Plan-ER'!F40 -> 0 | F13: ='Plan-ER'!G40 -> 0 | G13: ='Plan-ER'!H40 -> 0 | H13: ='Plan-ER'!I40 -> 0 | I13: ='Plan-ER'!J40 -> 0 | J13: ='Plan-ER'!K40 -> 0 | K13: ='Plan-ER'!L40 -> 0 | L13: ='Plan-ER'!M40 -> 0 | M13: ='Plan-ER'!N40 -> 0
A14: Ergebnis aus Finanzierung | C14: ='Plan-ER'!D46 -> 0 | D14: ='Plan-ER'!E46 -> 0 | E14: ='Plan-ER'!F46 -> 0 | F14: ='Plan-ER'!G46 -> 0 | G14: ='Plan-ER'!H46 -> 0 | H14: ='Plan-ER'!I46 -> 0 | I14: ='Plan-ER'!J46 -> 0 | J14: ='Plan-ER'!K46 -> 0 | K14: ='Plan-ER'!L46 -> 0 | L14: ='Plan-ER'!M46 -> 0 | M14: ='Plan-ER'!N46 -> 0
A15: Operatives Ergebnis | C15: ='Plan-ER'!D48 -> 0 | D15: ='Plan-ER'!E48 -> 0 | E15: ='Plan-ER'!F48 -> 0 | F15: ='Plan-ER'!G48 -> 0 | G15: ='Plan-ER'!H48 -> 0 | H15: ='Plan-ER'!I48 -> 0 | I15: ='Plan-ER'!J48 -> 0 | J15: ='Plan-ER'!K48 -> 0 | K15: ='Plan-ER'!L48 -> 0 | L15: ='Plan-ER'!M48 -> 0 | M15: ='Plan-ER'!N48 -> 0
C17: =C3 -> 2023 | D17: =D3 -> 2024 | E17: 2025 | F17: 2026 | G17: 2027 | H17: 2028 | I17: 2029 | J17: 2030 | K17: 2031 | L17: 2032 | M17: =M3 -> 2033
A18: Ausserordentliches Ergebnis | C18: ='Plan-ER'!D50 -> 0 | D18: ='Plan-ER'!E50 -> 0 | E18: ='Plan-ER'!F50 -> 0 | F18: ='Plan-ER'!G50 -> 0 | G18: ='Plan-ER'!H50 -> 0 | H18: ='Plan-ER'!I50 -> 0 | I18: ='Plan-ER'!J50 -> 0 | J18: ='Plan-ER'!K50 -> 0 | K18: ='Plan-ER'!L50 -> 0 | L18: ='Plan-ER'!M50 -> 0 | M18: ='Plan-ER'!N50 -> 0
A19: Abtragung Bilanzfehlbetrag (30 %) | C19: =-EK!C12 -> 0 | D19: =-EK!D12 -> 0 | E19: =-EK!E12 -> 0 | F19: =-EK!F12 -> 0 | G19: =-EK!G12 -> 0 | H19: =-EK!H12 -> 0 | I19: =-EK!I12 -> 0 | J19: =-EK!J12 -> 0 | K19: =-EK!K12 -> 0 | L19: =-EK!L12 -> 0 | M19: =-EK!M12 -> 0
A20: Gesamtergebnis | C20: ='Plan-ER'!D53 -> 0 | D20: ='Plan-ER'!E53 -> 0 | E20: ='Plan-ER'!F53 -> 0 | F20: ='Plan-ER'!G53 -> 0 | G20: ='Plan-ER'!H53 -> 0 | H20: ='Plan-ER'!I53 -> 0 | I20: ='Plan-ER'!J53 -> 0 | J20: ='Plan-ER'!K53 -> 0 | K20: ='Plan-ER'!L53 -> 0 | L20: ='Plan-ER'!M53 -> 0 | M20: ='Plan-ER'!N53 -> 0
A22: ="Mittelfristiges Haushaltsgleichgewicht "&Ausgangslage!D5 -> Mittelfristiges Haushaltsgleichgewicht 2024 | B22: ="Bilanz 31.12."&E7-2 -> Bilanz 31.12.2023
A23: mit operativem Ergebnis gerechnet | D23: ='Plan-ER'!E56 -> 0
A24: mit Gesamtergebnis gerechnet | D24: ='Plan-ER'!E57 -> 0
C26: =C3 -> 2023 | D26: =D3 -> 2024 | E26: 2025 | F26: 2026 | G26: 2027 | H26: 2028 | I26: 2029 | J26: 2030 | K26: 2031 | L26: 2032 | M26: =M3 -> 2033
A27: Nettoinvestitionen | C27: =-Investitionsplan!F9 -> 0 | D27: =-Investitionsplan!G9 -> 0 | E27: =-Investitionsplan!H9 -> 0 | F27: =-Investitionsplan!I9 -> 0 | G27: =-Investitionsplan!J9 -> 0 | H27: =-Investitionsplan!K9 -> 0 | I27: =-Investitionsplan!L9 -> 0 | J27: =-Investitionsplan!M9 -> 0 | K27: =-Investitionsplan!N9 -> 0 | L27: =-Investitionsplan!O9 -> 0 | M27: =-Investitionsplan!P9 -> 0
A28: Selbstfinanzierung | C28: =KZ!C9 -> 0 | D28: =KZ!D9 -> 0 | E28: =KZ!E9 -> 0 | F28: =KZ!F9 -> 0 | G28: =KZ!G9 -> 0 | H28: =KZ!H9 -> 0 | I28: =KZ!I9 -> 0 | J28: =KZ!J9 -> 0 | K28: =KZ!K9 -> 0 | L28: =KZ!L9 -> 0 | M28: =KZ!M9 -> 0
A29: Finanzierungsergebnis ( + = Überschuss / - = Fehlbetrag) | C29: =C27+C28 -> 0 | D29: =D27+D28 -> 0 | E29: 0 | F29: 0 | G29: 0 | H29: 0 | I29: 0 | J29: 0 | K29: 0 | L29: 0 | M29: 0
C31: =C3 -> 2023 | D31: =D3 -> 2024 | E31: 2025 | F31: 2026 | G31: 2027 | H31: 2028 | I31: 2029 | J31: 2030 | K31: 2031 | L31: 2032 | M31: =M3 -> 2033
A32: Mittelbedarf aus Finanzierungsergebnis | C32: ='Schulden-Zinsen'!D16 -> 0 | D32: ='Schulden-Zinsen'!E16 -> 0 | E32: ='Schulden-Zinsen'!F16 -> 0 | F32: ='Schulden-Zinsen'!G16 -> 0 | G32: ='Schulden-Zinsen'!H16 -> 0 | H32: ='Schulden-Zinsen'!I16 -> 0 | I32: ='Schulden-Zinsen'!J16 -> 0 | J32: ='Schulden-Zinsen'!K16 -> 0 | K32: ='Schulden-Zinsen'!L16 -> 0 | L32: ='Schulden-Zinsen'!M16 -> 0 | M32: ='Schulden-Zinsen'!N16 -> 0
A33: Rückzahlung Darlehen/Kredite | C33: ='Schulden-Zinsen'!D17 -> 0 | D33: ='Schulden-Zinsen'!E17 -> 0 | E33: ='Schulden-Zinsen'!F17 -> 0 | F33: ='Schulden-Zinsen'!G17 -> 0 | G33: ='Schulden-Zinsen'!H17 -> 0 | H33: ='Schulden-Zinsen'!I17 -> 0 | I33: ='Schulden-Zinsen'!J17 -> 0 | J33: ='Schulden-Zinsen'!K17 -> 0 | K33: ='Schulden-Zinsen'!L17 -> 0 | L33: ='Schulden-Zinsen'!M17 -> 0 | M33: ='Schulden-Zinsen'!N17 -> 0
A34: Veränderungen Anlagen Finanzvermögen | C34: ='Schulden-Zinsen'!D43+'Schulden-Zinsen'!D50 -> 0 | D34: ='Schulden-Zinsen'!E43+'Schulden-Zinsen'!E50 -> 0 | E34: ='Schulden-Zinsen'!F43+'Schulden-Zinsen'!F50 -> 0 | F34: ='Schulden-Zinsen'!G43+'Schulden-Zinsen'!G50 -> 0 | G34: ='Schulden-Zinsen'!H43+'Schulden-Zinsen'!H50 -> 0 | H34: ='Schulden-Zinsen'!I43+'Schulden-Zinsen'!I50 -> 0 | I34: ='Schulden-Zinsen'!J43+'Schulden-Zinsen'!J50 -> 0 | J34: ='Schulden-Zinsen'!K43+'Schulden-Zinsen'!K50 -> 0 | K34: ='Schulden-Zinsen'!L43+'Schulden-Zinsen'!L50 -> 0 | L34: ='Schulden-Zinsen'!M43+'Schulden-Zinsen'!M50 -> 0 | M34: ='Schulden-Zinsen'!N43+'Schulden-Zinsen'!N50 -> 0
A35: Finanzierungsbedarf Spezialfinanzierungen | C35: ='Schulden-Zinsen'!D57 -> 0 | D35: ='Schulden-Zinsen'!E57 -> 0 | E35: ='Schulden-Zinsen'!F57 -> 0 | F35: ='Schulden-Zinsen'!G57 -> 0 | G35: ='Schulden-Zinsen'!H57 -> 0 | H35: ='Schulden-Zinsen'!I57 -> 0 | I35: ='Schulden-Zinsen'!J57 -> 0 | J35: ='Schulden-Zinsen'!K57 -> 0 | K35: ='Schulden-Zinsen'!L57 -> 0 | L35: ='Schulden-Zinsen'!M57 -> 0 | M35: ='Schulden-Zinsen'!N57 -> 0
A36: Mittelbedarf (+ = Bedarf / - = Überschuss) | C36: ='Schulden-Zinsen'!D64 -> 0 | D36: ='Schulden-Zinsen'!E64 -> 0 | E36: ='Schulden-Zinsen'!F64 -> 0 | F36: ='Schulden-Zinsen'!G64 -> 0 | G36: ='Schulden-Zinsen'!H64 -> 0 | H36: ='Schulden-Zinsen'!I64 -> 0 | I36: ='Schulden-Zinsen'!J64 -> 0 | J36: ='Schulden-Zinsen'!K64 -> 0 | K36: ='Schulden-Zinsen'!L64 -> 0 | L36: ='Schulden-Zinsen'!M64 -> 0 | M36: ='Schulden-Zinsen'!N64 -> 0
A37: Aufnahme Darlehen/Kredite | C37: ='Schulden-Zinsen'!D65 -> 0 | D37: ='Schulden-Zinsen'!E65 -> 0 | E37: ='Schulden-Zinsen'!F65 -> 0 | F37: ='Schulden-Zinsen'!G65 -> 0 | G37: ='Schulden-Zinsen'!H65 -> 0 | H37: ='Schulden-Zinsen'!I65 -> 0 | I37: ='Schulden-Zinsen'!J65 -> 0 | J37: ='Schulden-Zinsen'!K65 -> 0 | K37: ='Schulden-Zinsen'!L65 -> 0 | L37: ='Schulden-Zinsen'!M65 -> 0 | M37: ='Schulden-Zinsen'!N65 -> 0
A38: Bestand Darlehen/Kredite | C38: =SUM(Ausgangslage!H31:I50)+'Schulden-Zinsen'!D65-'Schulden-Zinsen'!D17 -> 0 | D38: =C38+'Schulden-Zinsen'!E65-'Schulden-Zinsen'!E17 -> 0 | E38: =D38+'Schulden-Zinsen'!F65-'Schulden-Zinsen'!F17 -> 0 | F38: =E38+'Schulden-Zinsen'!G65-'Schulden-Zinsen'!G17 -> 0 | G38: =F38+'Schulden-Zinsen'!H65-'Schulden-Zinsen'!H17 -> 0 | H38: =G38+'Schulden-Zinsen'!I65-'Schulden-Zinsen'!I17 -> 0 | I38: =H38+'Schulden-Zinsen'!J65-'Schulden-Zinsen'!J17 -> 0 | J38: =I38+'Schulden-Zinsen'!K65-'Schulden-Zinsen'!K17 -> 0 | K38: =J38+'Schulden-Zinsen'!L65-'Schulden-Zinsen'!L17 -> 0 | L38: =K38+'Schulden-Zinsen'!M65-'Schulden-Zinsen'!M17 -> 0 | M38: =L38+'Schulden-Zinsen'!N65-'Schulden-Zinsen'!N17 -> 0
C40: =C3 -> 2023 | D40: =D3 -> 2024 | E40: 2025 | F40: 2026 | G40: 2027 | H40: 2028 | I40: 2029 | J40: 2030 | K40: 2031 | L40: 2032 | M40: 2033
A41: Aufwertungsreserve übr. Anlagen Anfang Jahr | C41: =EK!C4 -> 0 | D41: =EK!D4 -> 0 | E41: =EK!E4 -> 0 | F41: =EK!F4 -> 0 | G41: =EK!G4 -> 0 | H41: =EK!H4 -> 0 | I41: =EK!I4 -> 0 | J41: =EK!J4 -> 0 | K41: =EK!K4 -> 0 | L41: =EK!L4 -> 0 | M41: =EK!M4 -> 0
A42: Aufwertungsreserve Grundstücke Anfang Jahr | C42: =EK!C5 -> 0 | D42: =EK!D5 -> 0 | E42: =EK!E5 -> 0 | F42: =EK!F5 -> 0 | G42: =EK!G5 -> 0 | H42: =EK!H5 -> 0 | I42: =EK!I5 -> 0 | J42: =EK!J5 -> 0 | K42: =EK!K5 -> 0 | L42: =EK!L5 -> 0 | M42: =EK!M5 -> 0
A43: Entnahme Aufwertungsreserve | C43: =EK!C6 -> 0 | D43: =EK!D6 -> 0 | E43: =EK!E6 -> 0 | F43: =EK!F6 -> 0 | G43: =EK!G6 -> 0 | H43: =EK!H6 -> 0 | I43: =EK!I6 -> 0 | J43: =EK!J6 -> 0 | K43: =EK!K6 -> 0 | L43: =EK!L6 -> 0 | M43: =EK!M6 -> 0
A44: Umbuchung Aufwertungsreserve | C44: =EK!C8 -> 0 | D44: =EK!D8 -> 0 | E44: =EK!E8 -> 0 | F44: =EK!F8 -> 0 | G44: =EK!G8 -> 0 | H44: =EK!H8 -> 0 | I44: =EK!I8 -> 0 | J44: =EK!J8 -> 0 | K44: =EK!K8 -> 0 | L44: =EK!L8 -> 0 | M44: =EK!M8 -> 0
A45: Aufwertungsreserve Ende Jahr | C45: =EK!C9 -> 0 | D45: =EK!D9 -> 0 | E45: =EK!E9 -> 0 | F45: =EK!F9 -> 0 | G45: =EK!G9 -> 0 | H45: =EK!H9 -> 0 | I45: =EK!I9 -> 0 | J45: =EK!J9 -> 0 | K45: =EK!K9 -> 0 | L45: =EK!L9 -> 0 | M45: =EK!M9 -> 0
C47: =C3 -> 2023 | D47: 2024 | E47: 2025 | F47: 2026 | G47: 2027 | H47: 2028 | I47: 2029 | J47: 2030 | K47: 2031 | L47: 2032 | M47: =M3 -> 2033
A48: Bilanzüberschuss / -fehlbetrag Anfang Jahr | C48: =EK!C11 -> 0 | D48: =C52 -> 0 | E48: =D52 -> 0 | F48: 0 | G48: 0 | H48: 0 | I48: 0 | J48: 0 | K48: 0 | L48: 0 | M48: 0
A49: Abtragung Bilanzfehlbetrag (30 %) | C49: =EK!C12 -> 0 | D49: =EK!D12 -> 0 | E49: =EK!E12 -> 0 | F49: =EK!F12 -> 0 | G49: =EK!G12 -> 0 | H49: =EK!H12 -> 0 | I49: =EK!I12 -> 0 | J49: =EK!J12 -> 0 | K49: =EK!K12 -> 0 | L49: =EK!L12 -> 0 | M49: =EK!M12 -> 0
A50: Gesamtergebnis | C50: =EK!C13 -> 0 | D50: =EK!D13 -> 0 | E50: =EK!E13 -> 0 | F50: =EK!F13 -> 0 | G50: =EK!G13 -> 0 | H50: =EK!H13 -> 0 | I50: =EK!I13 -> 0 | J50: =EK!J13 -> 0 | K50: =EK!K13 -> 0 | L50: =EK!L13 -> 0 | M50: =EK!M13 -> 0
A51: Umbuchung Aufwertungsreserve | C51: =EK!C14 -> 0 | D51: =EK!D14 -> 0 | E51: =EK!E14 -> 0 | F51: =EK!F14 -> 0 | G51: =EK!G14 -> 0 | H51: =EK!H14 -> 0 | I51: =EK!I14 -> 0 | J51: =EK!J14 -> 0 | K51: =EK!K14 -> 0 | L51: =EK!L14 -> 0 | M51: =EK!M14 -> 0
A52: Bilanzüberschuss / -fehlbetrag Ende Jahr | C52: =EK!C15 -> 0 | D52: =EK!D15 -> 0 | E52: =EK!E15 -> 0 | F52: =EK!F15 -> 0 | G52: =EK!G15 -> 0 | H52: =EK!H15 -> 0 | I52: =EK!I15 -> 0 | J52: =EK!J15 -> 0 | K52: =EK!K15 -> 0 | L52: =EK!L15 -> 0 | M52: =EK!M15 -> 0
C54: =C3 -> 2023 | D54: =D3 -> 2024 | E54: 2025 | F54: 2026 | G54: 2027 | H54: 2028 | I54: 2029 | J54: 2030 | K54: 2031 | L54: 2032 | M54: =M3 -> 2033
A55: Nettoschuld I (+ = Schuld / - = Vermögen) | C55: =KZ!C4 -> 0 | D55: =KZ!D4 -> 0 | E55: =KZ!E4 -> 0 | F55: =KZ!F4 -> 0 | G55: =KZ!G4 -> 0 | H55: =KZ!H4 -> 0 | I55: =KZ!I4 -> 0 | J55: =KZ!J4 -> 0 | K55: =KZ!K4 -> 0 | L55: =KZ!L4 -> 0 | M55: =KZ!M4 -> 0
A56: Nettoschuld I je Einwohner (in CHF) | C56: =KZ!C6 -> 0 | D56: =KZ!D6 -> 0 | E56: =KZ!E6 -> 0 | F56: =KZ!F6 -> 0 | G56: =KZ!G6 -> 0 | H56: =KZ!H6 -> 0 | I56: =KZ!I6 -> 0 | J56: =KZ!J6 -> 0 | K56: =KZ!K6 -> 0 | L56: =KZ!L6 -> 0 | M56: =KZ!M6 -> 0

Sheet KZ
A1: ="Kennzahlen Aufgaben- und Finanzplanung "&Ausgangslage!D5-1&" - "&Ausgangslage!D5+Ausgangslage!I5-1 -> Kennzahlen Aufgaben- und Finanzplanung 2023 - 2033
C3: =Ausgangslage!D5-1 -> 2023 | D3: =C3+1 -> 2024 | E3: =D3+1 -> 2025 | F3: 2026 | G3: 2027 | H3: 2028 | I3: 2029 | J3: 2030 | K3: 2031 | L3: 2032 | M3: =L3+1 -> 2033
A4: Nettoschuld I | C4: ='Schulden-Zinsen'!D81 -> 0 | D4: ='Schulden-Zinsen'!E81 -> 0 | E4: ='Schulden-Zinsen'!F81 -> 0 | F4: ='Schulden-Zinsen'!G81 -> 0 | G4: ='Schulden-Zinsen'!H81 -> 0 | H4: ='Schulden-Zinsen'!I81 -> 0 | I4: ='Schulden-Zinsen'!J81 -> 0 | J4: ='Schulden-Zinsen'!K81 -> 0 | K4: ='Schulden-Zinsen'!L81 -> 0 | L4: ='Schulden-Zinsen'!M81 -> 0 | M4: ='Schulden-Zinsen'!N81 -> 0
A5: Einwohner | C5: =Prognosen!D5 -> 0 | D5: =Prognosen!E5 -> 0 | E5: =Prognosen!F5 -> 0 | F5: =Prognosen!G5 -> 0 | G5: =Prognosen!H5 -> 0 | H5: =Prognosen!I5 -> 0 | I5: =Prognosen!J5 -> 0 | J5: =Prognosen!K5 -> 0 | K5: =Prognosen!L5 -> 0 | L5: =Prognosen!M5 -> 0 | M5: =Prognosen!N5 -> 0
A6: Nettoschuld I je Einwohner (in CHF) | C6: =IF(C5=0,0,ROUND(C4/C5*1000,0)) -> 0 | D6: =IF(D5=0,0,ROUND(D4/D5*1000,0)) -> 0 | E6: 0 | F6: 0 | G6: 0 | H6: 0 | I6: 0 | J6: 0 | K6: 0 | L6: 0 | M6: 0
C8: =C3 -> 2023 | D8: =D3 -> 2024 | E8: 2025 | F8: 2026 | G8: 2027 | H8: 2028 | I8: 2029 | J8: 2030 | K8: 2031 | L8: 2032 | M8: 2033
A9: Selbstfinanzierung | C9: ='Schulden-Zinsen'!D11 -> 0 | D9: ='Schulden-Zinsen'!E11 -> 0 | E9: ='Schulden-Zinsen'!F11 -> 0 | F9: ='Schulden-Zinsen'!G11 -> 0 | G9: ='Schulden-Zinsen'!H11 -> 0 | H9: ='Schulden-Zinsen'!I11 -> 0 | I9: ='Schulden-Zinsen'!J11 -> 0 | J9: ='Schulden-Zinsen'!K11 -> 0 | K9: ='Schulden-Zinsen'!L11 -> 0 | L9: ='Schulden-Zinsen'!M11 -> 0 | M9: ='Schulden-Zinsen'!N11 -> 0
A10: Nettoinvestitionen | C10: =-'Schulden-Zinsen'!D5 -> 0 | D10: =-'Schulden-Zinsen'!E5 -> 0 | E10: =-'Schulden-Zinsen'!F5 -> 0 | F10: =-'Schulden-Zinsen'!G5 -> 0 | G10: =-'Schulden-Zinsen'!H5 -> 0 | H10: =-'Schulden-Zinsen'!I5 -> 0 | I10: =-'Schulden-Zinsen'!J5 -> 0 | J10: =-'Schulden-Zinsen'!K5 -> 0 | K10: =-'Schulden-Zinsen'!L5 -> 0 | L10: =-'Schulden-Zinsen'!M5 -> 0 | M10: =-'Schulden-Zinsen'!N5 -> 0
A11: Selbstfinanzierungsgrad | B11: Selbstfinanzierungsgrad | C11: =IF(C10=0,"keine I.",IF(C9<=0,0,C9/C10)) -> keine I. | D11: =IF(D10=0,"keine I.",IF(D9<=0,0,D9/D10)) -> keine I. | E11: keine I. | F11: keine I. | G11: keine I. | H11: keine I. | I11: keine I. | J11: keine I. | K11: keine I. | L11: keine I. | M11: keine I.
C13: =C3 -> 2023 | D13: 2024 | E13: 2025 | F13: 2026 | G13: 2027 | H13: 2028 | I13: 2029 | J13: 2030 | K13: 2031 | L13: 2032 | M13: 2033
A14: Selbstfinanzierung | C14: =C9 -> 0 | D14: =D9 -> 0 | E14: 0 | F14: 0 | G14: 0 | H14: 0 | I14: 0 | J14: 0 | K14: 0 | L14: 0 | M14: 0
A15: Laufender Ertrag | C15: ='Plan-ER'!D22+'Plan-ER'!D29+'Plan-ER'!D31+'Plan-ER'!D33+'Plan-ER'!D44+'Plan-ER'!D35+'Plan-ER'!D37+Budget!E100-Budget!E101+(-EK!C6) -> 0 | D15: ='Plan-ER'!E22+'Plan-ER'!E29+'Plan-ER'!E31+'Plan-ER'!E33+'Plan-ER'!E44+'Plan-ER'!E35+'Plan-ER'!E37+Prognosen!E45-Prognosen!E46+(-EK!D6) -> 0 | E15: ='Plan-ER'!F22+'Plan-ER'!F29+'Plan-ER'!F31+'Plan-ER'!F33+'Plan-ER'!F44+'Plan-ER'!F35+'Plan-ER'!F37+Prognosen!F45-Prognosen!F46+(-EK!E6) -> 0 | F15: ='Plan-ER'!G22+'Plan-ER'!G29+'Plan-ER'!G31+'Plan-ER'!G33+'Plan-ER'!G44+'Plan-ER'!G35+'Plan-ER'!G37+Prognosen!G45-Prognosen!G46+(-EK!F6) -> 0 | G15: ='Plan-ER'!H22+'Plan-ER'!H29+'Plan-ER'!H31+'Plan-ER'!H33+'Plan-ER'!H44+'Plan-ER'!H35+'Plan-ER'!H37+Prognosen!H45-Prognosen!H46+(-EK!G6) -> 0 | H15: ='Plan-ER'!I22+'Plan-ER'!I29+'Plan-ER'!I31+'Plan-ER'!I33+'Plan-ER'!I44+'Plan-ER'!I35+'Plan-ER'!I37+Prognosen!I45-Prognosen!I46+(-EK!H6) -> 0 | I15: ='Plan-ER'!J22+'Plan-ER'!J29+'Plan-ER'!J31+'Plan-ER'!J33+'Plan-ER'!J44+'Plan-ER'!J35+'Plan-ER'!J37+Prognosen!J45-Prognosen!J46+(-EK!I6) -> 0 | J15: ='Plan-ER'!K22+'Plan-ER'!K29+'Plan-ER'!K31+'Plan-ER'!K33+'Plan-ER'!K44+'Plan-ER'!K35+'Plan-ER'!K37+Prognosen!K45-Prognosen!K46+(-EK!J6) -> 0 | K15: ='Plan-ER'!L22+'Plan-ER'!L29+'Plan-ER'!L31+'Plan-ER'!L33+'Plan-ER'!L44+'Plan-ER'!L35+'Plan-ER'!L37+Prognosen!L45-Prognosen!L46+(-EK!K6) -> 0 | L15: ='Plan-ER'!M22+'Plan-ER'!M29+'Plan-ER'!M31+'Plan-ER'!M33+'Plan-ER'!M44+'Plan-ER'!M35+'Plan-ER'!M37+Prognosen!M45-Prognosen!M46+(-EK!L6) -> 0 | M15: ='Plan-ER'!N22+'Plan-ER'!N29+'Plan-ER'!N31+'Plan-ER'!N33+'Plan-ER'!N44+'Plan-ER'!N35+'Plan-ER'!N37+Prognosen!N45-Prognosen!N46+(-EK!M6) -> 0
A16: Selbstfinanzierungsanteil | C16: =IF(C14<=0,0,C14/C15) -> 0% | D16: =IF(D14<=0,0,D14/D15) -> 0% | E16: 0% | F16: 0% | G16: 0% | H16: 0% | I16: 0% | J16: 0% | K16: 0% | L16: 0% | M16: 0%

Sheet GRAFIKEN
A1: Grafiken
A3: 1. Nettoschuld I je Einwohner
B5: Jahr | C5: Nettoschuld I
B6: =B7-1 -> 2020 | C6: =Ausgangslage!H62 -> 0
B7: =B8-1 -> 2021 | C7: =Ausgangslage!J62 -> 0
B8: =B9-1 -> 2022 | C8: =Ausgangslage!L62 -> 0
B9: =B10-1 -> 2023 | C9: =KZ!C6 -> 0
B10: =Ausgangslage!D5 -> 2024 | C10: =IF(B10="","",KZ!D$6) -> 0
B11: =IF(B10="","",IF(Ausgangslage!$D$5+Ausgangslage!$I$5>B10+1,GRAFIKEN!B10+1,"")) -> 2025 | C11: =IF(B11="","",KZ!E$6) -> 0
B12: =IF(B11="","",IF(Ausgangslage!$D$5+Ausgangslage!$I$5>B11+1,GRAFIKEN!B11+1,"")) -> 2026 | C12: =IF(B12="","",KZ!F$6) -> 0
B13: =IF(B12="","",IF(Ausgangslage!$D$5+Ausgangslage!$I$5>B12+1,GRAFIKEN!B12+1,"")) -> 2027 | C13: =IF(B13="","",KZ!G$6) -> 0
B14: =IF(B13="","",IF(Ausgangslage!$D$5+Ausgangslage!$I$5>B13+1,GRAFIKEN!B13+1,"")) -> 2028 | C14: =IF(B14="","",KZ!H$6) -> 0
B15: =IF(B14="","",IF(Ausgangslage!$D$5+Ausgangslage!$I$5>B14+1,GRAFIKEN!B14+1,"")) -> 2029 | C15: =IF(B15="","",KZ!I$6) -> 0
B16: =IF(B15="","",IF(Ausgangslage!$D$5+Ausgangslage!$I$5>B15+1,GRAFIKEN!B15+1,"")) -> 2030 | C16: =IF(B16="","",KZ!J$6) -> 0
B17: =IF(B16="","",IF(Ausgangslage!$D$5+Ausgangslage!$I$5>B16+1,GRAFIKEN!B16+1,"")) -> 2031 | C17: =IF(B17="","",KZ!K$6) -> 0
B18: =IF(B17="","",IF(Ausgangslage!$D$5+Ausgangslage!$I$5>B17+1,GRAFIKEN!B17+1,"")) -> 2032 | C18: =IF(B18="","",KZ!L$6) -> 0
B19: =IF(B18="","",IF(Ausgangslage!$D$5+Ausgangslage!$I$5>B18+1,GRAFIKEN!B18+1,"")) -> 2033 | C19: =IF(B19="","",KZ!M$6) -> 0
A28: 2. Nettoinvestitionen / Selbstfinanzierung (Selbstfinanzierungsgrad)
B30: Jahr | C30: Netto- investitionen | D30: Selbst- finanzierung
B31: =B32-1 -> 2020 | C31: =Ausgangslage!H61 -> 0 | D31: =Ausgangslage!H60 -> 0
B32: =B33-1 -> 2021 | C32: =Ausgangslage!J61 -> 0 | D32: =Ausgangslage!J60 -> 0
B33: =B34-1 -> 2022 | C33: =Ausgangslage!L61 -> 0 | D33: =Ausgangslage!L60 -> 0
B34: =B35-1 -> 2023 | C34: =KZ!C10 -> 0 | D34: =KZ!C9 -> 0
B35: =Ausgangslage!D5 -> 2024 | C35: =KZ!D10 -> 0 | D35: =IF(B35="","",KZ!D$9) -> 0
B36: =IF(B35="","",IF(Ausgangslage!$D$5+Ausgangslage!$I$5>B35+1,GRAFIKEN!B35+1,"")) -> 2025 | C36: =IF(B36="","",KZ!E$10) -> 0 | D36: =IF(B36="","",KZ!E$9) -> 0
B37: =IF(B36="","",IF(Ausgangslage!$D$5+Ausgangslage!$I$5>B36+1,GRAFIKEN!B36+1,"")) -> 2026 | C37: =IF(B37="","",KZ!F$10) -> 0 | D37: =IF(B37="","",KZ!F$9) -> 0
B38: =IF(B37="","",IF(Ausgangslage!$D$5+Ausgangslage!$I$5>B37+1,GRAFIKEN!B37+1,"")) -> 2027 | C38: =IF(B38="","",KZ!G$10) -> 0 | D38: =IF(B38="","",KZ!G$9) -> 0
B39: =IF(B38="","",IF(Ausgangslage!$D$5+Ausgangslage!$I$5>B38+1,GRAFIKEN!B38+1,"")) -> 2028 | C39: =IF(B39="","",KZ!H$10) -> 0 | D39: =IF(B39="","",KZ!H$9) -> 0
B40: =IF(B39="","",IF(Ausgangslage!$D$5+Ausgangslage!$I$5>B39+1,GRAFIKEN!B39+1,"")) -> 2029 | C40: =IF(B40="","",KZ!I$10) -> 0 | D40: =IF(B40="","",KZ!I$9) -> 0
B41: =IF(B40="","",IF(Ausgangslage!$D$5+Ausgangslage!$I$5>B40+1,GRAFIKEN!B40+1,"")) -> 2030 | C41: =IF(B41="","",KZ!J$10) -> 0 | D41: =IF(B41="","",KZ!J$9) -> 0
B42: =IF(B41="","",IF(Ausgangslage!$D$5+Ausgangslage!$I$5>B41+1,GRAFIKEN!B41+1,"")) -> 2031 | C42: =IF(B42="","",KZ!K$10) -> 0 | D42: =IF(B42="","",KZ!K$9) -> 0
B43: =IF(B42="","",IF(Ausgangslage!$D$5+Ausgangslage!$I$5>B42+1,GRAFIKEN!B42+1,"")) -> 2032 | C43: =IF(B43="","",KZ!L$10) -> 0 | D43: =IF(B43="","",KZ!L$9) -> 0
B44: =IF(B43="","",IF(Ausgangslage!$D$5+Ausgangslage!$I$5>B43+1,GRAFIKEN!B43+1,"")) -> 2033 | C44: =IF(B44="","",KZ!M$10) -> 0 | D44: =IF(B44="","",KZ!M$9) -> 0

Sheet GDat (hidden)
B1: 1. Nettoschuld I je Einwohner | E1: 2. Selbstfinanzierungsgrad
B3: Jahr | C3: Nettoschuld I | E3: Jahr | F3: Netto- investitionen | G3: Selbst- finanzierung
B4: =GRAFIKEN!B6 -> 2020 | C4: =GRAFIKEN!C6 -> 0 | E4: =GRAFIKEN!B31 -> 2020 | F4: =GRAFIKEN!C31 -> 0 | G4: =GRAFIKEN!D31 -> 0
B5: =GRAFIKEN!B7 -> 2021 | C5: =GRAFIKEN!C7 -> 0 | E5: =GRAFIKEN!B32 -> 2021 | F5: =GRAFIKEN!C32 -> 0 | G5: =GRAFIKEN!D32 -> 0
B6: =GRAFIKEN!B8 -> 2022 | C6: =GRAFIKEN!C8 -> 0 | E6: =GRAFIKEN!B33 -> 2022 | F6: =GRAFIKEN!C33 -> 0 | G6: =GRAFIKEN!D33 -> 0
B7: =GRAFIKEN!B9 -> 2023 | C7: =GRAFIKEN!C9 -> 0 | E7: =GRAFIKEN!B34 -> 2023 | F7: =GRAFIKEN!C34 -> 0 | G7: =GRAFIKEN!D34 -> 0
B8: =GRAFIKEN!B10 -> 2024 | C8: =GRAFIKEN!C10 -> 0 | E8: =GRAFIKEN!B35 -> 2024 | F8: =GRAFIKEN!C35 -> 0 | G8: =GRAFIKEN!D35 -> 0
B9: =GRAFIKEN!B11 -> 2025 | C9: =GRAFIKEN!C11 -> 0 | E9: =GRAFIKEN!B36 -> 2025 | F9: =GRAFIKEN!C36 -> 0 | G9: =GRAFIKEN!D36 -> 0
B10: =GRAFIKEN!B12 -> 2026 | C10: =GRAFIKEN!C12 -> 0 | E10: =GRAFIKEN!B37 -> 2026 | F10: =GRAFIKEN!C37 -> 0 | G10: =GRAFIKEN!D37 -> 0
B11: =GRAFIKEN!B13 -> 2027 | C11: =GRAFIKEN!C13 -> 0 | E11: =GRAFIKEN!B38 -> 2027 | F11: =GRAFIKEN!C38 -> 0 | G11: =GRAFIKEN!D38 -> 0
B12: =GRAFIKEN!B14 -> 2028 | C12: =GRAFIKEN!C14 -> 0 | E12: =GRAFIKEN!B39 -> 2028 | F12: =GRAFIKEN!C39 -> 0 | G12: =GRAFIKEN!D39 -> 0
B13: =GRAFIKEN!B15 -> 2029 | C13: =GRAFIKEN!C15 -> 0 | E13: =GRAFIKEN!B40 -> 2029 | F13: =GRAFIKEN!C40 -> 0 | G13: =GRAFIKEN!D40 -> 0
B14: =GRAFIKEN!B16 -> 2030 | C14: =GRAFIKEN!C16 -> 0 | E14: =GRAFIKEN!B41 -> 2030 | F14: =GRAFIKEN!C41 -> 0 | G14: =GRAFIKEN!D41 -> 0
B15: =GRAFIKEN!B17 -> 2031 | C15: =GRAFIKEN!C17 -> 0 | E15: =GRAFIKEN!B42 -> 2031 | F15: =GRAFIKEN!C42 -> 0 | G15: =GRAFIKEN!D42 -> 0
B16: =GRAFIKEN!B18 -> 2032 | C16: =GRAFIKEN!C18 -> 0 | E16: =GRAFIKEN!B43 -> 2032 | F16: =GRAFIKEN!C43 -> 0 | G16: =GRAFIKEN!D43 -> 0
B17: =GRAFIKEN!B19 -> 2033 | C17: =GRAFIKEN!C19 -> 0 | E17: =GRAFIKEN!B44 -> 2033 | F17: =GRAFIKEN!C44 -> 0 | G17: =GRAFIKEN!D44 -> 0

Sheet Kat
A1: Anlagekategorien
A3: Kat.* | B3: Bezeichung | C3: Abschr.dauer (Jahre) | D3: Bemerkung
A4: 01 | B4: Grundstücke | C4: 0 | D4: keine planmässige Abschreibung
A5: 02 | B5: Gebäude, Hochbauten | C5: 35
A6: 02a | B6: Containerbauten, Fahrnisbauten | C6: 20
A7: 02b | B7: Heizsysteme, Photovoltaikanlagen | C7: 20
A8: 03 | B8: Strassen, Plätze, Friedhof | C8: 40
A9: 03a | B9: Naturstrassen (nicht asphaltierte Strassen) | C9: 10
A10: 03b | B10: Sportplätze (Rasen- und Hartplätze) | C10: 20
A11: 03c | B11: Kunstrasenplätze | C11: 10
A12: 04 | B12: Kanal-/Leitungsnetze, Gewässerbauten | C12: 50
A13: 04a | B13: Fernwärmenetz | C13: 35
A14: 05 | B14: Installationen, Ein- und Ausbauten bei Gebäuden | C14: 10 - 15
A15: 06 | B15: Abfallanlagen (Installationen, Einbauten) | C15: 30
A16: 07 | B16: Mobilien, Maschinen, Ausstattungen, allg. Fahrzeuge | C16: 5 - 10
A17: 08 | B17: Spezialfahrzeuge (Strassenreinigung) | C17: 15
A18: 08a | B18: Kleintanklöschfahrzeuge, Kommandofahrzeug, Strassenrettungsfahrzeug | C18: 15
A19: 08b | B19: Schweres und überschweres Pikettfahrzeug, schweres Schlauchverlegefahrzeug, Wechselladefahrzeug | C19: 25
A20: 08c | B20: Andere Feuerwehrfahrzeuge | C20: 20
A21: 09 | B21: Immaterielle Anlagen, Software | C21: 5
A22: 10 | B22: Orts- und Regionalplanungen | C22: 10
A23: 11 | B23: Informatik- und Kommunikationssysteme | C23: 3 - 5
A24: 11a | B24: Datenübertragungsnetze | C24: 15 - 25
A25: 12 | B25: Investitionsbeiträge | C25: je nach Objekt | D25: nach Nutzungsdauer des Objektes
A26: 12a | B26: Anschlussgebühren | C26: 20
A27: 13 | B27: Anlagen im Bau | C27: 0 | D27: keine planmässige Abschreibung
A28: 14 | B28: Darlehen des Verwaltungsvermögens | C28: 0 | D28: keine planmässige Abschreibung
A29: 15 | B29: Beteiligungen, Grundkapitalien | C29: 0 | D29: keine planmässige Abschreibung
A30: 16 | B30: Abweichungen zu den vorgenannten Kategorien und/oder Abschreibungsdauer | C30: je nach Objekt | D30: Mit Zustimmung des Departements Volkswirtschaft und Inneres
A32: *Anlagekategorien und Abschreibungsdauer gemäss Anhang 1 zur Finanzverordnung

Sheet Hlp
A1: Ausgangslage
C2: Hinweise zum Finanzplanungs-Tool
A4: Auswahl | B4: leer | C4: Text
A5: Ausgangslage
A6: Ausgangslage | C6: Hinweise Ausgangslage
A7: Ausgangslage
A8: Ausgangslage | C8: Im Tabellenblatt Ausgangslage werden die Grunddaten und die Werte der letzten abgeschlossenen Rechnung erfasst.
A9: Ausgangslage
A10: Ausgangslage | C10: Weitere Infos finden sich in der Anleitung.
A11: Ausgangslage
A12: Ausgangslage | C12: 1. Planjahr
A13: Ausgangslage | C13: Das 1. Planjahr entspricht dem Budgetjahr. Es kann nur das direkt darauffolgende Jahr erfasst werden.
A14: Ausgangslage
A15: Ausgangslage | C15: Anzahl Planjahre
A16: Ausgangslage | C16: Anzahl gewünschte Planjahre inkl. Budgetjahr eingeben. Minimalwert = 4 Jahre. Maximalwert = 10 Jahre.
A17: Ausgangslage
A18: Ausgangslage | C18: Stand/Datum:
A19: Ausgangslage | C19: Datum der Planung, wird auf Titelblatt ausgedruckt.
A20: Ausgangslage
A21: Ausgangslage | C21: Ausgangsdaten
A22: Ausgangslage | C22: Budget: Planung zusammen mit Budget > Eingaben Budget aktuelles Jahr, Prognose aktuelles Jahr und Budget 1. Planjahr.
A23: Ausgangslage | C23: Rechnung: Überarbeitung nach Rechnungsabschluss: Spaltenbezeichnung Prognose wird durch IST ersetzt.
A24: Ausgangslage
A25: Ausgangslage | C25: Flüssige Mittel
A26: Ausgangslage | C26: Die Flüssigen Mittel werden im Tabellenblatt Schulden-Zinsen für die Berechnung der Finanzierung der Investitionen benötigt.
A27: Ausgangslage | C27: Der Wert kann um ausserordentliche Kreditoren- oder Debitorenbestände korrigiert werden. Standardmässig ist der Abzug der
A28: Ausgangslage | C28: kurzfristigen Finanzverbindlichkeiten vorgesehen.
A29: Ausgangslage
A30: Ausgangslage | C30: Aufwertungsreserve
A31: Ausgangslage | C31: Die Aufwertungsreserven getrennt zwischen übr. Anlagen und Grundstücken erfassen.
A32: Ausgangslage | C32: Die Jahre für "Entnahme bis" und "Umbuchung" unter Berücksichtigung der Weisung vom 10. April 2017 ausfüllen.
A33: Ausgangslage
A34: Ausgangslage | C34: Kredite/Darlehen
A35: Ausgangslage | C35: Bestehende langfristige Schulden erfassen mit Zinssatz und geplantem Rückzahlungsjahr. Werte werden in Tabellenblatt
A36: Ausgangslage | C36: "Schulden-Zinsen" in die Rubrik "Rückzahlung Darlehen/Kredite" übernommen.
A37: Ausgangslage
A38: Ausgangslage | C38: Vorjahreszahlen
A39: Ausgangslage | C39: Gesamtergebnis wird für Berechnung kumuliertes Haushaltsergebnis benötigt.
A40: Ausgangslage | C40: Kennzahlen werden für Grafiken Kennzahlen benötigt.
A41: Ausgangslage
A42: Berechnung NS
A43: Berechnung NS | C43: Hinweise Berechnung NS
A44: Berechnung NS
A45: Berechnung NS | C45: Die Nettoschuld wird für die Einwohnergemeinde ohne Spezialfinanzierungen berechnet.
A46: Berechnung NS
A47: Berechnung NS | C47: Alle Zahlen positiv in 1'000 Franken eingeben.
A48: Berechnung NS
A49: Berechnung NS | C49: Weitere Infos finden sich in der Anleitung.
A50: Berechnung NS
A51: Investitionsplan
A52: Investitionsplan | C52: Hinweise Investitionsplan
A53: Investitionsplan
A54: Investitionsplan | C54: Der Investitionsplan wird unabhängig von der Anzahl der gewählten Planjahre für 10 Jahre angezeigt.
A55: Investitionsplan
A56: Investitionsplan | C56: Es sind nur Projekte / Investitionen vom Verwaltungsvermögen (ohne Spezialfinanzierungen) zu erfassen.
A57: Investitionsplan
A58: Investitionsplan | C58: Weitere Infos finden sich in der Anleitung.
A59: Investitionsplan
A60: Investitionsplan | C60: Übernahme Daten von bisherigem Aufgaben- und Finanzplanungs-Tool
A61: Investitionsplan | C61: Die Anleitung bzw. auch die Änderungsübersicht erläutern das empfohlene Vorgehen, wenn die Investitionen vom bisherigen
A62: Investitionsplan | C62: Finanzplanungs-Tool in die neue Version überführt werden sollen.
A63: Investitionsplan
A64: Investitionsplan | C64: Vollständigkeit Investitionen
A65: Investitionsplan | C65: Alle ausstehenden Investitionen erfassen, wichtig für Berechnung Finanzierungsbedarf und Nettoschuld/Schulden.
A66: Investitionsplan | C66: In Betrieb genommene Investitionen können entfernt werden, da die Abschreibungen aus der Anlagebuchhaltung
A67: Investitionsplan | C67: übernommen werden. Sollen sie dennoch weiterhin aufgeführt sein, ist ein "x" in der Spalte "ohne Abschr." zu erfassen.
A68: Investitionsplan
A69: Investitionsplan | C69: Zeilen hinzufügen und löschen - Buttons
A70: Investitionsplan | C70: Nebst der bisherigen Möglichkeit von Zeilen zu erfassen (Wert in letzter gelben Zeile einfügen), besteht neu die
A71: Investitionsplan | C71: Möglichkeit einzelne oder auch mehrere Zeilen gleichzeitig hinzuzufügen (grüner Button). Ebenso besteht neu
A72: Investitionsplan | C72: ein Button für die Löschung einer in Betrieb genommenen Investition. Es wird die jeweils angeklickte Zeile entfernt.
A73: Investitionsplan
A74: Investitionsplan | C74: Code
A75: Investitionsplan | C75: Code wird benötigt für Auswertung "InvprogrammA". Investitionen können entsprechend gegliedert werden.
A76: Investitionsplan
A77: Investitionsplan | C77: Kredit
A78: Investitionsplan | C78: Totalbetrag Kredit (Brutto) eingeben. Investitionseinnahmen in separater Zeile als Negativbetrag erfassen.
A79: Investitionsplan
A80: Investitionsplan | C80: Vorjahre
A81: Investitionsplan | C81: Bereits ausgegebener Anteil des Kredits erfassen.
A82: Investitionsplan
A83: Investitionsplan | C83: ab "Jahr"
A84: Investitionsplan | C84: Kreditanteil, der nach Planperiode ausgegeben wird, erfassen.
A85: Investitionsplan
A86: Investitionsplan | C86: Abschreibungen aus Anlagebuchhaltung
A87: Investitionsplan | C87: Planabschreibungen auf bestehendem Anlagevermögen aus Anlagebuchhaltung einsetzen.
A88: Investitionsplan
A89: Investitionsplan | C89: ohne Abschr.
A90: Investitionsplan | C90: Mit Eingabe x werden keine Abschreibungen berechnet. Für Investitionen, die in Betrieb genommen wurden,
A91: Investitionsplan | C91: die Abschreibungen aus der Anlagebuchhaltung übernommen werden, aber auf dieser Liste noch aufgeführt
A92: Investitionsplan | C92: werden sollen
A93: Investitionsplan
A94: Investitionsplan | C94: Sortierung ändern
A95: Investitionsplan | C95: Mittels Rechtsklick auf die Titel "Funktion", "Bezeichnung", "Code" oder "Kredit" können die Investitionen
A96: Investitionsplan | C96: anders sortiert werden.
A97: Investitionsplan
A98: Budget
A99: Budget | C99: Hinweise Budget
A100: Budget
A101: Budget | C101: Im Tabellenblatt Budget werden die Daten des laufenden Jahres und des 1. Planjahres erfasst. Die Zahlen des Budgets des
A102: Budget | C102: laufenden Jahres werden benötigt, um u.a. die Bilanzwerte der letzten abgeschlossenen Rechnung fortzuführen.
A103: Budget
A104: Budget | C104: Datenbasis
A105: Budget | C105: Die Datenerfassung erfolgt grundsätzlich aus dem Erfolgsausweis ohne Spezialfinanzierungen. Die Abschreibungen (330/332/339/366)
A106: Budget | C106: werden aus der Artengliederung (ohne Spezialfinanzierungen) oder aus der Anlagebuchhaltung erfasst.
A107: Budget | C107: Beim Fiskalertrag bzw. den Steuern erfolgt die Erfassung aus der Funktionalen Gliederung.
A108: Budget
A109: Budget | C109: Spalte Budget
A110: Budget | C110: Zahlen Budget des laufenden Jahres erfassen.
A111: Budget
A112: Budget | C112: Spalte Δ
A113: Budget | C113: In der Spalte Δ werden die Abweichungen zum Budget des laufenden Jahres erfasst.
A114: Budget | C114: Keine Eingabe => Prognose (bzw. IST) = Budget.
A115: Budget
A116: Budget | C116: Prognose bzw. IST
A117: Budget | C117: Die Prognose (bzw. IST) berechnet sich aus Budget und Δ (Abweichung zum Budget).
A118: Budget
A119: Budget | C119: 31 Sach- und übriger Betriebsaufwand
A120: Budget | C120: Die Abschreibungen von Steuerforderungen werden bei den Steuern erfasst und automatisch in diese Rubrik übernommen.
A121: Budget
A122: Budget | C122: 33 Abschreibungen Verwaltungsvermögen inkl. 366
A123: Budget | C123: Die Abschreibungen in dieser Position werden inkl. Abschreibungen Investitionsbeiträge (366) ausgewiesen. Damit wird die
A124: Budget | C124: Erfassung in den Planjahren vereinfacht.
A125: Budget
A126: Budget | C126: 35 Einlagen in Fonds // 45 Entnahmen aus Fonds
A127: Budget | C127: Einlagen von Artennr. 35 als Total erfassen. Zudem noch der darin enthaltene Anteil an Fonds im FK (Artennr. 350x).
A128: Budget | C128: Gleiches Vorgehen bei der Artennr. 45 (bzw. Artennr. 450x).
A129: Budget | C129: Die Artennr. 35 und 45 werden für die Berechnung des Gesamtergebnisses benötigt.
A130: Budget | C130: Die Anteile davon im FK (350x und 450x) werden benötigt, um die Nettoschuld I zu prognostizieren.
A131: Budget
A132: Budget | C132: 3621 // 4621 Finanzausgleich
A133: Budget | C133: Die Abgaben bzw. Beiträge für das laufende Jahr werden im Budget erfasst. Die Zahlen ab dem 1. Planjahr sind in der
A134: Budget | C134: Tabellenblatt Prognosen zu erfassen. Im Tabellenblatt Budget das Total ( = inkl. Ordentl. Ergänzungs- und Übergangs
A135: Budget | C135: beiträge sowie Feinausgleich Aufgabenverschiebungsbilanz) erfassen. Im Tabellenblatt Prognosen ist dies detailliert
A136: Budget | C136: vorzunehmen.
A137: Budget
A138: Budget | C138: 4895 Entnahme Aufwertungsreserve ohne SF
A139: Budget | C139: Die Entnahme für das laufende Jahr wird im Budget erfasst. Die Zahlen ab dem 1. Planjahr sind in der Tabellenblatt
A140: Budget | C140: Prognosen zu erfassen.
A141: Budget
A142: Budget | C142: Funktion 9101 Sondersteuern
A143: Budget | C143: Ertrag Sondersteuern eingeben. Abschreibungen (31), Hundetaxen (36) sind mit der ensprechenden Artennummer bereits erfasst.
A144: Budget
A145: Budget | C145: Fiskalertrag übrige Funktionen
A146: Budget | C146: Fiskalertrag, der nicht in den Funktionen 9100 Allgemeine Gemeindesteuern und 9101 Sondersteuern verbucht wird, erfassen
A147: Budget | C147: (z.B. Flächenbeitrage in Funktion 8120 Strukturverbesserungen).
A148: Budget
A149: Prognosen
A150: Prognosen | C150: Hinweise Prognosen
A151: Prognosen
A152: Prognosen | C152: Im Tabellenblatt Prognosen werden die Veränderungen der Erfolgsrechnung in den Planjahren erfasst.
A153: Prognosen
A154: Prognosen | C154: Weitere Infos finden sich in der Anleitung.
A155: Prognosen
A156: Prognosen | C156: Plangrössen / Einflussfaktoren
A157: Prognosen | C157: Eingabe = Zuwachs zum Vorjahr.
A158: Prognosen | C158: Mit den Zuwachsraten wird der Zuwachs auf dem entsprechenden Aufwand bzw. Ertrag für jedes Jahr gegenüber dem Vorjahr
A159: Prognosen | C159: berechnet. Basis bildet das 1. Planjahr. Kein Zuwachs gegenüber Vorjahr = 0%.
A160: Prognosen | C160: Zinssatz für Neukredite: Mutmasslicher Zinssatz für Neukredite im entsprechenden Jahr. Angabe wird für Berechnung Zinsen
A161: Prognosen | C161: benötigt (Tabellenblatt Schulden-Zinsen).
A162: Prognosen | C162: Zinssatz flüssige Mittel: Mutmasslicher Zinssatz für Verzinsung flüssige Mittel. Angabe wird für Berechnung Zinsen benötigt
A163: Prognosen | C163: (Tabellenblatt Schulden-Zinsen).
A164: Prognosen
A165: Prognosen | C165: Prognosen Steuerertrag
A166: Prognosen | C166: Wachstumsrate = geschätzte Veränderung Steuerertrag, Basis Steuerertrag natürliche Personen 100%.
A167: Prognosen | C167: Bevölkerungswachstum in % wird aus Plangrösse Einwohnerzahl berechnet.
A168: Prognosen | C168: --> Vorsicht: Wachstumsrate KStA beinhaltet ebenfalls ein Bevölkerungswachstum. Nicht doppelt berücksichtigen.
A169: Prognosen
A170: Prognosen | C170: Finanzausgleich
A171: Prognosen | C171: Abgaben und Beiträge ab dem 1. Planjahr erfassen. Zahlen für das 1. Planjahr werden kommuniziert. Nachfolgende
A172: Prognosen | C172: Planjahre entweder abschätzen oder gleichen Wert verwenden.
A173: Prognosen | C173: Zahlen werden gelöscht, wenn ein neues Planjahr in der Ausgangslage erfasst wird.
A174: Prognosen
A175: Prognosen | C175: Entnahme Aufwertungsreserve
A176: Prognosen | C176: Beträge ab dem 1. Planjahr erfassen.
A177: Prognosen | C177: Hinweis erscheint, wenn Betrag im Folgejahr nicht tiefer ist (grundsätzlich jährliche Kürzung gemäss Weisung vom 10.04.2017).
A178: Prognosen
A179: Prognosen | C179: Veränderungen Erfolgsrechnung
A180: Prognosen | C180: Veränderungen in der Erfolgsrechnung in den Planjahren einsetzen. Eine Eingabe wird im entsprechenden Planjahr berücksichtigt.
A181: Prognosen | C181: Bei wiederkehrenden Veränderungen Werte in jedem Jahr erfassen.
A182: Prognosen | C182: Für jede Veränderung die entsprechende zweistellige Artennumer in der ersten Spalte erfassen, damit in der Plan-ER die
A183: Prognosen | C183: Veränderung eingerechnet werden kann. Belastungen als positive Zahl erfassen (Mehraufwand, Minderertrag) Entlastungen als
A184: Prognosen | C184: negative Zahl erfassen (Minderaufwand, Mehrertrag).
A185: Prognosen
A186: Schulden-Zinsen
A187: Schulden-Zinsen | C187: Hinweise Schulden-Zinsen
A188: Schulden-Zinsen
A189: Schulden-Zinsen | C189: Im Tabellenblatt Schulden-Zinsen werden mit einem vereinfachten Ansatz der Finanzierungsbedarf, die Schuldenentwicklung und
A190: Schulden-Zinsen | C190: die Zinsen berechnet.
A191: Schulden-Zinsen | C191: Die Berechnung basiert auf der Erfolgsrechnung und nicht der Geldflussrechnung. Dies in der Annahme, dass die Bestände der
A192: Schulden-Zinsen | C192: Forderungen, der aktiven Rechnungsabgrenzungen, der laufenden Verbindlichkeiten, der passiven Rechnungsabgrenzungen und
A193: Schulden-Zinsen | C193: der Rückstellungen konstant bleiben.
A194: Schulden-Zinsen
A195: Schulden-Zinsen | C195: Berechnung Finanzierungsergebnis
A196: Schulden-Zinsen | C196: Aus den Investitionen und dem Ergebnis der Erfolgsrechnung wird das Finanzierungsergebnis berechnet.
A197: Schulden-Zinsen | C197: Berechnung der Selbstfinanzierung: Gesamtergebnis + Abschreibungen Verwaltungsvermögen + Einlagen Fonds - Entnahme
A198: Schulden-Zinsen | C198: Fonds - Abtragung Bilanzfehlbetrag - Entnahme Aufwertungsreserve
A199: Schulden-Zinsen
A200: Schulden-Zinsen | C200: Berechnung des Mittelbedarfs
A201: Schulden-Zinsen | C201: Rückzahlung Darlehen/Kredite
... 82 more rows

Sheet Auswertungen für FA
A1: ="Auswertungen für FA Aufgaben- und Finanzplanung "&Ausgangslage!D5-1&" - "&Ausgangslage!D5+Ausgangslage!I5-1 -> Auswertungen für FA Aufgaben- und Finanzplanung 2023 - 2033
C3: =Ausgangslage!D5-1 -> 2023 | D3: =C3+1 -> 2024 | E3: =D3+1 -> 2025 | F3: 2026 | G3: 2027 | H3: 2028 | I3: 2029 | J3: 2030 | K3: 2031 | L3: 2032 | M3: =L3+1 -> 2033
A4: Einwohnerzahl | C4: ='Plan-ER'!D4 -> 0 | D4: ='Plan-ER'!E4 -> 0 | E4: ='Plan-ER'!F4 -> 0 | F4: ='Plan-ER'!G4 -> 0 | G4: ='Plan-ER'!H4 -> 0 | H4: ='Plan-ER'!I4 -> 0 | I4: ='Plan-ER'!J4 -> 0 | J4: ='Plan-ER'!K4 -> 0 | K4: ='Plan-ER'!L4 -> 0 | L4: ='Plan-ER'!M4 -> 0 | M4: ='Plan-ER'!N4 -> 0
A6: Steuerfuss | C6: ='Plan-ER'!D5 -> 0% | D6: ='Plan-ER'!E5 -> 0% | E6: ='Plan-ER'!F5 -> 0% | F6: ='Plan-ER'!G5 -> 0% | G6: ='Plan-ER'!H5 -> 0% | H6: ='Plan-ER'!I5 -> 0% | I6: ='Plan-ER'!J5 -> 0% | J6: ='Plan-ER'!K5 -> 0% | K6: ='Plan-ER'!L5 -> 0% | L6: ='Plan-ER'!M5 -> 0% | M6: ='Plan-ER'!N5 -> 0%
A8: Abschreibungen Verwaltungsvermögen (planmässige) | C8: =Übersicht!C10*1000 -> 0 | D8: =Übersicht!D10*1000 -> 0 | E8: =Übersicht!E10*1000 -> 0 | F8: =Übersicht!F10*1000 -> 0 | G8: =Übersicht!G10*1000 -> 0 | H8: =Übersicht!H10*1000 -> 0 | I8: =Übersicht!I10*1000 -> 0 | J8: =Übersicht!J10*1000 -> 0 | K8: =Übersicht!K10*1000 -> 0 | L8: =Übersicht!L10*1000 -> 0 | M8: =Übersicht!M10*1000 -> 0
A10: Operatives Ergebnis | C10: =Übersicht!C15*1000 -> 0 | D10: =Übersicht!D15*1000 -> 0 | E10: =Übersicht!E15*1000 -> 0 | F10: =Übersicht!F15*1000 -> 0 | G10: =Übersicht!G15*1000 -> 0 | H10: =Übersicht!H15*1000 -> 0 | I10: =Übersicht!I15*1000 -> 0 | J10: =Übersicht!J15*1000 -> 0 | K10: =Übersicht!K15*1000 -> 0 | L10: =Übersicht!L15*1000 -> 0 | M10: =Übersicht!M15*1000 -> 0
A12: Gesamtergebnis | C12: =Übersicht!C20*1000 -> 0 | D12: =Übersicht!D20*1000 -> 0 | E12: =Übersicht!E20*1000 -> 0 | F12: =Übersicht!F20*1000 -> 0 | G12: =Übersicht!G20*1000 -> 0 | H12: =Übersicht!H20*1000 -> 0 | I12: =Übersicht!I20*1000 -> 0 | J12: =Übersicht!J20*1000 -> 0 | K12: =Übersicht!K20*1000 -> 0 | L12: =Übersicht!L20*1000 -> 0 | M12: =Übersicht!M20*1000 -> 0
A14: Entnahme aus Aufwertungsreserve übr. Anlagen (.01) | C14: =Übersicht!C43*1000 -> 0 | D14: =Übersicht!D43*1000 -> 0 | E14: =Übersicht!E43*1000 -> 0 | F14: =Übersicht!F43*1000 -> 0 | G14: =Übersicht!G43*1000 -> 0 | H14: =Übersicht!H43*1000 -> 0 | I14: =Übersicht!I43*1000 -> 0 | J14: =Übersicht!J43*1000 -> 0 | K14: =Übersicht!K43*1000 -> 0 | L14: =Übersicht!L43*1000 -> 0 | M14: =Übersicht!M43*1000 -> 0
A16: Aufwertungsreserven (.01 und .02) Ende Jahr | C16: =Übersicht!C45*1000 -> 0 | D16: =Übersicht!D45*1000 -> 0 | E16: =Übersicht!E45*1000 -> 0 | F16: =Übersicht!F45*1000 -> 0 | G16: =Übersicht!G45*1000 -> 0 | H16: =Übersicht!H45*1000 -> 0 | I16: =Übersicht!I45*1000 -> 0 | J16: =Übersicht!J45*1000 -> 0 | K16: =Übersicht!K45*1000 -> 0 | L16: =Übersicht!L45*1000 -> 0 | M16: =Übersicht!M45*1000 -> 0
A18: Bilanzüberschuss/-fehlbetrag Ende Jahr | C18: =Übersicht!C52*1000 -> 0 | D18: =Übersicht!D52*1000 -> 0 | E18: =Übersicht!E52*1000 -> 0 | F18: =Übersicht!F52*1000 -> 0 | G18: =Übersicht!G52*1000 -> 0 | H18: =Übersicht!H52*1000 -> 0 | I18: =Übersicht!I52*1000 -> 0 | J18: =Übersicht!J52*1000 -> 0 | K18: =Übersicht!K52*1000 -> 0 | L18: =Übersicht!L52*1000 -> 0 | M18: =Übersicht!M52*1000 -> 0
A20: Nettoschuld I (+ = Schuld / - = Vermögen) | C20: =Übersicht!C55*1000 -> 0 | D20: =Übersicht!D55*1000 -> 0 | E20: =Übersicht!E55*1000 -> 0 | F20: =Übersicht!F55*1000 -> 0 | G20: =Übersicht!G55*1000 -> 0 | H20: =Übersicht!H55*1000 -> 0 | I20: =Übersicht!I55*1000 -> 0 | J20: =Übersicht!J55*1000 -> 0 | K20: =Übersicht!K55*1000 -> 0 | L20: =Übersicht!L55*1000 -> 0 | M20: =Übersicht!M55*1000 -> 0
A22: Nettoschuld I pro Einwohner | C22: =Übersicht!C56 -> 0 | D22: =Übersicht!D56 -> 0 | E22: =Übersicht!E56 -> 0 | F22: =Übersicht!F56 -> 0 | G22: =Übersicht!G56 -> 0 | H22: =Übersicht!H56 -> 0 | I22: =Übersicht!I56 -> 0 | J22: =Übersicht!J56 -> 0 | K22: =Übersicht!K56 -> 0 | L22: =Übersicht!L56 -> 0 | M22: =Übersicht!M56 -> 0
A24: Selbstfinanzierung | C24: =Übersicht!C28*1000 -> 0 | D24: =Übersicht!D28*1000 -> 0 | E24: =Übersicht!E28*1000 -> 0 | F24: =Übersicht!F28*1000 -> 0 | G24: =Übersicht!G28*1000 -> 0 | H24: =Übersicht!H28*1000 -> 0 | I24: =Übersicht!I28*1000 -> 0 | J24: =Übersicht!J28*1000 -> 0 | K24: =Übersicht!K28*1000 -> 0 | L24: =Übersicht!L28*1000 -> 0 | M24: =Übersicht!M28*1000 -> 0
A26: Nettoinvestitionen (+ = Ausgaben / - = Einnahmen) | C26: =-Übersicht!C27*1000 -> 0 | D26: =-Übersicht!D27*1000 -> 0 | E26: =-Übersicht!E27*1000 -> 0 | F26: =-Übersicht!F27*1000 -> 0 | G26: =-Übersicht!G27*1000 -> 0 | H26: =-Übersicht!H27*1000 -> 0 | I26: =-Übersicht!I27*1000 -> 0 | J26: =-Übersicht!J27*1000 -> 0 | K26: =-Übersicht!K27*1000 -> 0 | L26: =-Übersicht!L27*1000 -> 0 | M26: =-Übersicht!M27*1000 -> 0
A28: Selbstfinanzierungsgrad | C28: =KZ!C11 -> keine I. | D28: =KZ!D11 -> keine I. | E28: =KZ!E11 -> keine I. | F28: =KZ!F11 -> keine I. | G28: =KZ!G11 -> keine I. | H28: =KZ!H11 -> keine I. | I28: =KZ!I11 -> keine I. | J28: =KZ!J11 -> keine I. | K28: =KZ!K11 -> keine I. | L28: =KZ!L11 -> keine I. | M28: =KZ!M11 -> keine I.
A30: ="Selbstfinanzierungsgrad kumuliert Periode " & C3 & " - " &G3 -> Selbstfinanzierungsgrad kumuliert Periode 2023 - 2027 | D30: =IF(AND(SUM(C24:G24)=0,SUM(C26:G26)=0),0,SUM(C24:G24)/SUM(C26:G26)) -> 0%
A32: Laufender Ertrag | C32: =KZ!C15*1000 -> 0 | D32: =KZ!D15*1000 -> 0 | E32: =KZ!E15*1000 -> 0 | F32: =KZ!F15*1000 -> 0 | G32: =KZ!G15*1000 -> 0 | H32: =KZ!H15*1000 -> 0 | I32: =KZ!I15*1000 -> 0 | J32: =KZ!J15*1000 -> 0 | K32: =KZ!K15*1000 -> 0 | L32: =KZ!L15*1000 -> 0 | M32: =KZ!M15*1000 -> 0
A34: Selbstfinanzierungsanteil | C34: =KZ!C16 -> 0% | D34: =KZ!D16 -> 0% | E34: =KZ!E16 -> 0% | F34: =KZ!F16 -> 0% | G34: =KZ!G16 -> 0% | H34: =KZ!H16 -> 0% | I34: =KZ!I16 -> 0% | J34: =KZ!J16 -> 0% | K34: =KZ!K16 -> 0% | L34: =KZ!L16 -> 0% | M34: =KZ!M16 -> 0%
A36: ="Selbstfinanzierungsanteil kumuliert Periode " & C3 & " - " & G3 -> Selbstfinanzierungsanteil kumuliert Periode 2023 - 2027 | D36: =IF(AND(SUM(C24:G24)=0,SUM(C32:G32)=0),0,SUM(C24:G24)/SUM(C32:G32)) -> 0%
A38: Mittelfristiges Haushaltsgleichgewicht
A39: mit operativem Ergebnis gerechnet | D39: =Übersicht!D23 -> 0
A40: mit Gesamtergebnis gerechnet | D40: =Übersicht!D24 -> 0
A221: Version 7.3
